{"text_format":"1","workbook":"xlsx","n_sheets":27,"sheets":["Instructions","Tools Electrical","Tools Deck","Tools Engine","Pipes & Valves","Deck Stores","Engine Stores","Elect 220v","Hotel Stores","Stationery","Martek","Tribomar","Flags","Safety and Nav","Tools Electrical Req","Tools Deck Req","Tools Engine Req","Pipes & Valves Req","Deck Stores Req","Engine Stores Req","Elect 220v Req","Hotel Stores Req","Stationery Req","Martek Req","Tribomar Req","Flags Req","Safety and Nav Req"],"not_rendered":{"charts":0,"images":27,"macros":1,"external_links":0,"defined_names":20,"comments":0,"pivot_tables":0},"unopened":[],"bounds":{"document_bytes":16777216,"sheet_cells":100000,"rows_first":2000,"rows_last":500,"rows_between":2000,"halvings":0,"cell_chars":16384,"cell_head_chars":4096},"cells_cut":0,"cells_raw":0,"read":"whole","date_system":"1900"}

{"sheet":"Instructions","index":0,"n_rows":20,"n_cols":3,"rows_kept":20,"cut":false,"hidden":false,"merged":[[19,1,19,2],[15,1,15,2],[16,1,16,2],[4,1,4,2],[5,1,5,2],[6,1,6,2],[17,1,17,2],[18,1,18,2]]}
[null,"SAFETY, HEALTH, ENVIRONMENT AND QUALITY MANAGEMENT SYSTEM\n\nQUARTERLY STORES\n\nREPORTING FORMS MANUAL","Form : 7.2.4\nDate : 14-Aug-25\nRev : 10.0\nApp By : DPA"]
[]
[null,"INSTRUCTIONS"]
[]
[1,"Only to Blue Tabs on the form to be completed"]
[2,"ONLY complete the \"ROB' and \"Applicable to Vessel\" information in Col \"G\" and \"H\" on each sheet."]
[3,"On completion of each tab - select the \"requistion check\" button on the top of the page "]
[]
[]
[]
[]
[]
[]
[]
[]
[4,"This will automatically complete the Requisition forms at the end of the spreadsheet (Red Tabs)"]
[5,"Do not update any information on the Requsition forms (Red Tabs) as this will automatically update when the \"requsition check\" button is selected"]
[6," Red - Are to be avoided unless LED are not available.(Mainly incandescent and energy saving lamps which must be replaced with LED lamps)"]
[7,"Orange – Items should be phased out. (Include high pressure sodium vapour lighting, high pressure mercury vapour lighting and tungsten halogen lighting, these are all high energy consumers and must be replaced with LED flood lighting fixtures if possible) Budget?"]
[8,"Green - Items are the additional items (LED lighting and fuses etc)."]

{"sheet":"Tools Electrical","index":1,"n_rows":60,"n_cols":10,"rows_kept":60,"cut":false,"hidden":false,"merged":[[1,0,1,8],[3,0,3,8],[0,1,0,8]]}
[null,{"$f":"Instructions!B1","v":"SAFETY, HEALTH, ENVIRONMENT AND QUALITY MANAGEMENT SYSTEM\n\nQUARTERLY STORES\n\nREPORTING FORMS MANUAL"},null,null,null,null,null,null,null,{"$f":"Instructions!C1","v":"Form : 7.2.4\nDate : 14-Aug-25\nRev : 10.0\nApp By : DPA"}]
["BUDGET CODE   410805"]
[]
["Update in ROB and Applicable to Vessel Column only. ROB includes items in use. The Req Column will reflect the amount to order"]
[null,"Description","IMPA","Unit","Req","Stock","ROB","Applicable to Vessel",null,"Comments / Remarks"]
[1,"Cable Shoe Pliers",611730,"Pce ",{"$f":"IF(OR(ISBLANK(F6),ISBLANK(G6)),\"\",F6-G6)","v":""},1,null,null,{"$f":"\"ELEC\" & TEXT(A6,\"0000\")","v":"ELEC0001"}]
[2,"Electric Soldering Irons, I-Round 220V 30W",795051,"Pce ","",1,null,null,"ELEC0002"]
[3,"Electric Soldering Irons, I-Round 220V 100W",795054,"Pce ","",1,null,null,"ELEC0003"]
[4,"Hydrometer For Lead/Acid Batteries",792661,"Pce","",1,null,null,"ELEC0004"]
[5,"Battery Water Syringe",792666,"Pce","",1,null,null,"ELEC0005"]
[6,"Canned Air Dusters",472775,"Can","",5,null,null,"ELEC0006"]
[7,"Gun For Silicone Sealant, 350 grm",812603,"Pce","",1,null,null,"ELEC0007"]
[8,"Straight Shank Twist Drill Set ",630255,"Pce","",1,null,null,"ELEC0008"]
[9,"Screwdriver Sets, Watch Makers",612412,"Pce","",1,null,null,"ELEC0009"]
[10,"Hexagon Nut Driver Sets",612366,"Pce","",1,null,null,"ELEC0010"]
[11,"Offset Screwdrivers",612401,"Pce","",1,null,null,"ELEC0011"]
[12,"Vice Grip Combination Pliers",612402,"Pce","",1,null,null,"ELEC0012"]
[13,"Insulated Wire Strippers",611742,"Pce","",1,null,null,"ELEC0013"]
[14,"Hydraulic Cable Shoe Pliers",411734,"Pce","",1,null,null,"ELEC0014"]
[15,"Insulated Diagonal Cutters 1000 V",611727,"Pce","",1,null,null,"ELEC0015"]
[16,"Allen Hexagon Wrench Sets",611281,"Pce","",1,null,null,"ELEC0016"]
[17,"Allen Hexagon Wrench Sets",611282,"Pce","",1,null,null,"ELEC0017"]
[18,"Electricians Knife",611851,"Pce","",1,null,null,"ELEC0018"]
[19,"Cable Cutter Model No.3",611922,"Pce","",1,null,null,"ELEC0019"]
[20,"Screwdriver Insulated Up To, 1000V Slotted 2.5X80mm",612331,"Pce",null,1,null,null,"ELEC0020"]
[21,"Screwdriver Insulated Up To, 1000V Slotted 4.0X100mm",612332,"Pce",null,1,null,null,"ELEC0021"]
[22,"Screwdriver Insulated Up To, 1000V Slotted 5.5X125mm",612333,"Pce",null,1,null,null,"ELEC0022"]
[23,"Screwdriver Insulated Up To, 1000V Slotted 6.5X150mm",612334,"Pce",null,1,null,null,"ELEC0023"]
[24,"Screwdriver Insulated Up To, 1000V Slotted 8.0X175mm",612335,"Pce",null,1,null,null,"ELEC0024"]
[25,"Screwdriver Insulated Up To, 1000V Phillips No.0 75mm",612336,"Pce",null,1,null,null,"ELEC0025"]
[26,"Screwdriver Insulated Up To, 1000V Phillips No.1 80mm",612337,"Pce",null,1,null,null,"ELEC0026"]
[27,"Screwdriver Insulated Up To, 1000V Phillips No.2 100mm",612338,"Pce",null,1,null,null,"ELEC0027"]
[28,"Screwdriver Insulated Up To, 1000V Phillips No.3 150mm",612339,"Pce",null,1,null,null,"ELEC0028"]
[29,"Stubby Screwdriver Slotted",612324,"Pce",{"$f":"IF(OR(ISBLANK(F34),ISBLANK(G34)),\"\",F34-G34)","v":""},1,null,null,"ELEC0029"]
[30,"Stubby Screwdriver (+) No.2",612326,"Pce","",1,null,null,"ELEC0030"]
[31,"Hacksaw Frame, Pipe",613126,"Pce","",1,null,null,"ELEC0031"]
[32,"Junior Hacksaw Frame",613423,"Pce","",1,null,null,"ELEC0032"]
[33,"Adjustable Wrench, Baco",616102,"Pce","",1,null,null,"ELEC0033"]
[34,"Insulated Round Nose Pliers, 1000V",611689,"Pce","",1,null,null,"ELEC0034"]
[35,"Heavy Water Pump Pliers, 300 mm",611631,"Pce","",1,null,null,"ELEC0035"]
[36,"Vice Grip Combination Pliers",611644,"Pce","",1,null,null,"ELEC0036"]
[37,"Needle File Set",614534,"Pce","",1,null,null,"ELEC0037"]
[38,"Open & Ratchet Type 12 Point Box Wrench Sets",610846,"Pce","",1,null,null,"ELEC0038"]
[39,"Side Cutting Pliers, 1000V Electrician",611658,"Pce","",2,null,null,"ELEC0039"]
[40,"Hole Saw, Deep Cut Type, 16mm",633501,"Pce","",1,null,null,"ELEC0040"]
[41,"Hole Saw, Deep Cut Type, 20mm",633509,"Pce","",1,null,null,"ELEC0041"]
[42,"Hole Saw, Deep Cut Type, 22mm",633512,"Pce","",1,null,null,"ELEC0042"]
[43,"Hole Saw, Deep Cut Type, 25mm",633514,"Pce","",1,null,null,"ELEC0043"]
[44,"Multimeter Fluke 77","Free Item","Pce","",1,null,null,"ELEC0044"]
[45,"Insulation Tester (Megger)",795778,"Pce","",1,null,null,"ELEC0045"]
[46,"Clamp Meter ",795730,"Pce","",1,null,null,"ELEC0046"]
[47,"Heat Stripper ","Free Item","Pce","",1,null,null,"ELEC0047"]
[48,"Freon Vacuum Pump","Free Item","Pce","",1,null,null,"ELEC0048"]
[49,"Crimping Tool",611730,"Pce","",1,null,null,"ELEC0049"]
[50,"Side Cutters - 150 mm",611717,"Pce","",1,null,null,"ELEC0050"]
[51,"Long Nose Pliers 100 mm","6116 94","Pce","",1,null,null,"ELEC0051"]
[52,"Long Nose Pliers 150 mm","6116 95","Pce","",1,null,null,"ELEC0052"]
[53,"Water Pump Pliers 250 mm",611626,"Pce","",1,null,null,"ELEC0053"]
[54,"Water Pump Pliers 250 mm",611626,"Pce","",1,null,null,"ELEC0054"]
[55,"Tape Convex 3.5",650822,"Pce","",1,null,null,"ELEC0053"]

{"sheet":"Tools Deck","index":2,"n_rows":46,"n_cols":9,"rows_kept":46,"cut":false,"hidden":false,"merged":[[3,0,3,7],[1,0,1,7],[0,1,0,7]]}
[null,{"$f":"Instructions!B1","v":"SAFETY, HEALTH, ENVIRONMENT AND QUALITY MANAGEMENT SYSTEM\n\nQUARTERLY STORES\n\nREPORTING FORMS MANUAL"},null,null,null,null,null,null,{"$f":"Instructions!C1","v":"Form : 7.2.4\nDate : 14-Aug-25\nRev : 10.0\nApp By : DPA"}]
["BUDGET CODE   410805"]
[]
["Update in ROB and Applicable to Vessel Column only. ROB includes items in use. The Req Column will reflect the amount to order"]
[null,"Description","IMPA","Unit","Req","Stock","ROB","Applicable to Vessel","Comments / Remarks"]
[1,"Drill Electric Portable 13Mm Ac220V 1-Phase                                                                                                                                                                                                                                                                 ",591013,"SET",{"$f":"IF(OR(ISBLANK(F6),ISBLANK(G6)),\"\",F6-G6)","v":""},1]
[2,"Grinder Angle Electric 100Mm  1-Phase Ac220V                                                                                                                                                                                                                                                              ",591031,"SET",{"$f":"IF(OR(ISBLANK(F7),ISBLANK(G7)),\"\",F7-G7)","v":""},4]
[3,"Wrench Pipe Straight Heavy-Duty 350Mm                                                                                                                                                                                                                                                                       ",611305,"PCS","",1]
[4,"Wrench Adjustable Heavy-Duty 200Mm                                                                                                                                                                                                                                                                          ",611333,"PCS","",2]
[5,"Wrench Adjustable Heavy-Duty 375Mm                                                                                                                                                                                                                                                                          ",611336,"PCS","",1]
[6,"Wrench Adjustable Heavy-Duty 450Mm                                                                                                                                                                                                                                                                          ",611337,"PCS","",1]
[7,"Plier Side-Cutting 200Mm Non-Insulated                                                                                                                                                                                                                                                                      ",611653,"PRS","",1]
[8,"Knife Heavy-Duty With Leather Case                                                                                                                                                                                                                                                                          ",611855,"PCS","",2]
[9,"Cutter Bolt Straight Edge 450Mm                                                                                                                                                                                                                                                                             ",611862,"PRS","",1]
[10,"Cutter Wire Rope Hydraulic Capacity 30Mm                                                                                                                                                                                                                                                                    ",611971,"SET","",1]
[11,"Screwdriver Heavy-Duty Slotted 6X100Mm                                                                                                                                                                                                                                                          ",612183,"PCS","",1]
[12,"Screwdriver Heavy-Duty Slotted 7X125Mm                                                                                                                                                                                                                                                          ",612184,"PCS","",1]
[13,"Screwdriver Heavy-Duty Slotted 8X150Mm                                                                                                                                                                                                                                                          ",612185,"PCS","",1]
[14,"Screwdriver Heavy-Duty Slotted 9X200Mm                                                                                                                                                                                                                                                          ",612186,"PCS","",1]
[15,"Screwdriver Heavy-Duty Slotted 10X250Mm                                                                                                                                                                                                                                                         ",612187,"PCS","",1]
[16,"Screwdriver Heavy-Duty Phillips No.0 75Mm                                                                                                                                                                                                                                                       ",612192,"PCS","",1]
[17,"Screwdriver  Heavy-Duty Phillips No.1 75Mm                                                                                                                                                                                                                                                       ",612193,"PCS","",1]
[18,"Screwdriver  Heavy-Duty Phillips No.2 100Mm                                                                                                                                                                                                                                                      ",612194,"PCS","",1]
[19,"Screwdriver  Heavy-Duty Phillips No.4 200Mm                                                                                                                                                                                                                                                      ",612196,"PCS","",1]
[20,"Hammer Ball Pein Handled No.1-1/4 (550Grm)                                                                                                                                                                                                                                                                  ",612505,"PCS","",1]
[21,"Hammer Ball Pein Handled No.2 (900Grm)                                                                                                                                                                                                                                                                      ",612507,"PCS","",1]
[22,"Hammer Blacksmith Double Face With Handle No.8 (3.6Kgs)                                                                                                                                                                                                                                                     ",612526,"PCS","",1]
[23,"Hammer Blacksmith Double Face With Handle No.12 (5.4Kgs)                                                                                                                                                                                                                                                    ",612528,"PCS","",1]
[24,"Hammer Chipping With Handle 450Grm                                                                                                                                                                                                                                                                          ",612612,"PCS","",6]
[25,"Bar Claw & Nail Puller 300Mm                                                                                                                                                                                                                                                                                ",612844,"PCS","",1]
[26,"Bar Claw & Chisel End 900Mm                                                                                                                                                                                                                                                                                 ",612860,"PCS","",1]
[27,"Crowbar 1200Mm                                                                                                                                                                                                                                                                                              ",612884,"PCS","",1]
[28,"Saw Hand Western Type 500Mm                                                                                                                                                                                                                                                                                 ",613402,"PCS","",1]
[29,"Drum Hook Chain Type For 1 Drum With Certificate                                                                                                                                                                                                                                                             ",614025,"PRS","",1]
[30,"Hoist Chain Spur-Gear 1Ton 2.5Mtr                                                                                                                                                                                                                                                                           ",615007,"SET","",2]
[31,"Snake Wire Pipe Cleaner Plumber'S 10Mmx10Mtr                                                                                                                                                                                                                                                                ",615204,"PCS","",1]
[32,"Grease Pump, Air Operated , For Drum Cap.20Kgs Pump Ratio 44:1",617402,"SET","",1]
[33,"Grease Gun W/Bent  Flexible  Pipe",617411,"SET","",1]
[34,"Drill Set Hss Straight Shank 1-13Mm 25'S In Steel Case                                                                                                                                                                                                                                                      ",630255,"SET","",1]
[35,"Rule Convex Steel Metric 2Mtr                                                                                                                                                                                                                                                                               ",650821,"PCS","",2]
[36,"Tape Oil Gauge Stainless Steel Metric 30Mtr                                                                                                                                                                                                                                                                 ",650873,"PCS","",2]
[37,"Hydrometer Seawater 990-1030 250Mm                                                                                                                                                                                                                                                                         ",651342,"PCS","",2]
[38,"Thermometer Cabin -30 To 50Deg 250Mm                                                                                                                                                                                                                                                                        ",651701,"PCS","",2]
[39,"Thermometer Test In Brass Case 0-100Deg.C 300Mm                                                                                                                                                                                                                                                             ",651725,"SET","",8]
[40,"Receptacle 3 Socket W/20Mtr Cable & 3P W.T. Plug Ac220V                                                                                                                                             ",792808,"SET","",1]
[41,"Tape Convex 3.5",650822,"Pcs","",2]

{"sheet":"Tools Engine","index":3,"n_rows":369,"n_cols":9,"rows_kept":369,"cut":false,"hidden":false,"merged":[[3,0,3,7],[1,0,1,7],[0,1,0,7]]}
[null,{"$f":"Instructions!B1","v":"SAFETY, HEALTH, ENVIRONMENT AND QUALITY MANAGEMENT SYSTEM\n\nQUARTERLY STORES\n\nREPORTING FORMS MANUAL"},null,null,null,null,null,null,{"$f":"Instructions!C1","v":"Form : 7.2.4\nDate : 14-Aug-25\nRev : 10.0\nApp By : DPA"}]
["BUDGET CODE   410805"]
[]
["Update in ROB and Applicable to Vessel Column only. ROB includes items in use. The Req Column will reflect the amount to order"]
[null,"Description","IMPA","Unit","Req","Stock","ROB","Applicable to Vessel","Comments / Remarks"]
[1,"Bit Tips Throw-Away Pnmg 332 10'S/Box                                                                                                                                                                                                                          ","Free Item","BOX",{"$f":"IF(OR(ISBLANK(F6),ISBLANK(G6)),\"\",F6-G6)","v":""},1]
[2,"Tool Bit Weld Tips Model 12-2 Right                                                                                                                                                                                                                      ","Free Item","PCS","",1]
[3,"Tool Bit Weld Tips Model 12-2 Left                                                                                                                                                                                                                       ","Free Item","PCS","",1]
[4,"Feeler Gauge 9 Leaves 220mm 172md",650554,"PCS","",2]
[5,"Socket Wrench Set 27-55mm 8'S > Offer:24-50mm                                                                                                                                                                                                                  ",610153,"SET","",1]
[6,"Wrench Allen Hexagon 4.5mm                                                                                                                                                                                                                                     ",611278,"PCS","",2]
[7,"Wrench Allen Hexagon 5.5mm                                                                                                                                                                                                                                     ",611279,"PCS","",2]
[8,"Tool Bit Rectangular Flat Hss 6X10X65mm                                                                                                                                                                                                                        ","Free Item","PCS","",2]
[9,"Electric Soldering Iron 60W 220V                                                                                                                                                                                                                               ",795052,"PCS","",1]
[10,"Smoke Detector Tester",331073,"SET","",1]
[11,"Hygrometer Dry & Wet                                                                                                                                                                                                                                           ",370251,"PCS","",1]
[12,"Magnifying Glass 75mm                                                                                                                                                                                                                                          ",371026,"PCS","",1]
[13,"Drill, Electric, Portable, 6.5mm Capacity, 220V, ",591011,"PCS","",1]
[14,"Drill, Electric, Portable, 16mm Capacity, 220V, ",591014,"PCS","",1]
[15,"Angle Grinder, 100mm Wheel Dia, 12.7mm Shaft, 220V,  ",591032,"PCS","",2]
[16,"Angle Grinder, 180mm Wheel Dia, 22.3mm Shaft, 220V, ",591034,"PCS","",1]
[17,"Rod Cutter Electric Portable Wheel Dia 405mm  1-Phase, 220V                                                                                                                                                                                    ",591157,"SET","",1]
[18,"Cutting Wheel, 405mmod, 3100Mtr/Min For Elec Rod Cutter Wheel Dia- 405mmm Thickness-2.5mm Rpm-3100Mtr/Min                                                                                                                                                         ",591161,"PCS","",3]
[19,"Electric Jig Saw, Portable, 60mm Cutting Capacity, 220V, ",591172,"SET","",1]
[20,"Fan Ventilation Elec Portable 280mm Ac220V 1-Phase ",591407,"SET","",2]
[21,"Piston Pump Pneumatic                                                                                                                                                ",591661,"SET","",2]
[22,"Socket Wrench Set 1/2\" Drive, 8-32mm 18Socket & 8Tool #160M  Ammech                                                                                                                                                                                                    ",610126,"SET","",2]
[23,"Ratchet Handle Male 12.7mm/Sq Drive 270mm                                                                                                                                                                                                                      ",610405,"PCS","",2]
[24,"Extension Bar 12.7mm/Sq Drive 250mm                                                                                                                                                                                                                            ",610455,"PCS","",1]
[25,"Socket Adaptor 12.7mm-Male X 9.5mm-Female                                                                                                                                                                                                                         ",610473,"PCS","",1]
[26,"Socket Adaptor 9.5mm-Male X 12.7mm-Female                                                                                                                                                                                                                         ",610474,"PCS","",1]
[27,"Wrench Set Double Open End #35M 6X7 To 22X24mm 6'S                                                                                                                                                                                                             ",610504,"SET","",1]
[28,"Wrench Double Open End 6X7mm                                                                                                                                                                                                                                   ",610552,"PCS","",1]
[29,"Wrench Double Open End 8X9mm                                                                                                                                                                                                                                   ",610555,"PCS","",1]
[30,"Wrench Double Open End 8X10mm                                                                                                                                                                                                                                  ",610556,"PCS","",1]
[31,"Wrench Double Open End 9X10mm                                                                                                                                                                                                                                  ",610558,"PCS","",1]
[32,"Wrench Double Open End 11X13mm                                                                                                                                                                                                                                 ",610564,"PCS","",1]
[33,"Wrench Double Open End 12X14mm                                                                                                                                                                                                                                 ",610565,"PCS","",1]
[34,"Wrench Double Open End 13X17mm                                                                                                                                                                                                                                 ",610566,"PCS","",2]
[35,"Wrench Double Open End 14X17mm                                                                                                                                                                                                                                 ",610567,"PCS","",2]
[36,"Wrench Double Open End 17X21mm",610569,"PCS","",2]
[37,"Wrench Double Open End 19X22mm                                                                                                                                                                                                                                 ",610571,"PCS","",2]
[38,"Wrench Double Open End 22X24mm                                                                                                                                                                                                                                 ",610575,"PCS","",1]
[39,"Wrench Double Open End 26X32mm                                                                                                                                                                                                                                 ",610580,"PCS","",1]
[40,"Wrench Double Open End 27X30mm                                                                                                                                                                                                                                 ",610581,"PCS","",1]
[41,"Wrench Double Open End 36X41mm                                                                                                                                                                                                                                 ",610588,"PCS","",1]
[42,"Wrench Double Open End 41X46mm                                                                                                                                                                                                                                 ",610589,"PCS","",1]
[43,"Wrench Double Open End 50X54mm",610592,"PCS","",1]
[44,"Wrench Single Open End 8mm                                                                                                                                                                                                                                     ",610604,"PCS","",2]
[45,"Wrench Single Open End 10mm                                                                                                                                                                                                                                    ",610606,"PCS","",2]
[46,"Wrench Single Open End 11mm                                                                                                                                                                                                                                    ",610607,"PCS","",2]
[47,"Wrench Single Open End 13mm                                                                                                                                                                                                                                    ",610609,"PCS","",2]
[48,"Wrench Single Open End 17mm                                                                                                                                                                                                                                    ",610611,"PCS","",2]
[49,"Wrench Single Open End 19mm                                                                                                                                                                                                                                    ",610612,"PCS","",2]
[50,"Wrench Single Open End 22mm                                                                                                                                                                                                                                    ",610614,"PCS","",2]
[51,"Wrench Single Open End 24mm                                                                                                                                                                                                                                    ",610616,"PCS","",2]
[52,"Wrench Single Open End 27mm                                                                                                                                                                                                                                    ",610618,"PCS","",2]
[53,"Wrench Single Open End 30mm                                                                                                                                                                                                                                    ",610620,"PCS","",2]
[54,"Wrench Single Open End 32mm                                                                                                                                                                                                                                    ",610621,"PCS","",2]
[55,"Wrench Single Open End 36mm                                                                                                                                                                                                                                    ",610623,"PCS","",2]
[56,"Wrench Single Open End 41mm                                                                                                                                                                                                                                    ",610625,"PCS","",2]
[57,"Wrench Single Open End 46mm                                                                                                                                                                                                                                    ",610626,"PCS","",2]
[58,"Wrench Single Open End 50mm                                                                                                                                                                                                                                    ",610627,"PCS","",1]
[59,"Wrench Single Open End 55mm                                                                                                                                                                                                                                    ",610629,"PCS","",1]
[60,"Wrench Single Open End 65mm",610632,"PCS","",1]
[61,"Wrench 12-Point Single End 13mm, 40Deg Bend                                                                                                                                                                                                                                ",610654,"PCS","",2]
[62,"Wrench 12-Point Single End 17mm  40Deg Bend                                                                                                                                                                                                                              ",610656,"PCS","",2]
[63,"Wrench 12-Point Single End 19mm 40Deg Bend                                                                                                                                                                                                                               ",610657,"PCS","",2]
[64,"Wrench 12-Point Single End 22mm 40Deg Bend                                                                                                                                                                                                                               ",610659,"PCS",{"$f":"IF(OR(ISBLANK(F69),ISBLANK(G69)),\"\",F69-G69)","v":""},2]
[65,"Wrench 12-Point Single End 24mm  40Deg Bend                                                                                                                                                                                                                              ",610661,"PCS","",2]
[66,"Wrench 12-Point Single End 27mm 40Deg Bend                                                                                                                                                                                                                               ",610663,"PCS","",2]
[67,"Wrench 12-Point Single End 30mm  40Deg Bend                                                                                                                                                                                                                              ",610665,"PCS","",2]
[68,"Wrench 12-Point Single End 32mm   40Deg Bend                                                                                                                                                                                                                             ",610666,"PCS","",2]
[69,"Wrench 12-Point Single End 36mm   40Deg Bend                                                                                                                                                                                                                             ",610668,"PCS","",2]
[70,"Wrench 12-Point Single End 41mm 40Deg Bend                                                                                                                                                                                                                              ",610670,"PCS","",1]
[71,"Wrench 12-Point Single End 46mm 40Deg Bend                                                                                                                                                                                                                                ",610671,"PCS","",1]
[72,"Wrench 12-Point Single End 50mm  40Deg Bend                                                                                                                                                                                                                              ",610672,"PCS","",1]
[73,"12 Point 45°Double Offset Wrench, 12X13",610724,"PCS","",2]
[74,"12 Point 45°Double Offset Wrench, 6X7",610726,"PCS","",2]
[75,"12 Point 45°Double Offset Wrench, 8X10",610728,"PCS","",2]
[76,"12 Point 45°Double Offset Wrench, 10X12",610730,"PCS","",2]
[77,"12 Point 45°Double Offset Wrench, 11X13",610732,"PCS","",2]
[78,"12 Point 45°Double Offset Wrench, 14X17",610735,"PCS","",2]
[79,"12 Point 45°Double Offset Wrench, 17X19",610736,"PCS","",2]
[80,"12 Point 45°Double Offset Wrench, 19X22",610739,"PCS","",2]
[81,"12 Point 45°Double Offset Wrench, 22X24",610743,"PCS","",2]
[82,"12 Point 45°Double Offset Wrench, 24X27",610745,"PCS","",2]
[83,"12 Point 45°Double Offset Wrench, 27X30",610749,"PCS","",2]
[84,"12 Point 45°Double Offset Wrench, 30X32",610751,"PCS","",2]
[85,"Open & 12Point Box Wrenches, 8mm",610762,"PCS","",4]
[86,"Open & 12Point Box Wrenches, 7mm",610763,"PCS","",4]
[87,"Open & 12Point Box Wrenches, 10mm",610765,"PCS","",4]
[88,"Open & 12Point Box Wrenches, 12mm",610767,"PCS","",4]
[89,"Open & 12Point Box Wrenches, 13mm",610768,"PCS","",4]
[90,"Open & 12Point Box Wrenches, 14mm",610769,"PCS","",4]
[91,"Open & 12Point Box Wrenches, 16mm",610770,"PCS","",4]
[92,"Open & 12Point Box Wrenches, 17mm",610771,"PCS","",4]
[93,"Open & 12Point Box Wrenches, 19mm",610772,"PCS","",4]
[94,"Open & 12Point Box Wrenches, 22mm",610774,"PCS","",4]
[95,"Open & 12Point Box Wrenches, 24mm",610776,"PCS","",4]
[96,"Open & 12Point Box Wrenches, 26mm",610777,"PCS","",4]
[97,"Open & 12Point Box Wrenches, 27mm",610778,"PCS","",4]
[98,"Open & 12Point Box Wrenches, 30mm",610779,"PCS","",4]
[99,"Open & 12Point Box Wrenches, 32mm",610780,"PCS","",4]
[100,"Open & 12Point Box Wrenches, 36mm",610782,"PCS","",4]
[101,"Open & 12Point Box Wrenches, 41mm",610783,"PCS","",4]
[102,"Open & 12Point Box Wrenches, 43mm",610784,"PCS","",4]
[103,"Open & 12Point Box Wrenches, 45mm",610785,"PCS","",4]
[104,"Open & 12Point Box Wrenches, 18mm",610793,"PCS","",4]
[105,"Open & 12Point Box Wrenches, 29mm",610797,"PCS","",4]
[106,"Wrench T-Type 6-Point 13mm Detachable Handle",610904,"PCS","",1]
[107,"Wrench T-Type 6-Point 17mm Detachable Handle",610906,"PCS","",1]
[108,"Wrench T-Type 6-Point 19mm Detachable Handle",610907,"PCS","",1]
[109,"Wrench T-Type 6-Point 22mm Detachable Handle ",610909,"PCS","",1]
[110,"Wrench T-Type 6-Point 24mm Detachable Handle ",610911,"PCS","",1]
[111,"Wrench 12-Point & Spud End Offset 30mm                                                                                                                                                                                                                         ",611011,"PCS","",2]
[112,"Wrench 12-Point & Spud End Offset 32mm                                                                                                                                                                                                                         ",611012,"PCS","",2]
[113,"Wrench 12-Point & Spud End Offset 36mm                                                                                                                                                                                                                         ",611014,"PCS","",1]
[114,"Wrench, Double Head, Ratchet 12 Pt, 19X24mm",611060,"PCS","",1]
[115,"Wrench, Double Head, Ratchet 12 Pt, 27X30mm",611068,"PCS","",1]
[116,"Wrench, Double Head, Ratchet 12 Pt, 30X32mm",611069,"PCS","",1]
[117,"Wrench Allen Hexagon 4mm Ammech                                                                                                                                                                                                                                ",611247,"PCS","",2]
[118,"Wrench Allen Hexagon 5mm                                                                                                                                                                                                                                       ",611248,"PCS","",2]
[119,"Wrench Allen Hexagon 6mm                                                                                                                                                                                                                                       ",611249,"PCS","",2]
[120,"Wrench Allen Hexagon 8mm                                                                                                                                                                                                                                       ",611251,"PCS","",2]
[121,"Wrench Allen Hexagon 10mm                                                                                                                                                                                                                                      ",611253,"PCS","",2]
[122,"Wrench Allen Hexagon 12mm                                                                                                                                                                                                                                      ",611254,"PCS","",2]
[123,"Wrench Set Allen Hexagon 2.5-12mm 8'S Ammech                                                                                                                                                                                                                   ",611281,"SET","",2]
[124,"Wrench Set Allen Hexagon 2.5-12mm 8'S                                                                                                                                                                                                                          ",611281,"SET","",1]
[125,"Hexagon Bit Set, 6Bits, 3-10mm, 6'S",611287,"SET","",1]
[126,"Hexagon Bit Set, 6Bits, 6-17mm, 6'S",611288,"SET","",1]
[127,"Wrench Pipe Straight Heavy-Duty 150mm                                                                                                                                                                                                                          ",611301,"PCS","",2]
[128,"Wrench Adjustable Heavy-Duty 100mm                                                                                                                                                                                                                             ",611331,"PCS",{"$f":"IF(OR(ISBLANK(F133),ISBLANK(G133)),\"\",F133-G133)","v":""},1]
[129,"Wrench Adjustable Heavy-Duty 150mm  Ammech                                                                                                                                                                                                                     ",611332,"PCS","",2]
[130,"Wrench Adjustable Heavy-Duty 250mm  Ammech                                                                                                                                                                                                                     ",611334,"PCS","",1]
[131,"Wrench Adjustable Heavy-Duty 450mm  Ammech                                                                                                                                                                                                                     ",611337,"PCS","",1]
[132,"Plier Combination Slip-Joint 200mm                                                                                                                                                                                                                             ",611602,"PRS","",1]
[133,"Plier Water-Pump 250mm                                                                                                                                                                                                                                         ",611626,"PRS","",1]
[134,"Plier Heavy Water-Pump 300mm                                                                                                                                                                                                                                   ",611631,"PRS","",1]
[135,"Plier Vise-Grip Combination 175mm                                                                                                                                                                                                                              ",611642,"PRS","",2]
[136,"Plier Side-Cutting Insulated 150mm                                                                                                                                                                                                                             ",611657,"PRS","",1]
[137,"Plier Side-Cutting Insulated 175mm                                                                                                                                                                                                                             ",611658,"PRS","",1]
[138,"Insulated Side Cutting Pliers 175 mm Length",611658,"PRS","",1]
[139,"Plier Round-Nose Plastic Covered Handle 150mm                                                                                                                                                                                                                  ",611682,"PRS","",1]
[140,"Plier Long Needle Nose Plastic Covered Handle 150mm                                                                                                                                                                                                            ",611687,"PRS","",1]
[141,"Insulated Round Nose Pliers 160 mm Length",611689,"PRS","",1]
[142,"Plier Long-Nose & Side-Cutting Plastic Covered Handle 150mm                                                                                                                                                                                                    ",611695,"PRS","",1]
[143,"Plier Diagonal Cutting Plastic Covered Handle 125mm                                                                                                                                                                                                            ",611711,"PRS","",1]
[144,"Plier Diagonal-Cut Heavy-Duty Plastic Covered Handle 175mm                                                                                                                                                                                                     ",611718,"PRS","",1]
[145,"Insulated Diagonal Insulation Strippers 160 mm Length",611723,"PRS","",1]
[146,"Insulated Diagonal Cutters 125 mm Length",611725,"PRS","",1]
[147,"Insulated Diagonal Cutters 180 mm Length",611728,"PRS","",1]
[148,"Bulldog End Cutting Pliers, 150mm",611750,"PRS","",1]
[149,"Stop Ring Plier, External,Straight, 3-15mm",611801,"PRS","",1]
[150,"Stop Ring Plier, External,Straight, 14-40mm",611803,"PRS","",1]
[151,"Stop Ring Plier, External,Straight, 50-100mm",611805,"PRS","",1]
[152,"Stop Ring Plier, External,Straight, 130-200mm",611807,"PRS","",1]
[153,"Stop Ring Plier, External,Bent, 3-15mm",611811,"PRS","",1]
[154,"Stop Ring Plier, External,Bent, 19-40",611813,"PRS","",1]
[155,"Stop Ring Plier, External,Bent, 50-100",611815,"PRS","",1]
[156,"Stop Ring Plier, External,Bent, 130-200mm",611817,"PRS","",1]
[157,"Stop Ring Plier, Internal, Straight, 6-15mm",611821,"PRS","",1]
[158,"Stop Ring Plier, Internal, Straight, 15-25mm",611822,"PRS","",1]
[159,"Stop Ring Plier, Internal, Straight, 32-80mm",611824,"PRS","",1]
[160,"Stop Ring Plier, Internal, Straight, 50-100mm",611825,"PRS","",1]
[161,"Stop Ring Plier, Internal, Straight, 130-200mm",611827,"PRS","",1]
[162,"Stop Ring Plier, Internal, Bent, 3-15mm",611831,"PRS","",1]
[163,"Stop Ring Plier, Internal, Bent, 12-25mm",611832,"PRS","",1]
[164,"Stop Ring Plier, Internal, Bent, 19-65mm",611833,"PRS","",1]
[165,"Stop Ring Plier, Internal, Bent, 32-80mm",611834,"PRS","",1]
[166,"Stop Ring Plier, Internal, Bent, 50-100mm",611835,"PRS","",1]
[167,"Stop Ring Plier, Internal, Bent, 100-130mm",611836,"PRS","",1]
[168,"Cloth Scissors, 225mm",611842,"PRS","",2]
[169,"Knife Electrician'S                                                                                                                                                                                                                                            ",611851,"PCS","",1]
[170,"Metal Bench Shears, 300mm Blade",611963,"SET","",1]
[171,"Gasket And Washer Cutter, Set",612001,"SET","",1]
[172,"Packing Hook Set, Complete",612004,"SET","",1]
[173,"Cutting & Flaring Tool Set 5 To 12mm With Cutter                                                                                                                                                                                                               ",612030,"SET","",1]
[174,"Screwdriver Wood Handle Heavy-Duty Slotted 5.5X75mm                                                                                                                                                                                                            ",612202,"PCS","",2]
[175,"Screwdriver Wood Handle Heavy-Duty Slotted 6X100mm                                                                                                                                                                                                             ",612203,"PCS","",2]
[176,"Screwdriver Wood Handle Heavy-Duty Slotted 7X125mm                                                                                                                                                                                                             ",612204,"PCS","",2]
[177,"Screwdriver Wood Handle Heavy-Duty Slotted 8X150mm                                                                                                                                                                                                             ",612205,"PCS","",2]
[178,"Screwdriver Wood Handle Heavy-Duty Slotted 9X200mm                                                                                                                                                                                                             ",612206,"PCS","",2]
[179,"Screwdriver Wood Handle Heavy-Duty Phillips No.1 75mm                                                                                                                                                                                                          ",612212,"PCS","",2]
[180,"Screwdriver Wood Handle Heavy-Duty Phillips No.2 100mm                                                                                                                                                                                                         ",612213,"PCS","",2]
[181,"Screwdriver Wood Handle Heavy-Duty Phillips No.3 150mm                                                                                                                                                                                                         ",612214,"PCS","",2]
[182,"Screwdriver Wood Handle Heavy-Duty Phillips No.4 200mm                                                                                                                                                                                                         ",612215,"PCS","",2]
[183,"Screwdriver Plastic Handle Insulated Heavy Duty  Blade Length 50mm Slotted 4.5 mm Blade",612261,"PCS","",2]
[184,"Screwdriver Plastic Handle Heavy-Duty Slotted 5.5X75mm                                                                                                                                                                                                         ",612262,"PCS","",2]
[185,"Screwdriver Plastic Handle Heavy-Duty Slotted 6X100mm                                                                                                                                                                                                          ",612263,"PCS","",2]
[186,"Screwdriver Plastic Handle Heavy-Duty Slotted 8X150mm                                                                                                                                                                                                          ",612265,"PCS","",2]
[187,"Screwdriver Plastic Handle Insulated Heavy Duty  Blade Length 200mm Slotted 9.0 mm Blade",612266,"PCS","",2]
[188,"Screwdriver Insulated Handle Heavy-Duty Slotted 10X250mm                                                                                                                                                                                                       ",612267,"PCS","",2]
[189,"Screwdriver Insulated Handle Heavy-Duty Slotted 10X300mm                                                                                                                                                                                                       ",612268,"PCS","",2]
[190,"Screwdriver Plastic Handle Insulated Heavy Duty  Blade Length 75mm Philips No.00",612271,"PCS","",2]
[191,"Screwdriver Plastic Handle Insulated Heavy Duty  Blade Length 75mm Philips No.0",612272,"PCS","",2]
[192,"Screwdriver Plastic Handle Heavy-Duty Phillips No.1 75mm                                                                                                                                                                                                       ",612273,"PCS",{"$f":"IF(OR(ISBLANK(F197),ISBLANK(G197)),\"\",F197-G197)","v":""},2]
[193,"Screwdriver Plastic Handle Heavy-Duty Phillips No.2 100mm                                                                                                                                                                                                      ",612274,"PCS","",2]
[194,"Screwdriver Plastic Handle Heavy-Duty Phillips No.3 150mm                                                                                                                                                                                                      ",612275,"PCS","",2]
[195,"Screwdriver Stubby Plastic Handle Slotted 38mm                                                                                                                                                                                                                 ",612324,"PCS","",1]
[196,"Screwdriver Stubby Plastic Handle Phillips#1 38mm                                                                                                                                                                                                              ",612325,"PCS","",1]
[197,"Screwdriver Stubby Plastic Hanle 38 mm Blade Length Philips No.2",612326,"PCS","",1]
[198,"Nut Driver Hexagon Opening 6.0mm                                                                                                                                                                                                                               ",612354,"PCS","",1]
[199,"Nut Driver Hexagon Opening 10mm                                                                                                                                                                                                                                ",612358,"PCS","",1]
[200,"Hexagon Nut Driver Set , 5-12mm, Set",612366,"SET","",1]
[201,"Screwdriver Set Watch Maker'S 6'S Slotted                                                                                                                                                                                                                      ",612411,"SET","",2]
[202,"Screwdriver Set Watch Maker'S 6'S Slotted & Phillips                                                                                                                                                                                                           ",612412,"SET","",1]
[203,"Screwdriver Set Spark-Testing Low-Voltage 6'S                                                                                                                                                                                                                  ",612416,"SET","",2]
[204,"Screwdriver Set Spark-Testing High-Voltage 6'S                                                                                                                                                                                                                 ",612417,"SET","",1]
[205,"Hammer Ball Pein Handled No.1-1/2 (675Grm)                                                                                                                                                                                                                     ",612506,"PCS","",2]
[206,"Hammer Ball Pein Handled No.3 (1350Grm)                                                                                                                                                                                                                        ",612509,"PCS","",2]
[207,"Hammer Blacksmith Double Face With Handle No.3 (1.3Kgs)                                                                                                                                                                                                        ",612522,"PCS","",2]
[208,"Hammer Testing Handled No.3/4 (330Grm)                                                                                                                                                                                                                         ",612603,"PCS","",1]
[209,"Hammer Copper Handled No.2 (1Kg)                                                                                                                                                                                                                               ",612644,"PCS","",2]
[210,"Hammer Plastic Replaceable With Handle No.2 (0.98Kgs)                                                                                                                                                                                                          ",612724,"PCS","",1]
[211,"Hammer Handle Wood 300mm                                                                                                                                                                                                                                       ",612775,"PCS","",2]
[212,"Hammer Handle Wood 900mm                                                                                                                                                                                                                                       ",612779,"PCS","",1]
[213,"Steel Wedge For Hammer 7X16mm                                                                                                                                                                                                                                  ",612791,"PCS","",10]
[214,"Steel Wedge For Hammer 14X16mm                                                                                                                                                                                                                                 ",612792,"PCS","",10]
[215,"Steel Wedge For Hammer 20X27mm                                                                                                                                                                                                                                 ",612793,"PCS","",3]
[216,"Crowbar, 950mm",612882,"PCS","",1]
[217,"Chisel Cold 13X160mm                                                                                                                                                                                                                                           ",612903,"PCS","",2]
[218,"Chisel Cold 22X200mm                                                                                                                                                                                                                                           ",612906,"PCS","",2]
[219,"Chisel Cape 3X150mm                                                                                                                                                                                                                                            ",612911,"PCS","",1]
[220,"Chisel Cape 4.5X150mm                                                                                                                                                                                                                                          ",612912,"PCS","",1]
[221,"Chisel Cape 9X200mm                                                                                                                                                                                                                                            ",612915,"PCS","",1]
[222,"Chisel Offset Caulking 200mm                                                                                                                                                                                                                                   ",612932,"PCS","",1]
[223,"Chisel Offset Caulking 250mm                                                                                                                                                                                                                                   ",612933,"PCS","",1]
[224,"Punching Tool Set, Combination Size",613056,"SET","",1]
[225,"Punching Tool Set Dies & Table 6-38mm 16'S                                                                                                                                                                                                                     ",613056,"SET","",1]
[226,"Punch Set Center Combination 150mm 12Pcs/Set                                                                                                                                                                                                                   ",613066,"SET","",1]
[227,"Punch Set Center Combination 150mm 12Pcs/Set                                                                                                                                                                                                                   ",613066,"SET","",1]
[228,"Figure Set Steel 9'S 8mm                                                                                                                                                                                                                                       ",613123,"SET","",1]
[229,"Anvil Cast Steel 40Kgs                                                                                                                                                                                                                                         ",613187,"PCS","",1]
[230,"Scraper Angle Double Ended 250mm                                                                                                                                                                                                                               ",613242,"PCS","",2]
[231,"Scriber Steel 250mm                                                                                                                                                                                                                                            ",613266,"PCS","",2]
[232,"Frame Hacksaw Adjustable Horizontal 250-300mm                                                                                                                                                                                                                  ",613427,"PCS","",2]
[233,"Hacksaw Blade, Carbon Steel, 24 Teeth /In.",613432,"DZN","",3]
[234,"Blade Hacksaw Hand Carbon Steel 250mmx18Teeth                                                                                                                                                                                                                  ",613432,"DOZ","",3]
[235,"Electrician'S Tool Bag, Leather",613695,"PCS","",1]
[236,"Hydraulic Pipe Bender, Portable, 10T, 60Kg, Std",613711,"SET","",1]
[237,"C-Type Screw Clamp, 38mm",613717,"PCS","",1]
[238,"C-Type Screw Clamp, 75mm",613719,"PCS","",1]
[239,"Clamp Screw C-Type 100mm                                                                                                                                                                                                                                       ",613720,"PCS","",3]
[240,"C-Type Screw Clamp, 125mm",613721,"PCS","",1]
[241,"C-Type Screw Clamp, 200mm",613723,"PCS","",1]
[242,"C-Type Screw Clamp, 300mm",613725,"PCS","",1]
[243,"Hand Vise, 25mm Opening",613751,"PCS","",1]
[244,"Hand Vise, 38mm Opening",613753,"PCS","",1]
[245,"Parallel Bench Vise, Round Cylinder, 153mm Jaw Width",613784,"PCS","",1]
[246,"Spanner Drum Opening                                                                                                                                                                                                                                           ",614001,"PCS","",1]
[247,"Pump Hand Plastic For Pail Can                                                                                                                                                                                                                                 ",614010,"PCS","",2]
[248,"Steel Structure Clamp, 1Ton, 1-13mm Opening",614037,"PCS","",2]
[249,"File Flat Double-Cut Bastard 200mm                                                                                                                                                                                                                             ",614302,"PCS","",2]
[250,"File Flat Double-Cut Second-Cut 200mm                                                                                                                                                                                                                          ",614309,"PCS","",2]
[251,"File Flat Double-Cut Smooth 200mm                                                                                                                                                                                                                              ",614316,"PCS","",2]
[252,"File Flat Double-Cut Smooth 300mm                                                                                                                                                                                                                              ",614318,"PCS","",2]
[253,"File Half-Round Double-Cut Bastard 200mm                                                                                                                                                                                                                       ",614329,"PCS","",2]
[254,"File Half-Round Double-Cut Second-Cut 200mm                                                                                                                                                                                                                    ",614336,"PCS","",2]
[255,"File Half-Round Double-Cut Smooth 300mm                                                                                                                                                                                                                        ",614345,"PCS","",2]
[256,"File Round Double-Cut Second-Cut 200mm                                                                                                                                                                                                                         ",614364,"PCS",{"$f":"IF(OR(ISBLANK(F261),ISBLANK(G261)),\"\",F261-G261)","v":""},1]
[257,"File Round Double-Cut Smooth 300mm                                                                                                                                                                                                                             ",614373,"PCS","",1]
[258,"File Triangle Double-Cut Bastard 300mm                                                                                                                                                                                                                         ",614418,"PCS","",1]
[259,"File Triangle Double-Cut Second-Cut 200mm                                                                                                                                                                                                                      ",614423,"PCS","",1]
[260,"File Triangle Double-Cut Second-Cut 300mm                                                                                                                                                                                                                      ",614425,"PCS","",1]
[261,"File Triangle Double-Cut Smooth 300mm                                                                                                                                                                                                                          ",614432,"PCS","",1]
[262,"File Needle Set 200mm 8'S Second-Cut                                                                                                                                                                                                                           ",614534,"SET","",1]
[263,"File Handle, 125mm",614561,"PCS","",10]
[264,"Hoist Chain Spur-Gear 1/2Ton 2.5Mtr With Certificate                                                                                                                                                                                                                       ",615006,"SET","",2]
[265,"Hoist Chain Spur-Gear 1Ton 2.5Mtr With Certificate                                                                                                                                                                                                                                                                                                ",615007,"SET","",2]
[266,"Hoist Chain Spur-Gear 2Ton 3Mtr With Certificate                                                                                                                                                                                                                                                                                                  ",615009,"SET","",1]
[267,"Torch Gas Compact Complete Set With Burner                                                                                                                                                                                                                     ",617016,"SET","",1]
[268,"Refrigerant Gas Leak Detector",617020,"SET","",1]
[269,"Leak Detector Super Color Check 300Cc 6'S                                                                                                                                                                                                                      ",617026,"SET","",1]
[270,"Drill H.S.S. Straight Shank Twist 1.0mm                                                                                                                                                                                                                        ",630108,"PCS","",6]
[271,"Drill H.S.S. Straight Shank Twist 2.0mm                                                                                                                                                                                                                        ",630118,"PCS","",6]
[272,"Drill H.S.S. Straight Shank Twist 3.0mm                                                                                                                                                                                                                        ",630128,"PCS","",6]
[273,"Drill H.S.S. Straight Shank Twist 4.0mm                                                                                                                                                                                                                        ",630138,"PCS","",6]
[274,"Drill H.S.S. Straight Shank Twist 4.5mm                                                                                                                                                                                                                        ",630143,"PCS","",6]
[275,"Drill H.S.S. Straight Shank Twist 5.0mm → Neubro/Germany                                                                                                                                                                                                     ",630148,"PCS","",6]
[276,"Drill H.S.S. Straight Shank Twist 5.5mm → Neubro/Germany                                                                                                                                                                                                     ",630153,"PCS","",6]
[277,"Drill H.S.S. Straight Shank Twist 6.0mm → Neubro/Germany                                                                                                                                                                                                     ",630158,"PCS","",6]
[278,"Drill H.S.S. Straight Shank Twist 7.0mm → Neubro/Germany                                                                                                                                                                                                     ",630168,"PCS","",6]
[279,"Drill H.S.S. Straight Shank Twist 7.5mm → Neubro/Germany                                                                                                                                                                                                     ",630173,"PCS","",6]
[280,"Drill H.S.S. Straight Shank Twist 8.0mm → Neubro/Germany                                                                                                                                                                                                     ",630178,"PCS","",6]
[281,"Drill H.S.S. Straight Shank Twist 8.5mm → Neubro/Germany                                                                                                                                                                                                     ",630183,"PCS","",6]
[282,"Drill H.S.S. Straight Shank Twist 9.0mm → Neubro/Germany                                                                                                                                                                                                     ",630188,"PCS","",6]
[283,"Drill H.S.S. Straight Shank Twist 9.5mm → Neubro/Germany                                                                                                                                                                                                     ",630193,"PCS","",6]
[284,"Drill H.S.S. Straight Shank Twist 10.0mm → Neubro/Germany                                                                                                                                                                                                     ",630198,"PCS","",6]
[285,"Drill H.S.S. Straight Shank Twist 10.5mm → Neubro/Germany                                                                                                                                                                                                     ",630199,"PCS","",6]
[286,"Drill H.S.S. Straight Shank Twist 11.0mm → Neubro/Germany                                                                                                                                                                                                     ",630201,"PCS","",4]
[287,"Drill H.S.S. Straight Shank Twist 11.5mm → Neubro/Germany                                                                                                                                                                                                     ",630202,"PCS","",4]
[288,"Drill H.S.S. Straight Shank Twist 12.0mm → Neubro/Germany                                                                                                                                                                                                     ",630203,"PCS","",4]
[289,"Drill H.S.S. Straight Shank Twist 12.5mm → Neubro/Germany                                                                                                                                                                                                     ",630204,"PCS","",4]
[290,"Drill H.S.S. Straight Shank Twist 13.0mm → Neubro/Germany                                                                                                                                                                                                     ",630205,"PCS","",4]
[291,"Drill H.S.S. Morse Taper Shank Twist 14.0mm                                                                                                                                                                                                                    ",630309,"PCS","",2]
[292,"Drill H.S.S. Morse Taper Shank Twist 15.0mm                                                                                                                                                                                                                    ",630311,"PCS","",1]
[293,"Drill H.S.S. Morse Taper Shank Twist 16.0mm                                                                                                                                                                                                                    ",630313,"PCS","",1]
[294,"Drill H.S.S. Morse Taper Shank Twist 17.0mm                                                                                                                                                                                                                    ",630315,"PCS","",1]
[295,"Drill H.S.S. Morse Taper Shank Twist 18.0mm                                                                                                                                                                                                                    ",630317,"PCS","",1]
[296,"Drill H.S.S. Morse Taper Shank Twist 19.0mm                                                                                                                                                                                                                    ",630319,"PCS","",1]
[297,"Drill Center, Type A, 6.3mm, 60° Angle                                                                                                                                                                                                                ",630507,"PCS","",1]
[298,"Tap Hand Metric Coarse M8.0Xp1.25mm 3'S Carbon Steel                                                                                                                                                                                                           ",631020,"SET","",1]
[299,"Tap Hand Metric Coarse M9.0Xp1.25mm 3'S Carbon Steel                                                                                                                                                                                                           ",631021,"SET","",1]
[300,"Tap Hand Metric Coarse M10Xp1.50mm 3'S Carbon Steel                                                                                                                                                                                                            ",631022,"SET","",1]
[301,"Tap Hand Metric Coarse M12Xp1.75mm 3'S Carbon Steel                                                                                                                                                                                                            ",631024,"SET","",1]
[302,"Tap Hand Metric Coarse M14Xp2.00mm 3'S Carbon Steel                                                                                                                                                                                                            ",631025,"SET","",1]
[303,"Tap Hand Metric Coarse M16Xp2.00mm 3'S Carbon Steel                                                                                                                                                                                                            ",631026,"SET","",1]
[304,"Tap Hand Metric Coarse M18Xp2.50mm 3'S Carbon Steel                                                                                                                                                                                                            ",631027,"SET","",1]
[305,"Tap Hand Metric Coarse M20Xp2.50mm 3'S Carbon Steel                                                                                                                                                                                                            ",631028,"SET","",1]
[306,"Tap Hand Metric Coarse M22Xp2.50mm 3'S Carbon Steel                                                                                                                                                                                                            ",631029,"SET","",1]
[307,"Tap Hand Metric Coarse M24Xp3.00mm 3'S Carbon Steel                                                                                                                                                                                                            ",631030,"SET","",1]
[308,"Die Round Adj Metric Coarse M6.0Xp1.00Xod20mm Carbon Steel                                                                                                                                                                                                     ",631718,"PCS","",1]
[309,"Die Round Adj Metric Coarse M8.0Xp1.25Xod25mm Carbon Steel                                                                                                                                                                                                     ",631720,"PCS","",1]
[310,"Die Round Adj Metric Coarse M10Xp1.50Xod38mm Carbon Steel                                                                                                                                                                                                      ",631722,"PCS","",1]
[311,"Die Round Adj Metric Coarse M12Xp1.75Xod38mm Carbon Steel                                                                                                                                                                                                      ",631724,"PCS","",1]
[312,"Die Round Adj Metric Coarse M14Xp2.00Xod38mm Carbon Steel                                                                                                                                                                                                      ",631725,"PCS","",1]
[313,"Die Round Adj Metric Coarse M16Xp2.00Xod50mm Carbon Steel                                                                                                                                                                                                      ",631726,"PCS","",1]
[314,"Die Round Adj Metric Coarse M18Xp2.50Xod50mm Carbon Steel                                                                                                                                                                                                      ",631727,"PCS","",1]
[315,"Die Round Adj Metric Coarse M20Xp2.50Xod50mm Carbon Steel                                                                                                                                                                                                      ",631728,"PCS","",1]
[316,"Die Round Adj Metric Coarse M22Xp2.50Xod50mm Carbon Steel                                                                                                                                                                                                      ",631729,"PCS","",1]
[317,"Die Round Adj Metric Coarse M24Xp3.00Xod50mm Carbon Steel                                                                                                                                                                                                      ",631730,"PCS","",1]
[318,"Screw Plate Set Straight Pipe Thread #R1 1/8 To 1/2 10Pc/Set                                                                                                                                                                                                   ",632251,"SET","",1]
[319,"Keyless Drill Chuck 13mm",632346,"PCS","",1]
[320,"Drill Sleeve Mt#1X2                                                                                                                                                                                                                                            ",632351,"PCS",{"$f":"IF(OR(ISBLANK(F325),ISBLANK(G325)),\"\",F325-G325)","v":""},1]
[321,"Drill Sleeve Mt#2X3",632353,"PCS","",1]
[322,"Drill Sleeve Mt#3X4",632355,"PCS","",1]
[323,"Drill Sleeve Mt#4X5",632358,"PCS","",1]
[324,"Drill Sleeve Mt#5X6",632360,"PCS","",1]
[325,"Drifts, Improved Type 2",632395,"PCS","",1]
[326,"Drifts, Improved Type 3",632396,"PCS","",1]
[327,"Rolling Center Mt#1 60Deg , ",632421,"PCS","",1]
[328,"Extractor Screw Set 6'S For Drill Size 2.0-10.3mm                                                                                                                                                                                                              ",632487,"SET","",1]
[329,"Tool Bit Plate Cutting-Off Hss 3.2X12.7X90mm                                                                                                                                                                                                                   ",632651,"PCS","",2]
[330,"Tool Bit Tip Welded Hss Point Nose Straight-16 16X16X140mm                                                                                                                                                                                                     ",633002,"PCS","",1]
[331,"Tool Bit Tip Welded Hss Knife Right Hand-16 16X16X140mm                                                                                                                                                                                                        ",633007,"PCS","",1]
[332,"Tool Bit Tip Welded Hss Knife Left Hand-16 16X16X140mm                                                                                                                                                                                                         ",633012,"PCS","",1]
[333,"Tool Bit Tip Welded Hss Spring Finishing-16 16X16X140mm                                                                                                                                                                                                        ",633037,"PCS","",1]
[334,"Tool Bit Tip Welded Hss Parting-16 16X16X140mm                                                                                                                                                                                                                 ",633042,"PCS","",1]
[335,"Tool Bit Tip Welded Hss Boring-16 16X16X180mm                                                                                                                                                                                                                  ",633057,"PCS","",1]
[336,"Tool Bit Tip Welded Hss Bore Finishing-16 16X16X180mm                                                                                                                                                                                                          ",633062,"PCS","",1]
[337,"Tool Bit Tip Welded Hss Internal Thread-16 16X16X180mm                                                                                                                                                                                                         ",633072,"PCS","",1]
[338,"Holder Tool Bit 3-Way For 10mm Square Shank Bit                                                                                                                                                                                                                ",633202,"PCS","",1]
[339,"Holder Tool Bit 3-Way For 13mm Square Shank Bit                                                                                                                                                                                                                ",633203,"PCS","",1]
[340,"Thread Restorer, File Type, Metric",633301,"PCS","",1]
[341,"Wrench Tap Straight Type For M1-10 200mm                                                                                                                                                                                                                       ",633402,"PCS","",1]
[342,"Stock For Round Die 50mm                                                                                                                                                                                                                                       ",633425,"PCS","",1]
[343,"Hole Saw, 25mm Hole Dia. X 6mm Arbor",633514,"PCS","",1]
[344,"Hole Saw, 50mm Hole Dia. X 6mm Arbor",633539,"PCS","",1]
[345,"Caliper Vernier Stainless Steel Metric 300mm                                                                                                                                                                                                                   ",650504,"PCS","",1]
[346,"Vernier Depth Gauge, 300mm",650539,"PCS","",1]
[347,"Screw Pitch Gauge #137 Whitworth 55Deg 4-60 Threads                                                                                                                                                                                                            ",650601,"PCS","",1]
[348,"Screw Pitch Gauge #156 Metric 60Deg 0.25-2.5 Pitch                                                                                                                                                                                                             ",650602,"PCS","",1]
[349,"Rule Convex Steel Metric 2Mtr                                                                                                                                                                                                                                  ",650821,"PCS","",4]
[350,"Tape Oil Gauge Stainless Steel Tape Metric 30Mtr                                                                                                                                                                                               ",650873,"PCS","",3]
[351,"Precision Try Square, With Base, 300X200",650973,"PCS","",1]
[352,"Dial Gauge Standard 0-10mm 0.01mm Grad. Water-Proof                                                                                                                                                                                                            ",651404,"PCS","",1]
[353,"Dial Gauge Stand, Fixed Base, 85X120X31mm                                                                                                                                               ",651422,"PCS","",1]
[354,"Gauge Pointer Puller                                                                                                                                                                                                                                           ",651551,"PCS","",1]
[355,"Thermometer Maxi-Mini U Shape With Magnet -20 To +50C Deg                                                                                                                                                                                                      ",651706,"SET","",1]
[356,"Thermometer Test In Brass Case 0-500Deg.C 300mm ",651723,"SET","",2]
[357,"Infrared Temperature Measurement Device Model: \"Semitemp 6080 B1\" Range: -32⁰C To 760⁰C Maker: Sika",651803,"PCS","",1]
[358,"Inspection Mirror, 50mmø, W/ Extension Shaft",652703,"PCS","",1]
[359,"Desoldering Gun Vacuum Suction Type",795178,"PCS","",1]
[360,"Milling Vises, 132mm Jaw Width, F-Type",613742,"PCS","",1]
[361,"Hydrometer For Lead/Acid Batteries","792661","PCS","",1]
[362,"Battery Water Syringe","792666","PCS","",1]
[363,"Tape Convex 3.5",650822,"PCS","",2]
[364,"Tape Convex5.0",650823,"PCS","",1]

{"sheet":"Pipes & Valves","index":4,"n_rows":114,"n_cols":9,"rows_kept":114,"cut":false,"hidden":false,"merged":[[3,0,3,7],[1,0,1,7],[0,1,0,7]]}
[null,{"$f":"'Tools Electrical'!B1:H1","v":"SAFETY, HEALTH, ENVIRONMENT AND QUALITY MANAGEMENT SYSTEM\n\nQUARTERLY STORES\n\nREPORTING FORMS MANUAL"},null,null,null,null,null,null,{"$f":"'Tools Electrical'!J1","v":"Form : 7.2.4\nDate : 14-Aug-25\nRev : 10.0\nApp By : DPA"}]
["BUDGET CODE   410805"]
[]
["Update in ROB and Applicable to Vessel Column only. ROB includes items in use. The Req Column will reflect the amount to order"]
[null,"Description","IMPA","Unit","Req","Stock","ROB","Applicable to Vessel","Comments / Remarks"]
[1,"Steel Round Hot-Rolled 19mm 2.75mtr                                                                                                                                                                                                                            ",6702,"LGH",{"$f":"IF(OR(ISBLANK(F6),ISBLANK(G6)),\"\",F6-G6)","v":""},4]
[2,"Brass Round 30mm 2mtr , ",6721,"LGH","",1]
[3,"Brass Round 50mm 1/2 mtr                                                                                                                                                                                                                                       ",6721,"LGH","",1]
[4,"Brass Plate 365X1200X0.1mm ,",6722,"SHT","",1]
[5,"Brass Hexagon 32mm 1mtr                                                                                                                                                                                                                                        ",6722,"LGH","",1]
[6,"Elbow Steel Butt-Welding 45Deg Short Radius H.P. Sch-40 32A                                                                                                                                                                                                    ",7314,"PCS","",2]
[7,"Elbow Steel Butt-Welding 45Deg Short Radius H.P. Sch-40 40A                                                                                                                                                                                                    ",7314,"PCS","",2]
[8,"Elbow Steel Butt-Welding 45Deg Short Radius H.P. Sch-40 50A                                                                                                                                                                                                    ",7314,"PCS","",2]
[9,"Steel Round Hot-Rolled 6mm 5.5mtr                                                                                                                                                                                                                              ",670251,"LGH","",6]
[10,"Steel Round Hot-Rolled 9mm 5.5mtr                                                                                                                                                                                                                              ",670253,"LGH","",6]
[11,"Steel Round Hot-Rolled 12mm 5.5mtr                                                                                                                                                                                                                             ",670254,"LGH","",4]
[12,"Steel Round Hot-Rolled 16mm 5.5mtr                                                                                                                                                                                                                             ",670256,"LGH","",4]
[13,"Steel Flat Hot-Rolled 3X32mm 5.5mtr                                                                                                                                                                                                                            ",670405,"LGH","",4]
[14,"Steel Flat Hot-Rolled 4.5X32mm 5.5mtr                                                                                                                                                                                                                          ",670409,"LGH","",4]
[15,"Steel Flat Hot-Rolled 6X25mm 5.5mtr                                                                                                                                                                                                                            ",670413,"LGH","",2]
[16,"Steel Equal Angle Hot-Rolled 30X30X3mm 5.5mtr                                                                                                                                                                                                                  ",670603,"LGH","",6]
[17,"Steel Equal Angle Hot-Rolled 40X40X3mm 5.5mtr                                                                                                                                                                                                                  ",670605,"LGH","",6]
[18,"Steel Equal Angle Hot-Rolled 40X40X5mm 5.5mtr                                                                                                                                                                                                                  ",670606,"LGH","",6]
[19,"Steel Equal Angles, Hot Rolled, 50X50X6mm (6M/Length) ",670608,"PCS","",6]
[20,"Steel Equal Angle Hot-Rolled 65X65X8mm 5.5mtr                                                                                                                                                                                                                  ",670610,"LGH","",2]
[21,"Steel Plate Ungalv Hot-Rolled 1.0X914X1829mm                                                                                                                                                                                                                   ",670703,"SHT","",1]
[22,"Steel Plate Ungalv Hot-Rolled 1.6X914X1829mm                                                                                                                                                                                                                   ",670705,"SHT","",1]
[23,"Steel Plate Ungalv Hot-Rolled 2.3X914X1829mm                                                                                                                                                                                                                   ",670707,"SHT","",1]
[24,"Steel Plate Ungalv Hot-Rolled 3.2X914X1829mm                                                                                                                                                                                                                   ",670708,"SHT","",1]
[25,"Steel Plate Ungalv Hot-Rolled 6.0X914X1829mm                                                                                                                                                                                                                   ",670710,"SHT","",1]
[26,"Steel Checker Plate Hot-Rolled 4.5X914X1829mm                                                                                                                                                                                                                  ",670802,"SHT","",1]
[27,"Wire Ungalvanized Iron 1.0mm → Offer: Galvd                                                                                                                                                                                                                   ",671165,"KGS","",1]
[28,"Wire Copper 0.8mm → Offer: 1mm                                                                                                                                                                                                                                ",671856,"KGS","",5]
[29,"Copper Sheet 1.0X365X1200mm                                                                                                                                                                                                                                    ",671906,"SHT","",1]
[30,"Copper Sheet 2.0X365X1200mm                                                                                                                                                                                                                                    ",671912,"SHT","",1]
[31,"Brass Round 10mm 3mtr",672111,"LGH","",1]
[32,"Brass Plate 365X1200X0.3mm",672254,"SHT","",1]
[33,"Brass Plate 365X1200X0.35mm (0.40mm)",672255,"SHT","",1]
[34,"Pipe Carbon Steel Stpg Erw Sch-40 1/2\" (15A)X5.5mtr",710204,"LGH","",2]
[35,"Pipe Carbon Steel Stpg Erw Sch-40 3/4\" (20A)X5.5mtr",710205,"LGH","",2]
[36,"Pipe Carbon Steel Stpg Erw Sch-40 1\" (25A)X5.5mtr",710206,"LGH","",2]
[37,"Pipe Carbon Steel Stpg Erw Sch-40 1-1/4\" (32A)X5.5mtr",710207,"LGH","",2]
[38,"Pipe Carbon Steel Stpg Erw Sch-40 1-1/2\" (40A)X5.5mtr",710208,"LGH","",2]
[39,"Pipe Carbon Steel Stpg Erw Sch-40 2\" (50A)X5.5mtr",710209,"LGH","",2]
[40,"Pipe Carbon Steel Stpg Erw Sch-40 2-1/2\" (65A)X5.5mtr ",710210,"LGH","",1]
[41,"Pipe Carbon Steel Stpg Erw Sch-40 3\" (80A)X5.5mtr",710211,"LGH","",1]
[42,"Pipe Carbon Steel Stpg Erw Sch-40 4\" (100A)X5.5mtr",710213,"LGH","",1]
[43,"Tube Copper Seamless 8.0X1.2mm 5mtr ,                                                                                                                                                                                              ",711411,"LGH","",1]
[44,"Tube Copper Seamless 9.5X0.8mm 5mtr ,                                                                                                                                                                                                  ",711412,"LGH","",1]
[45,"Elbow Steel Butt-Welding 45Deg Long Radius H.P. Sch-40 15A                                                                                                                                                                                                     ",731401,"PCS","",2]
[46,"Elbow Steel Butt-Welding 45Deg Long Radius H.P. Sch-40 20A                                                                                                                                                                                                     ",731402,"PCS","",2]
[47,"Elbow Steel Butt-Welding 45Deg Long Radius H.P. Sch-40 25A                                                                                                                                                                                                     ",731403,"PCS","",2]
[48,"Elbow Steel Butt-Welding 45Deg Long Radius H.P. Sch-40 32A                                                                                                                                                                                                     ",731404,"PCS","",2]
[49,"Elbow Steel Butt-Welding 45Deg Long Radius H.P. Sch-40 40A                                                                                                                                                                                                     ",731405,"PCS","",2]
[50,"Elbow Steel Butt-Welding 45Deg Long Radius H.P. Sch-40 50A                                                                                                                                                                                                     ",731406,"PCS","",2]
[51,"Elbow Steel Butt-Welding 90Deg Long Radius H.P. Sch-40 15A                                                                                                                                                                                                     ",731451,"PCS","",2]
[52,"Elbow Steel Butt-Welding 90Deg Long Radius H.P. Sch-40 20A                                                                                                                                                                                                     ",731452,"PCS","",2]
[53,"Elbow Steel Butt-Welding 90Deg Long Radius H.P. Sch-40 25A                                                                                                                                                                                                     ",731453,"PCS","",2]
[54,"Elbow Steel Butt-Welding 90Deg Long Radius H.P. Sch-40 32A                                                                                                                                                                                                     ",731454,"PCS","",2]
[55,"Elbow Steel Butt-Welding 90Deg Long Radius H.P. Sch-40 40A                                                                                                                                                                                                     ",731455,"PCS","",2]
[56,"Elbow Steel Butt-Welding 90Deg Long Radius H.P. Sch-40 50A                                                                                                                                                                                                     ",731456,"PCS","",2]
[57,"Elbow Steel Butt-Welding 90Deg Short Radius H.P. Sch-40 25A                                                                                                                                                                                                    ",731501,"PCS","",2]
[58,"Elbow Steel Butt-Welding 90Deg Short Radius H.P. Sch-40 32A                                                                                                                                                                                                    ",731502,"PCS","",2]
[59,"Elbow Steel Butt-Welding 90Deg Short Radius H.P. Sch-40 40A                                                                                                                                                                                                    ",731503,"PCS","",2]
[60,"Elbow Steel Butt-Welding 90Deg Short Radius H.P. Sch-40 50A                                                                                                                                                                                                    ",731504,"PCS","",2]
[61,"Steel Compression Union 6mm",733152,"PCS","",12]
[62,"Steel Compression Union 8mm",733153,"PCS","",12]
[63,"Steel Compression Union 10mm",733154,"PCS","",12]
[64,"Steel Compression Union 12mm",733155,"PCS","",12]
[65,"Steel Compression Union 15mm",733156,"PCS",{"$f":"IF(OR(ISBLANK(F70),ISBLANK(G70)),\"\",F70-G70)","v":""},12]
[66,"Steel Compression Elbow 6mm",733252,"PCS","",12]
[67,"Steel Compression Elbow 8mm",733253,"PCS","",12]
[68,"Steel Compression Elbow 10mm",733254,"PCS","",12]
[69,"Steel Compression Elbow 12mm",733255,"PCS","",12]
[70,"Steel Compression Elbow 15mm",733256,"PCS","",12]
[71,"Steel Compression Tees 6mm",733352,"PCS","",12]
[72,"Steel Compression Tees 8mm",733353,"PCS","",12]
[73,"Steel Compression Tees 10mm",733354,"PCS","",12]
[74,"Steel Compression Tees 12mm",733355,"PCS","",12]
[75,"Steel Compression Tees 15mm",733356,"PCS","",12]
[76,"Steel Sleeve For Compression Tube Fitting 6mm",733452,"PCS","",12]
[77,"Steel Sleeve For Compression Tube Fitting 8mm",733453,"PCS","",12]
[78,"Steel Sleeve For Compr. Tube Fitting 10mm",733454,"PCS","",12]
[79,"Steel Sleeve For Compr. Tube Fitting 12mm",733455,"PCS","",12]
[80,"Steel Sleeve For Compr.Tube Fitting 15mm",733456,"PCS","",12]
[81,"Union Coupling Flared Brass 6X6mm                                                                                                                                                                                                                              ",733701,"PCS","",10]
[82,"Union Coupling Flared Brass 8X8mm                                                                                                                                                                                                                              ",733702,"PCS","",10]
[83,"Union Coupling Flared Brass 10X10mm                                                                                                                                                                                                                            ",733703,"PCS","",10]
[84,"Union Coupling Flared Brass 12X12mm                                                                                                                                                                                                                            ",733704,"PCS","",10]
[85,"Flange Steel Welding Slip-On Flat Face B-2220 5Kg-15mm                                                                                                                                                                                                         ",734602,"PCS","",10]
[86,"Flange Steel Welding Slip-On Flat Face B-2220 5Kg-20mm                                                                                                                                                                                                         ",734603,"PCS","",10]
[87,"Flange Steel Welding Slip-On Flat Face B-2220 5Kg-25mm                                                                                                                                                                                                         ",734604,"PCS","",10]
[88,"Flange Steel Welding Slip-On Flat Face B-2220 5Kg-32mm                                                                                                                                                                                                         ",734605,"PCS","",10]
[89,"Flange Steel Welding Slip-On Flat Face B-2220 5Kg-40mm                                                                                                                                                                                                         ",734606,"PCS","",10]
[90,"Flange Steel Welding Slip-On Flat Face B-2220 5Kg-50mm                                                                                                                                                                                                         ",734607,"PCS","",10]
[91,"Flange Steel Welding Slip-On Flat Face B-2220 5Kg-65mm                                                                                                                                                                                                         ",734608,"PCS","",10]
[92,"Flange Steel Welding Slip-On Flat Face B-2220 5Kg-80mm                                                                                                                                                                                                         ",734609,"PCS","",6]
[93,"Flange Steel Welding Slip-On Flat Face B-2220 5Kg-100mm                                                                                                                                                                                                        ",734610,"PCS","",4]
[94,"Flange Steel Welding Slip-On Flat Face B-2220 10Kg-50mm                                                                                                                                                                                                        ",734627,"PCS","",4]
[95,"Flange Steel Welding Slip-On Flat Face B-2220 10Kg-65mm                                                                                                                                                                                                        ",734628,"PCS","",4]
[96,"Flange Steel Welding Slip-On Flat Face B-2220 10Kg-80mm                                                                                                                                                                                                        ",734629,"PCS","",4]
[97,"Flange Steel Welding Slip-On Flat Face B-2220 10Kg-100mm                                                                                                                                                                                                       ",734630,"PCS","",4]
[98,"Flange Steel Welding Slip-On Flat Face B-2220 10Kg-150mm                                                                                                                                                                                                       ",734632,"PCS","",4]
[99,"Globe Valve Bronze Flanged-End F7301 5Kg-15mm                                                                                                                                                                                                                  ",750121,"PCS","",1]
[100,"Globe Valve Bronze Flanged-End F7301 5Kg-20mm                                                                                                                                                                                                                  ",750122,"PCS","",1]
[101,"Globe Valve Bronze Flanged-End F7301 5Kg-25mm                                                                                                                                                                                                                  ",750123,"PCS","",1]
[102,"Globe Valve Bronze Flanged-End F7301 5Kg-32mm                                                                                                                                                                                                                  ",750124,"PCS","",1]
[103,"Globe Valve Bronze Flanged-End F7301 5Kg-40mm                                                                                                                                                                                                                  ",750125,"PCS","",1]
[104,"Globe Valve Bronze Flanged-End F7303 16Kg-15mm                                                                                                                                                                                                                 ",750141,"PCS","",1]
[105,"Globe Valve Bronze Flanged-End F7303 16Kg-25mm                                                                                                                                                                                                                 ",750143,"PCS","",1]
[106,"Cock Screwed-End Bronze F7387 16Kg-6mm                                                                                                                                                                                                                         ",751631,"PCS","",3]
[107,"Needle Valve Straight Brass Both Female Ends 1/4                                                                                                                                                                                                               ",752152,"PCS","",4]
[108,"Bronze Globe Valve Screwed End 20K-6A                                                                                                                                                                                                                          ",750551,"PCS","",1]
[109,"Bronze Globe Valve Screwed End 20K-10A                                                                                                                                                                                                                         ",750552,"PCS",{"$f":"IF(OR(ISBLANK(F114),ISBLANK(G114)),\"\",F114-G114)","v":""},1]

{"sheet":"Deck Stores","index":5,"n_rows":114,"n_cols":9,"rows_kept":114,"cut":false,"hidden":false,"merged":[[3,0,3,7],[1,0,1,7],[0,1,0,7]]}
[null,{"$f":"'Tools Electrical'!B1:H1","v":"SAFETY, HEALTH, ENVIRONMENT AND QUALITY MANAGEMENT SYSTEM\n\nQUARTERLY STORES\n\nREPORTING FORMS MANUAL"},null,null,null,null,null,null,{"$f":"'Tools Electrical'!J1","v":"Form : 7.2.4\nDate : 14-Aug-25\nRev : 10.0\nApp By : DPA"}]
["BUDGET CODE   410805"]
[]
["Update in ROB and Applicable to Vessel Column only. ROB includes items in use. The Req Column will reflect the amount to order"]
[null,"Description","IMPA","Unit","Req","Stock","ROB","Applicable to Vessel","Comments / Remarks"]
[1,"Wooden Screw Brass Flat Head (+) 15mm. State Brass and Length when ordering",694601,"PCS",{"$f":"IF(OR(ISBLANK(F6),ISBLANK(G6)),\"\",F6-G6)","v":""},30]
[2,"Wooden Screw Brass Flat Head (+) 20mm.State Brass and Length when ordering",694601,"PCS","",30]
[3,"Wooden Screw Brass Flat Head (+) 50mm. State Brass and Length when ordering",694601,"PCS","",30]
[4,"Wire Cup Brush For 4 Sander",510767,"PCS","",20]
[5,"P.P. Cargo Net Sling 3X3mtr 200 Mesh With Canvas",232152,"SET","",2]
[6,"Funnel Plastic Diam 180mm                                                                                                                                                                                                                                                                                   ",172253,"PCS","",1]
[7,"Closed Dust Bin With Metal Insert. No  Plastic Insert",174152,"PCS","",25]
[8,"Toilet Plunger Diam 130mm For Japanese Style                                                                                                                                                                                                                                                                ",174256,"PCS","",2]
[9,"Spring Clamp Mop Complete                                                                                                                                                                                                                                                                                   ",174275,"PCS","",6]
[10,"Head For Spring Clamp Mop                                                                                                                                                                                                                                                                                   ",174277,"PCS","",10]
[11,"Wringer Mop Bucket                                                                                                                                                                                                                                                                                          ",174280,"PCS","",2]
[12,"Squeegee Rubber Handled Blade Width 330mm                                                                                                                                                                                                                                                                   ",174291,"PCS","",2]
[13,"Squeegee Rubber Handled Blade Width 480mm                                                                                                                                                                                                                                                                   ",174293,"PCS","",2]
[14,"Rat Trap Cage Type                                                                                                                                                                                                                                                                                          ",174352,"PCS","",3]
[15,"Gloves Working Cotton Ordinary                                                                                                                                                                                                                                                                              ",190101,"PRS","",80]
[16,"Gloves Working Leather Palm                                                                                                                                                                                                                                                                                 ",190111,"PRS","",80]
[17,"Gloves Rubber Natural Long                                                                                                                                                                                                                                                                                  ",190122,"PRS","",2]
[18,"Gloves Plastic Oil/Acid Resist Short                                                                                                                                                                                                                                                                        ",190131,"PRS","",6]
[19,"Rain Boots With Steel Toecap                                                                                                                                                                                                                                                                                    ",190233,"PRS","",6]
[20,"Rain Boots With Steel Toecap                                                                                                                                                                                                                                                                                    ",190234,"PRS","",6]
[21,"Rain Boots With Steel Toecap                                                                                                                                                                                                                                                                                    ",190235,"PRS","",6]
[22,"Rain Boots With Steel Toecap                                                                                                                                                                                                                                                                                    ",190236,"PRS","",4]
[23,"Rain Suits With Hood Vinyl Size M                                                                                                                                                                                                                                                                           ",190401,"SET","",10]
[24,"Rain Suits With Hood Vinyl Size L                                                                                                                                                                                                                                                                           ",190402,"SET","",12]
[25,"Rain Suits With Hood Vinyl Size Ll                                                                                                                                                                                                                                                                           ",190403,"SET","",6]
[26,"Rope Manila 28mmx200mtr         ",210112,"COIL","",1]
[27,"3 Strand Poly  22mm",211359,"COIL","",1]
[28,"3 Stand Polyprop Heaving Line 10mm",211273,"COIL","",2]
[29,"3 Strand Poly  08mm",211301,"COIL","",1]
[30,"3 Strand Poly 16mm",211356,"COIL","",2]
[31,"Marline Tarred 4mm Diax0.3Kgs                                                                                                                                                                                                                                                                               ",211403,"HANK","",5]
[32,"Seizing Wire Galvanized 3mm Dia                                                                                                                                                                                                                                                                             ",211452,"KGS","",4]
[33,"Shackle D-Type Screw Pin Black 12mm Swl 0.468Ton                                                                                                                                                                                                                                                            ",230324,"PCS","",10]
[34,"Shackle D-Type Screw Pin Black 19mm Swl 1.0Ton                                                                                                                                                                                                                                                              ",230326,"PCS","",10]
[35,"Turnbuckle Frame Black Eye&Eye 6mmx100mm                                                                                                                                                                                                                                                                    ",230501,"PCS","",10]
[36,"Pilot Ladder  9mtr, With Certificate Imo Compliance",232001,"SET","",3]
[37,"Jaccobs Ladder Wood ,Manila, 15 mtr",232026,"PCS","",2]
[38,"Bolt Polyester Waterproof Syn.Canvas 50M Grey",232229,"ROLLS","",1]
[39,"Fid Wood For Rope 300mm                                                                                                                                                                                                                                                                                     ",232324,"PCS","",1]
[40,"Fid Wood For Rope 500mm                                                                                                                                                                                                                                                                                ",232327,"PCS","",1]
[41,"Marline Spike Steel 250mm                                                                                                                                                                                                                                                                                   ",232333,"PCS","",1]
[42,"Marline Spike Steel 450mm                                                                                                                                                                                                                                                                                   ",232337,"PCS","",1]
[43,"Rat Guard For 74mm Dia Rope                                                                                                                                                                                                                                                                                 ",232363,"PCS","",14]
[44,"Oil Funnel Galv W/Strainer 200mm Diam                                                                                                                                                                                                                                                                       ",232604,"PCS","",2]
[45,"Nail Common Wire 25mm                                                                                                                                                                                                                                                                                       ",232756,"KGS","",1]
[46,"Nail Common Wire 50mm                                                                                                                                                                                                                                                                                       ",232760,"KGS","",2]
[47,"Nail Common Wire 90mm                                                                                                                                                                                                                                                                                       ",232763,"KGS","",2]
[48,"Rag Sterilized Light Color                                                                                                                                                                                                                                                                                  ",232908,"KGS","",200]
[49,"Sand Fine 25Kg , Offer : 10Kg / Bag",232950,"BAG","",6]
[50,"Cement Portland 25Kg , ",232956,"BAG","",2]
[51,"Burlap No.6 115Cm Width",232987,"MTR","",200]
[52,"Flag Shackle S/Steel ",233503,"PCS","",6]
[53,"Goggles Chipping Plastic Scope Standard  Uvex                                                                                                                                                                                                                                                                  ",331141,"PRS","",30]
[54,"Dust Protecting Mask Mechanical Filtering                                                                                                                                                                                                                                                                   ",331111,"PCS","",8]
[55,"Mask Disposable                                                                                                                                                                                                                                                                                              ",331128,"PCS","",200]
[56,"Ear Muffs, Bilsom Comfort, Adj. In 3 Positions                                                                                                                                                                                                                                                 ",331153,"PRS","",15]
[57,"Safety Barrier Tape",331198,"ROLLS","",4]
[58,"Hose Plastic Transparent 7X18mm",350232,"100M","",1]
[59,"Nozzle Hose Pistol Grip Hose End 15mm                                                                                                                                                                                                                                                                       ",351008,"PCS","",2]
[60,"Connection Airhose Cast Bronze M42X2 By Hose End 6mm                                                                                                                                                                                                                                                        ",351051,"PCS","",4]
[61,"Connection Airhose Cast Bronze M42X2 By Hose End 8mm                                                                                                                                                                                                                                                        ",351052,"PCS","",6]
[62,"Flag Hook Upper&Lower Complete                                                                                                                                                                                                                                                                              ",371581,"SET","",4]
[63,"Block Flag Brass 50mm                                                                                                                                                                                                                                                                                       ",371588,"PCS","",6]
[64,"Tape Paper Double Side Gummed 50mmx5mtr                                                                                                                                                                                                                                                                     ",471269,"RLS",{"$f":"IF(OR(ISBLANK(F69),ISBLANK(G69)),\"\",F69-G69)","v":""},4]
[65,"Padlock Brass 60mm Master Key System,W/Master Key                                                                                                                                                                                                                                                           ",490505,"PCS","",12]
[66,"Brush Radiator Angle(Dog Leg) 25mm Width                                                                                                                                                                                                                                                                    ",510165,"PCS","",10]
[67,"Brush Radiator Angle(Dog Leg) 50mm Width                                                                                                                                                                                                                                                                    ",510167,"PCS","",20]
[68,"Brush Radiator Angle(Dog Leg) 65mm Width                                                                                                                                                                                                                                                                    ",510168,"PCS","",20]
[69,"Brush Radiator Angle(Dog Leg) 80mm Width                                                                                                                                                                                                                                                                    ",510169,"PCS","",20]
[70,"Brush Pencil Round 3mm Diam                                                                                                                                                                                                                                                                                 ",510191,"PCS","",3]
[71,"Paint Roller Wool 100mm Width Complete With Handle                                                                                                                                                                                                                                                          ",510304,"SET","",20]
[72,"Paint Roller Wool 150mm Width Complete With Handle                                                                                                                                                                                                                                                          ",510306,"SET","",20]
[73,"Spare Paint Roller Wool 100mm Width                                                                                                                                                                                                                                                                         ",510334,"PCS","",15]
[74,"Spare Paint Roller Wool 150mm Width                                                                                                                                                                                                                                                                         ",510336,"PCS","",15]
[75,"Bamboo Pole 4mtr                                                                                                                                                                                                                                                                                            ",510484,"PCS","",4]
[76,"Wood Handle W/Tightening Screw 1.2mtr For Paint Roller                                                                                                                                                                                                                                                      ",510486,"PCS","",3]
[77,"Brush Deck Nylon 300mm Width With Long Handle                                                                                                                                                                                                                                                               ",510613,"PCS","",10]
[78,"Brush Hand Scrub Coir Square                                                                                                                                                                                                                                                                                ",510653,"PCS","",5]
[79,"Liquid Hand Cleaner",550264,"5KG","",6]
[80,"Insecticide Fluid 18Ltr                                                                                                                                                                                                                                                                                     ",550607,"TIN","",1]
[81,"Disinfectant Liquid Cresol 500Cc                                                                                                                                                                                                                                                                            ",550611,"BTL","",3]
[82,"Disinfectant Liquid Phenol 500Ml                                                                                                                                                                                                                                                                            ",550616,"BTL","",3]
[83,"Rat Poison 125Grm ,",550630,"PKT","",10]
[84,"Sodium Hypochlorite Solution Purelox 600cc",550671,"BTL","",20]
[85,"Chlorinated Isocyanurate Tablet 15Kgs                                                                                                                                                                                                                                                                   ",550677,"CTN","",1]
[86,"Stencil Letter / Figure 25 mm",613133,"PCS","",1]
[87,"Stencil Letter / Figure 60 mm",613138,"PCS","",1]
[88,"Shovel Square 970mm                                                                                                                                                                                                                                                                                         ",613685,"PCS","",6]
[89,"Hose Band Galv Steel 15-24mm                                                                                                                                                                                                                                                                                ",614054,"PCS","",10]
[90,"Disc Paper Abrasive 100mm Grit #16                                                                                                                                                                                                                                                                          ",614611,"PCS","",50]
[91,"Ladder 2-Extension Alum-Alloy 7.8mtr , ",617114,"SET","",1]
[92,"Ladder Platform Alum-Alloy 2.1mtr                                                                                                                                                                                                                                                                           ",617130,"SET","",1]
[93,"Truck Platform Steel 1-Handle With 4 Solid Tires 600X900mm                                                                                                                                                                                                                                              ",617152,"PCS","",1]
[94,"Grease Gun Steel Connection 1/4\"X 1/4\"",617418,"SET","",1]
[95,"Grease Hose, Dia 1/4\" Length 10M With Fitting Part No. 695099",617556,"LGH","",2]
[96,"Grease Nipple Pin Type Pt 1/8 Plated Steel (Aps)                                                                                                                                                                                                                                                                 ",617624,"PCS","",20]
[97,"Grease Nipple Pin Type Pt 1/4 Plated Steel (Aps)                                                                                                                                                                                                                                                                 ",617625,"PCS","",20]
[98,"Water Finding Paste 75Grm Yellow To Red                                                                                                                                                                                                                                                                     ",650890,"TUB","",5]
[99,"Iron Wire Galv. 2.0mm                                                                                                                                                                                                                                                                                       ",671120,"KGS","",5]
[100,"Iron Wire Annealled No.8 Black 4.0mm                                                                                                                                                                                                                                                                        ",671126,"KGS","",5]
[101,"Hand Lamp N.W.T. W/15mtr Cable & 2P 15A Plug                                                                                                                                                                                                                                                                ",792151,"SET","",2]
[102,"Flashlight Strong Regular Um-1X6'S (6 Cell)                                                                                                                                                                                                                                                                    ",792241,"PCS","",4]
[103,"Flashlight #2217 2Cell Safety Approved (2 Cell)                                                                                                                                                                                                                                                                ",792235,"PCS","",6]
[104,"Alkaline Battery Lr20 (Am-1) 1.5V",792421,"PCS","",50]
[105,"Alkaline Battery Lr6 (Am-3) 1.5V",792423,"PCS","",50]
[106,"Battery Dry Cell R20P (Um-1) 1.5V Leak-Proof",792401,"PCS","",50]
[107,"Battery Dry Cell R6P (Um-3) 1.5V Leak-Proof",792403,"PCS",{"$f":"IF(OR(ISBLANK(F112),ISBLANK(G112)),\"\",F112-G112)","v":""},50]
[]
["NOTE : ","Toilet cleaner is ordered as a Chemical"]

{"sheet":"Engine Stores","index":6,"n_rows":164,"n_cols":9,"rows_kept":164,"cut":false,"hidden":false,"merged":[[3,0,3,7],[0,1,0,7],[1,0,1,7]]}
[null,{"$f":"'Tools Electrical'!B1:H1","v":"SAFETY, HEALTH, ENVIRONMENT AND QUALITY MANAGEMENT SYSTEM\n\nQUARTERLY STORES\n\nREPORTING FORMS MANUAL"},null,null,null,null,null,null,{"$f":"'Tools Electrical'!J1","v":"Form : 7.2.4\nDate : 14-Aug-25\nRev : 10.0\nApp By : DPA"}]
["BUDGET CODE   410805"]
[]
["Update in ROB and Applicable to Vessel Column only. ROB includes items in use. The Req Column will reflect the amount to order"]
[null,"Description","IMPA","Unit","Req","Stock","ROB","Applicable to Vessel","Comments / Remarks"]
[1,"Ceramic Ribbon W50mmx 2mm X 30mtr                                                                                                                                                                                                                              ",811648,"RLS",{"$f":"IF(OR(ISBLANK(F6),ISBLANK(G6)),\"\",F6-G6)","v":""},1]
[2,"Ceramic Yarn  Cord 4mm Diam x 150m",811621,"C/L","",1]
[3,"Leather Glove Welding Long                                                                                                                                                                                                                        ",851163,"PRS","",2]
[4,"Gauze Wire Stainless 100 Mesh X 1000mm                                                                                                                                                                                                                         ",673901,"SHT","",2]
[5,"Gauze Wire Stainless 60 Mesh X 1000mm                                                                                                                                                                                                                          ",673901,"SHT","",2]
[6,"Gauze Wire Stainless 24 Mesh X 1000mm                                                                                                                                                                                                            ",673901,"SHT","",2]
[7,"Gauze Wire Stainless 32 Mesh X 1000mm                                                                                                                                                                                                            ",673901,"SHT","",2]
[8,"G.I Wire No.8 4mm                                                                                                                                                                                                                                ",211453,"KGS","",5]
[9,"Stl Bolt & Nut Hex M6X25mm                                                                                                                                                                                                                                     ",690190,"SET","",20]
[10,"Stl Bolt & Nut Hex M8X30mm                                                                                                                                                                                                                                     ",690221,"SET","",20]
[11,"Stl Bolt & Nut Hex M10X35mm                                                                                                                                                                                                                                    ",690260,"SET","",20]
[12,"Washer Round Stl M12                                                                                                                                                                                                                                           ",694801,"PCS","",20]
[13,"Washer Round Stl M16                                                                                                                                                                                                                                           ",694801,"PCS","",20]
[14,"Washer Round Stl M20                                                                                                                                                                                                                                           ",694801,"PCS","",20]
[15,"Washer Round Stl M22                                                                                                                                                                                                                                           ",694801,"PCS","",20]
[16,"Washer Round Stl M24                                                                                                                                                                                                                                           ",694801,"PCS","",20]
[17,"Washer Spring Stl M6",694801,"PCS","",20]
[18,"Washer Spring Stl M8",694801,"PCS","",20]
[19,"Washer Spring Stl M10",694801,"PCS","",20]
[20,"Washer Spring Stl M12",694801,"PCS","",20]
[21,"Washer Spring Stl M16",694801,"PCS","",20]
[22,"Washer Spring Stl M20",694801,"PCS","",20]
[23,"Washer Spring Stl M22",694801,"PCS","",20]
[24,"Washer Spring Stl M24",694801,"PCS","",20]
[25,"Splint Pin Stl Dia 2mmx12mm. Order Split pin/Material/Nominal size/length  ",695801,"PCS","",10]
[26,"Splint Pin Stl Dia 2mmx25mm Order Split pin/Material/Nominal size/length",695801,"PCS","",10]
[27,"Splint Pin Stl Dia 2.5mmx45mm  Order Split pin/Material/Nominal size/length                                                                                                                                                                                                                                ",695801,"PCS","",10]
[28,"Splint Pin Stl Dia 4.5mmx55mm                                                                                                                                                                                                                                   Order Split pin/Material/Nominal size/length",695801,"PCS","",10]
[29,"Splint Pin Stl Dia 5mmx65mm Order Split pin/Material/Nominal size/length                                                                                                                                                                                                                                  ",695801,"PCS","",10]
[30,"Splint Pin Stl Dia 5mmx90mm  Order Split pin/Material/Nominal size/length                                                                                                                                                                                                                                 ",695801,"PCS","",10]
[31,"Splint Pin Stl Dia 7mmx100mm Order Split pin/Material/Nominal size/length                                                                                                                                                                                                                                 ",695801,"PCS","",10]
[32,"Welding Cable Neoprene Butyle Rubber Sheathed 70mm/Sq.X1C,500Amp                                                                                                                                                                                                        ",794104,"MTR",{"$f":"IF(OR(ISBLANK(F37),ISBLANK(G37)),\"\",F37-G37)","v":""},150]
[33,"General Purpose Adhesive 150Grm,                                                                                                                                                                                                                  ",812702,"TUB","",4]
[34,"Loctite Instant Adhesive 495 Rubber",812758,"BTL","",5]
[35,"Loctite Instant Adhesive 496 Metal",812759,"BTL","",2]
[36,"Loctite Threadlocker 242 ",812759,"BTL","",1]
[37,"Loctite Threadlocker 277",812755,"BTL","",1]
[38,"Loctite Retaining Compound 648",812750,"BTL","",1]
[39,"Funnel Plastic Diam 180mm                                                                                                                                                                                                                                      ",172253,"PCS","",2]
[40,"Dust Pan Galv Open                                                                                                                                                                                                                                             ",174142,"PCS","",4]
[41,"Yacht Mop, Complete",174271,"PCS","",4]
[42,"Replaceable Head For Yacht Mop",174272,"PCS","",20]
[43,"Wringer Mop Buckets",174280,"PCS","",4]
[44,"Gloves Working Cotton Ordinary                                                                                                                                                                                                                                 ",190101,"DOZ","",30]
[45,"Chemical Resistant Rubber Gloves, Long ",190132,"PCS","",12]
[46,"Plywood Common, 1210X2420X18mm ",232719,"PCS","",2]
[47,"Rag Cotton Over 90% Sterilized White                                                                                                                                                                                                                           ",232907,"KGS","",300]
[48,"Rag Sterilized Color                                                                                                                                                                                                                                           ",232909,"KGS","",100]
[49,"Walnut Shell Dry Grit #16 1000-1410 Micron 20Kgs                                                                                                                                                                                                               ",232974,"BAG","",6]
[50,"Protective Eyewear, Clear Lens, Pn10026005",311051,"PCS","",10]
[51,"Smoke Detector Spare Test Gas 350 Grm/Tin",331074,"TIN","",5]
[52,"Goggles Chipping Plastic Scope Standard  Uvex                                                                                                                                                                                                                                                                  ",331141,"PRS","",4]
[53,"Faceshield With Forehead Protection",331144,"PCS","",3]
[54,"Spare Shield For Above",331148,"PCS","",3]
[55,"Ear Muffs, Bilsom Comfort, Adj. In 3 Positions                                                                                                                                                                                                                                                 ",331153,"PRS","",12]
[56,"Spare Hygiene Kit For Bilsom Comfort                                                                                                                                                                                                                                                ",331154,"PRS","",6]
[57,"Ear Plugs, Silicone Rubber For High Pitch Noise, Bilsom Comfort Or Other High Quality Silicone Ear Plugs",331157,"PRS","",50]
[58,"Molykote G-N 0.5Kg, ",450511,"CAN","",2]
[59,"Molykote G-Rapid Spray 330Ml                                                                                                                                                                                                                                   ",450514,"CAN","",2]
[60,"Anti-Seize Compund Copaslip 500Grms",450566,"TIN","",2]
[61,"Wd-40 360Ml",450702,"TIN","",12]
[62,"Tape Paper Double Side Gummed 50mmx10Yds                                                                                                                                                                                                                       ",471269,"RLS","",1]
[63,"Brush Pencil Flat 10mm Width                                                                                                                                                                                                                                   ",510185,"PCS","",3]
[64,"Brush Pencil Flat 18mm Width                                                                                                                                                                                                                                   ",510189,"PCS","",3]
[65,"Brush Wire Straight Handle 270mm                                                                                                                                                                                                                               ",510662,"PCS","",6]
[66,"Brush Wire Straight Handle 270mm                                                                                                                                                                                                                               ",510662,"PCS","",3]
[67,"Brush Tube Nylon Condenser 19mm X 1/4 Male Thread                                                                                                                                                                                                              ",510743,"PCS","",10]
[68,"Door Mat, Coir, 60 X 90Cm",511023,"PCS","",6]
[69,"Vaseline 500Grm                                                                                                                                                                                                                    ",550276,"JAR","",2]
[70,"Hand Cleaner Locktite Orange 4Ltr/Btl                                                                                                                                                                                                                                               ",550285,"TIN","",4]
[71,"Metal Polish Liquid 360Grm                                                                                                                                                                                                                                     ",550352,"TIN","",2]
[72,"Neoprene Rubber Bucket, With Lid, 10Ltr",590611,"PCS","",2]
[73,"Neoprene Rubber Bucket, With Lid, 20Ltr",590612,"PCS","",2]
[74,"Blobac Cleaner, V-300",590721,"SET","",2]
[75,"Spare Blades No.1  Electric Jig Saw, Portable, 60mm Cutting Capacity,  ",591173,"PKT","",1]
[76,"Spare Blades No.6 Electric Jig Saw, Portable, 60mm Cutting Capacity, ",591178,"PKT","",1]
[77,"Ventilation Tube Spiral-Type Pvc 300mm X 5mtr Fan Ventilation Elec Portable 280mm Ac220V 1-Phase                                                                                                                                                                                                                   ",591483,"LGH","",2]
[78,"Hose Band Galv Steel 8-14mm                                                                                                                                                                                                                                    ",614051,"PCS","",12]
[79,"Hose Band Galv Steel 11-17mm                                                                                                                                                                                                                                   ",614052,"PCS","",12]
[80,"Hose Band Galv Steel 13-20mm                                                                                                                                                                                                                                   ",614053,"PCS","",12]
[81,"Hose Band Galv Steel 22-32mm                                                                                                                                                                                                                                   ",614055,"PCS","",12]
[82,"Grinding Paste Grit#240 Medium Fine 450Grm                                                                                                                                                                                                                     ",614192,"TIN","",4]
[83,"Grinding Paste Grit#120 Coarse 450Grm                                                                                                                                                                                                                          ",614193,"TIN","",4]
[84,"Grinding Paste Grit#60 Coarse 450Grm                                                                                                                                                                                                                           ",614194,"TIN","",4]
[85,"Dresser Grinding-Wheel                                                                                                                                                                                                                                         ",614606,"SET","",1]
[86,"Emery Cloth Abrasive 230X280mm Grit #60                                                                                                                                                                                                                        ",614685,"SHT","",50]
[87,"Emery Cloth Abrasive 230X280mm Grit #120                                                                                                                                                                                                                       ",614688,"SHT","",75]
[88,"Emery Cloth Abrasive 230X280mm Grit #240                                                                                                                                                                                                                       ",614692,"SHT","",75]
[89,"Emery Tape Abrasive 40mm X 36.5mtr Grit #60                                                                                                                                                                                                                             ",614716,"RLS","",2]
[90,"Emery Tape Abrasive 40mmx  36.5mtr Grit #120                                                                                                                                                                                                                     ",614719,"RLS","",2]
[91,"Silicon Paper Abrasive Waterproof Grit #600",614778,"SHT","",20]
[92,"Wheel, Grinding, Offset, Resinoid, Grain No. 36, 4mm Thickness X 15mm Hole Dia., 4300M/Min",614802,"PCS","",75]
[93,"Wheel, Cut-Off, Resinoid, Grain No. 36, 100mm Od X 12.7mm Id, 4300M/Min",614857,"PCS","",100]
[94,"Wheel, Cut-Off, Resinoid, Grain No. 36, 180mm Od X 22.3mm Id, 4300M/Min",614864,"PCS","",50]
[95,"Spare Cartridge For Torch Gas Compact                                                                                                                                                                                                                       ",617017,"PCS","",3]
[96,"Refrigerant Gas Leak Detector Refill",617021,"SET",{"$f":"IF(OR(ISBLANK(F101),ISBLANK(G101)),\"\",F101-G101)","v":""},2]
[97,"Grease Nipple Pin Type Pt 1/8 Plated Steel                                                                                                                                                                                                                     ",617624,"PCS","",10]
[98,"Grease Nipple Pin Type Pt 1/4 Plated Steel                                                                                                                                                                                                                     ",617625,"PCS","",10]
[99,"Flexible Extension Hose , Pin Type",617680,"PCS","",1]
[100,"Flexible Extension Hose , Button-Head Type",617681,"PCS","",1]
[101,"Flexible Extension Hose , Straight Type",617682,"PCS","",1]
[102,"Oil Syringe, 160Cc, 695mm Length ",617717,"PCS","",1]
[103,"Oiler Straight Plastic 180Cc                                                                                                                                                                                                                                   ",617721,"PCS","",4]
[104,"Oiler Angle Plastic 300Cc                                                                                                                                                                                                                                      ",617726,"PCS","",4]
[105,"Oil Jug Plastic 1Ltr                                                                                                                                                                                                                                           ",617745,"PCS","",2]
[106,"Oil Jug Plastic 2Ltr                                                                                                                                                                                                                                           ",617746,"PCS","",2]
[107,"Water Finding Paste 75Grm Yellow To Red                                                                                                                                                                                                                        ",650890,"TUB","",1]
[108,"Hand Lamp Watertight E-26 60W (Ex.Jis)                                                                                                                                                                                                                         ",792151,"PCS","",2]
[109,"Flashlight Strong Water Tight/Sparkless Um-1X6'S                                                                                                                                                                                                                             ",792241,"PCS","",2]
[110,"Flashlight \"Bright Star\" Safety Approved 2317C",792235,"PCS","",8]
[111,"Alkaline Battery Lr20 (Am-1) 1.5V",792421,"PCS","",50]
[112,"Alkaline Battery Lr6 (Am-3) 1.5V",792423,"PCS","",50]
[113,"Alkaline Battery Lr603 (Am-4) 1.5V",792424,"PCS","",50]
[114,"Hydrometer Battery Length 250 mm",792661,"PCS","",1]
[115,"Plastic Cable Bands 100mm",794851,"PCS","",100]
[116,"Plastic Cable Bands 350mm",794856,"PCS","",50]
[117,"Soldering Wire Resin-Cored 450Grm 60/40 Resin Content                                                                                                                                                                                                  ",795170,"SPL","",1]
[118,"Soldering Paste 50 Grm",795174,"TIN","",1]
[119,"Tape Cotton Insulation 19mmx25mtr                                                                                                                                                                                                                              ",795422,"SPL","",1]
[120,"Tape Pvc Insulation 19mmx10mtr                                                                                                                                                                                                                                 ",795431,"SPL","",2]
[121,"Tape Rubber Insulation 20mmx10mtr                                                                                                                                                                                                                              ",795436,"RLS","",6]
[122,"Putty Insulation 1Kg                                                                                                                                                                                                                                           ",795501,"PKT","",1]
[123,"Relay Cleaner Electric Contact 260Grm Spray Tin                                                                                                                                                                                                                ",795511,"TIN","",3]
[124,"Insulation Varnish Clear Spray 300 Cc",795521,"TIN","",3]
[125,"Electric Insulation Gloves 7,000 Volts",795532,"PRS","",1]
[126,"Clamp Meter Model Dcm-400 ",795731,"SET","",1]
[127,"Packing Universal Carbonized Fiber Pillar No.6501L 3mmx3mtr ==>Ads 184                                                                                                                                                                                         ",810381,"BOX","",1]
[128,"Packing Universal Carbonized Fiber Pillar No.6501L 5mmx3mtr ==>Ads 184                                                                                                                                                                                         ",810382,"BOX","",1]
[129,"Packing Universal Carbonized Fiber Pilr No.6501L 6.5mmx3mtr ==>Ads 184                                                                                                                                                                                         ",810383,"BOX","",1]
[130,"Packing Universal Carbonized Fiber Pillar No.6501L 8mmx3mtr ==>Ads 184                                                                                                                                                                                         ",810384,"BOX","",2]
[131,"Packing Universal Carbonized Fiber Pilr No.6501L 9.5mmx3mtr ==>Ads 184                                                                                                                                                                                         ",810385,"BOX","",1]
[132,"Packing Universal Carbonized Fiber Pillarno.6501L 11mmx3mtr ==>Ads 184                                                                                                                                                                                         ",810386,"BOX","",1]
[133,"Packing Universal Carbonized Fiber Pilrno.6501L 12.5mmx3mtr ==>Ads 184                                                                                                                                                                                         ",810387,"BOX","",1]
[134,"Packing Ptfe Special Organic Fiber No.4508L 6.5mmx3mtr *",810423,"BOX","",1]
[135,"Packing Ptfe Special Organic Fiber No.4508L 8mmx3mtr *",810424,"BOX","",1]
[136,"Packing Ptfe Special Organic Fiber No.4508L 9.5mmx3mtr *",810425,"BOX","",1]
[137,"Packing Ptfe Special Organic Fiber No.4508L 11mmx3mtr *                                                                                                                                                                             ",810426,"BOX","",1]
[138,"Packing Ptfe Special Organic Fiber No.4508L 12.5mmx3mtr *                                                                                                                                                                    ",810427,"BOX","",1]
[139,"Joint Sheet Non-Asbestos 1.5X1270X1270mm >> Offer: Fysax 1321                                                                                                                                                                                                      ",811004,"SHT","",2]
[140,"Joint Sheet Non-Asbestos 2.0X1270X1270mm >> Offer: Fysax 1321                                                                                                                                                                                                      ",811005,"SHT","",2]
[141,"Joint Sht Gasket Non-Asbestos 1.5X1200X1200mm >> Offer: Fysax 1321                                                                                                                                                                                             ",811074,"SHT","",2]
[142,"Joint Sht Gasket Non-Asbestos 2.0X1200X1200mm >> Offer: Fysax 1321                                                                                                                                                                                             ",811075,"SHT","",2]
[143,"Joint Sheet Synthetic Rubber 1.0X1000X1000mm                                                                                                                                                                                                                   ",811131,"MTR","",2]
[144,"Joint Sheet Synthetic Rubber 2.0X1000X1000mm                                                                                                                                                                                                                   ",811133,"MTR","",2]
[145,"Joint Sheet Synthetic Rubber 3.0X1000X1000mm                                                                                                                                                                                                                   ",811134,"MTR","",2]
[146,"Joint Sheet Cotton-Insertion Rubber 3.0X1000X1000mm                                                                                                                                                                                                            ",811153,"MTR","",2]
[147,"Plastic Steel Putty Devcon-A 1Kg, ",812252,"SET","",2]
[148,"Tape Seal Teflon 0.75mmx12mmx10mtr                                                                                                                                                                                                                             ",812501,"PCS","",24]
[149,"Silicon Sealant 100Grm                                                                                                                                                                                                                              ",812601,"TUB","",6]
[150,"Rubber String 2mm Diam                                                                                                                                                                                                                                         ",813052,"MTR","",2]
[151,"Rubber String 3mm Diam                                                                                                                                                                                                                                         ",813054,"MTR","",2]
[152,"Rubber String 4mm Diam                                                                                                                                                                                                                                         ",813056,"MTR","",2]
[153,"Earthing Clamp, Clamp Type, 300Amps",851041,"PCS","",1]
[154,"Chalk Welder Square Bar 100'S                                                                                                                                                                                                                                  ",851102,"BOX","",1]
[155,"Welder Sleeves Chromed Leather                                                                                                                                                                                                                                 ",851166,"PRS","",1]
[156,"Welder Apron Chromed Leather                                                                                                                                                                                                                                   ",851167,"PCS","",1]
[157,"Welder Leggings Chromed Leather                                                                                                                                                                                                                                ",851168,"PRS",{"$f":"IF(OR(ISBLANK(F162),ISBLANK(G162)),\"\",F162-G162)","v":""},1]
[158,"Chemical Resistant Apron Vinyl",150464,"PCS","",6]
[159,"Junior Hacksaw Frame Blades",613425,"Packs","",12]

{"sheet":"Elect 220v","index":7,"n_rows":316,"n_cols":10,"rows_kept":316,"cut":false,"hidden":false,"merged":[[0,1,0,8],[1,0,1,7],[3,0,3,7]]}
[null,{"$f":"'Tools Electrical'!B1:H1","v":"SAFETY, HEALTH, ENVIRONMENT AND QUALITY MANAGEMENT SYSTEM\n\nQUARTERLY STORES\n\nREPORTING FORMS MANUAL"},null,null,null,null,null,null,null,{"$f":"'Tools Electrical'!J1","v":"Form : 7.2.4\nDate : 14-Aug-25\nRev : 10.0\nApp By : DPA"}]
["BUDGET CODE   410805"]
[]
["Update in ROB and Applicable to Vessel Column only. ROB includes items in use. The Req Column will reflect the amount to order"]
[null,"Description","IMPA","Unit","Req","Stock","ROB","Applicable to Vessel",null,"Comments / Remarks"]
[1,"Battery Alkaline Lr03(Am-4) 1.5V",792424,"Pce",{"$f":"IF(OR(ISBLANK(F6),ISBLANK(G6)),\"\",F6-G6)","v":""},20,null,null,{"$f":"\"ELEC\" & TEXT(A6,\"0000\")","v":"ELEC0001"}]
[2,"Battery Alkaline Lr20(Am-1), 1.5V",792421,"Pce",{"$f":"IF(OR(ISBLANK(F7),ISBLANK(G7)),\"\",F7-G7)","v":""},20,null,null,"ELEC0002"]
[3,"Battery Alkaline Lr6(Am-3), 1.5V",792423,"Pce","",30,null,null,"ELEC0003"]
[4,"Battery Alkaline 6Lr61(006P), 9V",792426,"Pce","",10,null,null,"ELEC0004"]
[5,"Duracell Batteries 1.5 V Size D",792421,"Pce","",30,null,null,"ELEC0005"]
[6,"Duracell Batteries 1.5 V Size Aa",792423,"Pce","",30,null,null,"ELEC0006"]
[7,"Duracell Batteries 1.5 V Size Aaa",792424,"Pce","",30,null,null,"ELEC0007"]
[8,"Battery Alkaline Lr1,(Am-5) 1.5V",792425,"PCE","",6,null,null,"ELEC0008"]
[9,"Battery Alkaline Lr14,(Am-2), 1.5V",292422,"PCE","",6,null,null,"ELEC0009"]
[10,"Battery 6F22 - 9V",792405,"Pce","",6,null,null,"ELEC0010"]
[11,"Coin Battery Cr Lithium Manganese Dioxide Batteries Cr2032",792413,"Pce","",4,null,null,"ELEC0011"]
[12,"2 Pin Plug - Round Connectors",792921,"Pce","",20,null,null,"ELEC0012"]
[13,"Non Water Tight \"Siemens\"Distribution Plug",792930,"Pce","",10,null,null,"ELEC0013"]
[14,"Adapter, 2 Round Pin Plug,2 Flat Pin Plug Receptacle",792962,"Pce","",6,null,null,"ELEC0014"]
[15,"Multiway Receptacles With Cord And Plug European Plug",792966,"Pce","",6,null,null,"ELEC0015"]
[16,"Plug And Receptacle Adaptors 2 Round Pin Plug",792954,"Pce","",12,null,null,"ELEC0016"]
[17,"Siemens Distribution Plugs",792930,"Pce","",6,null,null,"ELEC0017"]
[18,"Watertight 3-Pin Plugs Type Hna",792881,"Pce","",6,null,null,"ELEC0018"]
[19,"Receptacle With Switch Type Hna",792882,"Pce","",6,null,null,"ELEC0019"]
[20,"Spare Interior For 3-Pin Plug Type Hna",792891,"Pce","",6,null,null,"ELEC0020"]
[21,"Spare 3-Pin Receptacle Type Hna",792892,"Pce","",6,null,null,"ELEC0021"]
[22,"Spare Switch Type Hna",792893,"Pce","",6,null,null,"ELEC0022"]
[23,"Non-Watertight Siemens Cable Plugs With Earthing Contact ",792921,"Pce","",6,null,null,"ELEC0023"]
[24,"Non-Watertight Siemens Cable Receptacle With Earthing Contact",792922,"Pce","",6,null,null,"ELEC0024"]
[25,"Siemens Cable Receptacle Double",792923,"Pce","",6,null,null,"ELEC0025"]
[26,"Small Snap Switches  2 Pole 2 Throw",793007,"Pce","",6,null,null,"ELEC0026"]
[27,"Small Snap Switches  1 Pole 1 Throw",793008,"Pce","",6,null,null,"ELEC0027"]
[28,"Cabin Surface Recepticles(Double)125 Volt, 15 Amp",792977,"Pce","",6,null,null,"ELEC0028"]
[29,"Cable Pvc Cabtyre 3 Conductors Nominal Size 2 mm ",794178,"Mtr","",6,null,null,"ELEC0029"]
[30,"Parallel Flexible Cable,Pvc, White 2X.75    ",794202,"mtr","",50,null,null,"ELEC0030"]
[31,"Cable Antenna Co-Axial Od 6mm",7342675,"mtr","",50,null,null,"ELEC0031"]
[32,"Pvc Insulation Tapes Black",795431,"Pce","",6,null,null,"ELEC0032"]
[33,"Rubber Insulation Tapes",795436,"Pce","",6,null,null,"ELEC0033"]
[34,"Electric Teflon Tapes",795451,"Pce","",6,null,null,"ELEC0034"]
[35,"Insulation Putty",795501,"Pce","",6,null,null,"ELEC0035"]
[36,"Electric Contact Restorer",795506,"Pce","",3,null,null,"ELEC0036"]
[37,"Electric Contact Relay Cleaners",795501,"Pce","",3,null,null,"ELEC0037"]
[38,"Crc 2-26",450591,"Pce","",3,null,null,"ELEC0038"]
[39,"Insulation Varnishes",795523,"Pce","",3,null,null,"ELEC0039"]
[40,"E;Lectric Insulation Rubber Gloves",795532,"Pce","",3,null,null,"ELEC0040"]
[41,"Pvc Insulation Tape 20mm",795436,"Pce","",6,null,null,"ELEC0041"]
[42,"Scotch Self Vulcanising Electrical Rubber Tape ",795433,"Pce","",6,null,null,"ELEC0042"]
[43,"Mica Heat Insulation Tapes",795427,"Pce","",6,null,null,"ELEC0043"]
[44,"Nylon Cable Glands Pg 21",7308406,"Pce","",12,null,null,"ELEC0044"]
[45,"Bakelite Sheet Size 1M X 1M X 4 mm Thick",795385,"Pce","",1,null,null,"ELEC0045"]
[46,"Bakelite Sheet Size 1M X 1M X 6 mm Thick",795387,"Pce","",1,null,null,"ELEC0046"]
[47,"Lead Light Ex Type- E26, 220V, 100Watts",792174,"Pce","",3,null,null,"ELEC0047"]
[48,"Lead Light Water Tight- E26, 220V 60Watt",792151,"Pce","",6,null,null,"ELEC0048"]
[49,"Lamp Vs Clear E-26, 220-240V 25W",790192,"Pce","",50,null,null,"ELEC0049"]
[50,"Lamp Vs Frosted E-26, 220-240V 60W",790126,"Pce","",30,null,null,"ELEC0050"]
[51,"Lamp Vs Clear E-26, 220-240V 60W",790195,"Pce","",50,null,null,"ELEC0051"]
[52,"Lamp Pilot Miniature F-6, 28V 0.04A 5.5X16mm",790707,"Pce","",30,null,null,"ELEC0052"]
[53,"Lamp Mercury Reflector Bhf, Self Ballasted E-39 220V 500W",791157,"Pce","",0,null,null,"ELEC0053"]
[54,"Lamp Halogen Tungsten R7S, Cap Base 220V 500W",791263,"Pce","",0,null,null,"ELEC0054"]
[55,"Lamp Halogen Tubular Shape, E-39 200-240V 500W",791272,"Pce","",0,null,null,"ELEC0055"]
[56,"Lamp Fluorescent Daylight, Fl-8D 8W 15.5X287mm",791423,"Pce","",50,null,null,"ELEC0056"]
[57,"Lamp Fluorescent Daylight, Fl-15D 15W 25.5X436mm",791425,"Pce","",50,null,null,"ELEC0057"]
[58,"Lamp Fluorescent Daylight, Fl-20Ssd/18-24 18W 27X588.7mm",791432,"Pce","",50,null,null,"ELEC0058"]
[59,"Starter For Fl Lamp Fg-1P",791504,"Pce","",30,null,null,"ELEC0059"]
[60,"Starter For Fl Lamp Fg-4P",791505,"Pce","",30,null,null,"ELEC0060"]
[61,"Pilot Lamps E-10 28V 2W",790540,"Pce","",30,null,null,"ELEC0061"]
[62,"Pilot Lamps Ba-9S 24V 2V",790690,"Pce","",30,null,null,"ELEC0062"]
[63,"High Pressure Sodium Lamps",791213,"Pce","",0,null,null,"ELEC0063"]
[64,"Compact Fluorescent Light Bulbs 60W 220V",791592,"Pce","",50,null,null,"ELEC0064"]
[65,"Lamp Holder Tubular Type Te-39 Porcelain",793509,"Pce","",50,null,null,{"$f":"\"ELEC\" & TEXT(A70,\"0000\")","v":"ELEC0065"}]
[66,"Lamp Holder Fe-26 Flanged Porcelain",793504,"Pce",{"$f":"IF(OR(ISBLANK(F71),ISBLANK(G71)),\"\",F71-G71)","v":""},20,null,null,"ELEC0066"]
[67,"Lamp Holder With Brim Ge-26",793510,"Pce","",20,null,null,"ELEC0067"]
[68,"European Type Lamp Holder Screw With 3 Mounting Lugs E-27",793529,"Pce","",10,null,null,"ELEC0068"]
[69,"European Type Lamp Holder Screw With 3 Mounting Lugs E-14",793526,"Pce","",10,null,null,"ELEC0069"]
[70,"Watertight Fluorescent Fitting With Diffuser  220V  20W X 2",791913,"Pce","",5,null,null,"ELEC0070"]
[71,"Watertight Fluorescent Fitting With Diffuser  220V  40W X 2",791887,"Pce","",5,null,null,"ELEC0071"]
[72,"Miniature Pilot Lamps 28V 0.04A F6",790707,"Pce","",20,null,null,"ELEC0072"]
[73,"Miniature Pilot Lamps 28V 0.04A S5.5 S18",790713,"Pce","",20,null,null,"ELEC0073"]
[74,"Miniature Pilot Lamps 30V 30Ma L",790732,"Pce","",20,null,null,"ELEC0074"]
[75,"Telephone Switchboard Lamps T4.5 30V 40Ma",790828,"Pce","",20,null,null,"ELEC0075"]
[76,"Telephone Switchboard Lamps T5.5K 30V 40Ma",790759,"Pce","",20,null,null,"ELEC0076"]
[77,"Telephone Switchboard Lamps T6.8 30V 50Ma",790867,"Pce","",20,null,null,"ELEC0077"]
[78,"Fluorescent Lamp Daylight Fl-15   15W, Length 436 mm",791405,"Pce","",20,null,null,"ELEC0078"]
[79,"Halogen Lamp R7S, Length 189mm, 1000 W, 110 Volt,",734178,"Pce","",0,null,null,"ELEC0079"]
[80,"Tungston Halogen Lamp 220V, 1000 W. Length 189 mm",791267,"Pce","",0,null,null,"ELEC0080"]
[81,"Navigation Lamp 220V, 65W,P-28S-Prefocus Base",790434,"Pce","",0,null,null,"ELEC0081","Ordered as Navigation equipment"]
[82,"220V, 60W,Es (E-26)Clear",790126,"Pce","",10,null,null,"ELEC0082"]
[83,"220V, 60W,Es (E-26)Red",790318,"Pce","",10,null,null,"ELEC0083"]
[84,"220V, 60W,Es (E-26)Green",790321,"Pce","",10,null,null,"ELEC0084"]
[85,"220V, 60W,Es (E-26)Yellow",790328,"Pce","",10,null,null,"ELEC0085"]
[86,"220V,25W,E-27",790123,"Pce","",30,null,null,"ELEC0086"]
[87,"Glass Tube Fuses 5.2 X 20mm 0.1A",793601,"Pce","",20,null,null,"ELEC0087"]
[88,"Glass Tube Fuses 5.2 X 20mm 0.2A",793602,"Pce","",20,null,null,"ELEC0088"]
[89,"Glass Tube Fuses 5.2 X 20mm  0.3A",793603,"Pce","",20,null,null,"ELEC0089"]
[90,"Glass Tube Fuses 5.2 X 20mm  0.4A",793604,"Pce","",20,null,null,"ELEC0090"]
[91,"Glass Tube Fuses 5.2 X 20mm  0.5A",793605,"Pce","",20,null,null,"ELEC0091"]
[92,"Glass Tube Fuses 5.2 X 20mm  0.6A",793606,"Pce","",20,null,null,"ELEC0092"]
[93,"Glass Tube Fuses 5.2 X 20mm  0.8A",793607,"Pce","",20,null,null,"ELEC0093"]
[94,"Glass Tube Fuses 5.2 X 20mm  1A",793608,"Pce","",20,null,null,"ELEC0094"]
[95,"Glass Tube Fuses 5.2 X 20mm  1.5A",793609,"Pce","",20,null,null,"ELEC0095"]
[96,"Glass Tube Fuses 5.2 X 20mm  2A",793610,"Pce","",20,null,null,"ELEC0096"]
[97,"Glass Tube Fuses 5.2 X 20mm  3A",793611,"Pce","",20,null,null,"ELEC0097"]
[98,"Glass Tube Fuses 5.2 X 20mm  4A",793612,"Pce","",20,null,null,"ELEC0098"]
[99,"Glass Tube Fuses 5.2 X 20mm  5A",793613,"Pce","",20,null,null,"ELEC0099"]
[100,"Glass Tube Fuses 5.2 X 20mm  6A",793614,"Pce","",20,null,null,"ELEC0100"]
[101,"Glass Tube Fuses 5.2 X 20mm  8A",793615,"Pce","",20,null,null,"ELEC0101"]
[102,"Glass Tube Fuses 5.2 X 20mm  10A",793616,"Pce","",20,null,null,"ELEC0102"]
[103,"Glass Tube Fuses 6 X 30mm  2A",793650,"Pce","",20,null,null,"ELEC0103"]
[104,"Glass Tube Fuses 6 X 30mm  3A",793651,"Pce","",20,null,null,"ELEC0104"]
[105,"Glass Tube Fuses 6 X 30mm  4A",793652,"Pce","",20,null,null,"ELEC0105"]
[106,"Glass Tube Fuses 6 X 30mm  5A",793653,"Pce","",20,null,null,"ELEC0106"]
[107,"Glass Tube Fuses 6 X 30mm  2A",793656,"Pce","",20,null,null,"ELEC0107"]
[108,"Glass Tube Fuses 5.2 X 20mm  0.125A",793601,"Pce","",20,null,null,"ELEC0108"]
[109,"Cello-Lite Cartridge Fuses Uc-1,  1A",793741,"Pce","",20,null,null,"ELEC0109"]
[110,"Cello-Lite Cartridge Fuses Uc-1,  3A",793742,"Pce","",20,null,null,"ELEC0110"]
[111,"Cello-Lite Cartridge Fuses Uc-1,  5A",793743,"Pce","",20,null,null,"ELEC0111"]
[112,"Cello-Lite Cartridge Fuses Uc-1,  10A",793744,"Pce","",20,null,null,"ELEC0112"]
[113,"Cello-Lite Cartridge Fuses Uc-1,  15A",793745,"Pce","",20,null,null,"ELEC0113"]
[114,"Cello-Lite Cartridge Fuses Uc-1,  20A",793746,"Pce","",20,null,null,"ELEC0114"]
[115,"Cello-Lite Cartridge Fuses Uc-1 1, 25A",793747,"Pce","",20,null,null,"ELEC0115"]
[116,"Cello-Lite Cartridge Fuses Uc-1,  30A",793748,"Pce","",20,null,null,"ELEC0116"]
[117,"Hrc Fuses Size 00  6A",793801,"PCE","",10,null,null,"ELEC0117"]
[118,"Hrc Fuses Size 00  10A",793802,"PCE","",10,null,null,"ELEC0118"]
[119,"Cross Recessed Pan Head Machine Bolt With Nut  S/Steel M3 X 20mm",694201,"Pce","",20,null,null,"ELEC0119"]
[120,"Cross Recessed Pan Head Machine Bolt With Nut  S/Steel M4 X 20mm",694201,"Pce","",20,null,null,"ELEC0120"]
[121,"Cross Recessed Pan Head Machine Bolt With Nut  S/Steel M5 X 30mm",694201,"Pce","",20,null,null,"ELEC0121"]
[122,"Cross Recessed Pan Head Machine Bolt With Nut  S/Steel M6 X 35mm",694201,"Pce","",20,null,null,"ELEC0122"]
[123,"Cross Recessed Pan Head Machine Bolt With Nut  S/Steel M8 X 40mm",694201,"Pce","",20,null,null,"ELEC0123"]
[124,"Cross Recessed Pan Head Machine Bolt With Nut  Brass M3 X 20mm",694201,"Pce","",20,null,null,"ELEC0124"]
[125,"Cross Recessed Pan Head Machine Bolt With Nut  Brass M4 X 30mm",694201,"Pce","",20,null,null,"ELEC0125"]
[126,"Cross Recessed Pan Head Machine Bolt With Nut  Brass M5 X 30mm",694201,"Pce","",20,null,null,"ELEC0126"]
[127,"Cross Recessed Pan Head Machine Bolt With Nut  Brass M6X 40mm",694201,"Pce","",20,null,null,"ELEC0127"]
[128,"Cross Recessed Pan Head Machine Bolt With Nut  Stainless Brass",694201,"Pce","",20,null,null,"ELEC0128"]
[129,"Plain Washers  3mm Stainless Steel",694801,"Pce","",50,null,null,{"$f":"\"ELEC\" & TEXT(A134,\"0000\")","v":"ELEC0129"}]
[130,"Plain Washers  4mm Stainless Steel",694801,"Pce",{"$f":"IF(OR(ISBLANK(F135),ISBLANK(G135)),\"\",F135-G135)","v":""},50,null,null,"ELEC0130"]
[131,"Plain Washers  5mm Stainless Steel",694801,"Pce","",50,null,null,"ELEC0131"]
[132,"Plain Washers  6mm Stainless Steel",694801,"Pce","",50,null,null,"ELEC0132"]
[133,"Plain Washers  8mm Stainless Steel",694801,"Pce","",50,null,null,"ELEC0133"]
[134,"Plain Washers 3mm Brass",694801,"Pce","",50,null,null,"ELEC0134"]
[135,"Plain Washers 4mm Brass",694801,"Pce","",50,null,null,"ELEC0135"]
[136,"Plain Washers 5mm Brass",694801,"Pce","",50,null,null,"ELEC0136"]
[137,"Plain Washers 6mm Brass",694801,"Pce","",50,null,null,"ELEC0137"]
[138,"Plain Washers 8mm Brass",694801,"Pce","",50,null,null,"ELEC0138"]
[139,"Tubular Type Halogen Floodlight 220V,500W.Bare Type E 39",791272,"Pce","",0,null,null,"ELEC0139"]
[140,"Tubular Type Halogen Floodlight 220V,250W.Type E 39",791272,"Pce","",0,null,null,"ELEC0140"]
[141,"Starter - Philips S10C, 220V, 4-65 W",791416,"Pce","",30,null,null,"ELEC0141"]
[142,"Starter - Philips S10 Single, 220V, 4-65 W",791412,"Pce","",30,null,null,"ELEC0142"]
[143,"Starter - Fl-8, 8W,220V,",791403,"Pce","",30,null,null,"ELEC0143"]
[144,"Welding Cables Butyl Rubber Sheathed 22mm",794101,"mtr","",50,null,null,"ELEC0144"]
[145,"Rubber Cabtyre Cable 3 X 0.75mm",794131,"mtr","",50,null,null,"ELEC0145"]
[146,"Rubber Cabtyre Cable 3 X 1.25mm",794132,"mtr","",50,null,null,"ELEC0146"]
[147,"Rubber Cabtyre Cable 3 X 2mm",794133,"mtr","",50,null,null,"ELEC0147"]
[148,"Rubber Cabtyre Cable 3 X 3.5mm",794124,"mtr","",50,null,null,"ELEC0148"]
[149,"P.V.C Cabtyre Cables 3 X 0.75mm",794176,"mtr","",50,null,null,"ELEC0149"]
[150,"P.V.C Cabtyre Cables 3 X 1.25mm",794177,"mtr","",50,null,null,"ELEC0150"]
[151,"P.V.C Cabtyre Cables 3 X 2mm",794178,"mtr","",50,null,null,"ELEC0151"]
[152,"P.V.C Cabtyre Cables 3 X 3.5mm",794179,"mtr","",50,null,null,"ELEC0152"]
[153,"Silicon Rubber  And Glass Cloth Sheathed Cable 1.25mm",794226,"mtr","",5,null,null,"ELEC0153"]
[154,"Silicon Rubber  And Glass Cloth Sheathed Cable 2mm",794227,"mtr","",5,null,null,"ELEC0154"]
[155,"Flexible Single Cable 0.5mm",794211,"mtr","",20,null,null,"ELEC0155"]
[156,"Flexible Single Cable 0.75mm",794212,"mtr","",20,null,null,"ELEC0156"]
[157,"Flexible Single Cable 1.25mm",784213,"mtr","",20,null,null,"ELEC0157"]
[158,"Flexible Single Cable 2mm",794214,"mtr","",20,null,null,"ELEC0158"]
[159,"Armoured Cable, Ep Rubber Insulated, Pvc Sheathed, Steel Wire Braided  3 X 1.5mm",794315,"mtr","",20,null,null,"ELEC0159"]
[160,"Armoured Cable, Ep Rubber Insulated, Pvc Sheathed, Steel Wire Braided  3 X 2.5mm",794316,"mtr","",20,null,null,"ELEC0160"]
[161,"Armoured Cable, Ep Rubber Insulated, Pvc Sheathed, Steel Wire Braided  3 X 4mm",794317,"mtr","",20,null,null,"ELEC0161"]
[162,"Armoured Cable, Ep Rubber Insulated, Pvc Sheathed, Steel Wire Braided  3 X 6mm",794318,"mtr","",20,null,null,"ELEC0162"]
[163,"Armoured Cable, Ep Rubber Insulated, Pvc Sheathed, Steel Wire Braided  3 X 10mm",794319,"mtr","",20,null,null,"ELEC0163"]
[164,"Armoured Cable, Ep Rubber Insulated, Pvc Sheathed, Steel Wire Braided  4 X 1.5mm",794326,"mtr","",20,null,null,"ELEC0164"]
[165,"Armoured Power And Control Cable 3 X 1.5mm",794339,"mtr","",20,null,null,"ELEC0165"]
[166,"Armoured Power And Control Cable 3 X 2.5mm",794340,"mtr","",20,null,null,"ELEC0166"]
[167,"Armoured Power And Control Cable 3 X 4mm",794341,"mtr","",20,null,null,"ELEC0167"]
[168,"Armoured Power And Control Cable 3 X 6mm",794342,"mtr","",20,null,null,"ELEC0168"]
[169,"Armoured Power And Control Cable 3 X 10mm",794343,"mtr","",20,null,null,"ELEC0169"]
[170,"Armoured Power And Control Cable 3 X 16mm",794344,"mtr","",20,null,null,"ELEC0170"]
[171,"Armoured Power And Control Cable 4  X 1.5mm",794345,"mtr","",20,null,null,"ELEC0171"]
[172,"Armoured Power And Control Cable 4 X 2.5mm",794346,"mtr","",20,null,null,"ELEC0172"]
[173,"Armoured Power And Control Cable 4 X 4mm",794347,"mtr","",20,null,null,"ELEC0173"]
[174,"Armoured Power And Control Cable 4 X 6mmmm",794348,"mtr","",20,null,null,"ELEC0174"]
[175,"Armoured Power And Control Cable  4 X 10mm",794349,"mtr","",20,null,null,"ELEC0175"]
[176,"Armoured Power And Control Cable 3 X 16mm",794350,"mtr","",20,null,null,"ELEC0176"]
[177,"Insulated Spade Lug  Red 1.25mm  Hole Dia. 3mm",794531,"Pce ","",20,null,null,"ELEC0177"]
[178,"Insulated Spade Lug  Red 1.25mm  Hole Dia. 3.5mm",794532,"Pce ","",20,null,null,"ELEC0178"]
[179,"Insulated Spade Lug  Blue 2mm  Hole Dia. 4mm",794533,"Pce ","",20,null,null,"ELEC0179"]
[180,"Insulated Spade Lug  Blue 2mm  Hole Dia. 5mm",794535,"Pce ","",20,null,null,"ELEC0180"]
[181,"Insulated Spade Lug  Yellow 5.5mm  Hole Dia. 4.5mm",794536,"Pce ","",20,null,null,"ELEC0181"]
[182,"Insulated Receptacles 1.25mm Red Lug Width 3mm",794545,"Pce ","",20,null,null,"ELEC0182"]
[183,"Insulated Receptacles 1.25mm Red Lug Width 4mm",794546,"Pce ","",20,null,null,"ELEC0183"]
[184,"Insulated Receptacles 1.25mm Red Lug Width 5mm",794547,"Pce ","",20,null,null,"ELEC0184"]
[185,"Insulated Receptacles 2mm Blue Lug Width 4mm",794548,"Pce ","",20,null,null,"ELEC0185"]
[186,"Insulated Receptacles 2mm Blue Lug Width 6mm",794549,"Pce ","",20,null,null,"ELEC0186"]
[187,"Insulated Receptacles 5.5mm Lug Width 6mm",794550,"Pce ","",20,null,null,"ELEC0187"]
[188,"Insulated Flat Pins 1.25mm Red Pin Width 3mm",794562,"Pce ","",20,null,null,"ELEC0188"]
[189,"Insulated Flat Pins 2mm Blue Pin Width 4mm",794563,"Pce ","",20,null,null,"ELEC0189"]
[190,"Insulated Flat Pins 5.5mm Yellow Pin Width 4mm",794564,"Pce ","",20,null,null,"ELEC0190"]
[191,"Insulated Eyelet 1.25mm Red Hole Dia. 4mm",794521,"Pce ","",20,null,null,"ELEC0191"]
[192,"Insulated Eyelet 2mm Blue Hole Dia. 3mm",794522,"Pce ","",20,null,null,"ELEC0192"]
[193,"Insulated Eyelet 2mm Blue Hole Dia. 4mm",794523,"Pce ","",20,null,null,{"$f":"\"ELEC\" & TEXT(A198,\"0000\")","v":"ELEC0193"}]
[194,"Insulated Eyelet 2mm Blue Hole Dia. 5mm",794524,"Pce ",{"$f":"IF(OR(ISBLANK(F199),ISBLANK(G199)),\"\",F199-G199)","v":""},20,null,null,"ELEC0194"]
[195,"Insulated Eyelet 2mm Blue Hole Dia. 6mm",794525,"Pce ","",20,null,null,"ELEC0195"]
[196,"Insulated Eyelet 2mm Blue Hole Dia. 8mm",794526,"Pce ","",20,null,null,"ELEC0196"]
[197,"Insulated Eyelet 5.5mm Yellow Hole Dia. 4mm",794527,"Pce ","",20,null,null,"ELEC0197"]
[198,"Insulated Eyelet 5.5mm Yellow Hole Dia. 5mm",794528,"Pce ","",20,null,null,"ELEC0198"]
[199,"Insulated Eyelet 5.5mm Yellow Hole Dia. 10mm",794529,"Pce ","",20,null,null,"ELEC0199"]
[200,"Insulated Butt 1.25mm Red",794575,"Pce ","",20,null,null,"ELEC0200"]
[201,"Insulated Butt 2mm Blue",794574,"Pce ","",20,null,null,"ELEC0201"]
[202,"Insulated Butt  5.5mm Yellow",794576,"Pce ","",20,null,null,"ELEC0202"]
[203,"Seperable Terminal Strips  P.V.C Flexible  10A",794636,"Pce ","",30,null,null,"ELEC0203"]
[204,"Seperable Terminal Strips  P.V.C Flexible  20A",794637,"Pce ","",30,null,null,"ELEC0204"]
[205,"Seperable Terminal Strips  P.V.C Flexible 25A",794638,"Pce ","",30,null,null,"ELEC0205"]
[206,"Seperable Terminal Strips  P.V.C Flexible 35A",794639,"Pce ","",30,null,null,"ELEC0206"]
[207,"Seperable Terminal Strips  P.V.C Flexible 50A",794640,"Pce ","",10,null,null,"ELEC0207"]
[208,"Welding Cable Connectors 300A  ",794761,"Pce ","",2,null,null,"ELEC0208"]
[209,"Cable Markers 0-9 Set Of 10 Sheets",794802,"Pce ","",2,null,null,"ELEC0209"]
[210,"Cable Markers A-Z Set Of 26 Sheets",794804,"Pce ","",2,null,null,"ELEC0210"]
[211,"Cable Band Plastic 100mm",794851,"Pce ","",100,null,null,"ELEC0211"]
[212,"Cable Band Plastic 150mm",794852,"Pce ","",100,null,null,"ELEC0212"]
[213,"Cable Band Plastic 200mm",794853,"Pce ","",100,null,null,"ELEC0213"]
[214,"Cable Band Plastic 300mm",794855,"Pce ","",100,null,null,"ELEC0214"]
[215,"Cable Band Plastic 350mm",794856,"Pce ","",50,null,null,"ELEC0215"]
[216,"Stainless Steel Cable Straps,200mm",794889,"Pce ","",100,null,null,"ELEC0216"]
[217,"Stainless Steel Cable Straps, 300mm",794890,"Pce ","",100,null,null,"ELEC0217"]
[218,"Stainless Steel Cable Straps, 400mm",794897,"Pce ","",100,null,null,"ELEC0218"]
[219,"Antenna Cable Insulators Type A  Porcelain With Galv. Iron",794861,"Pce ","",10,null,null,"ELEC0219"]
[220,"Antenna Cable Insulators Type A  Duralex Glass With Brass",794862,"Pce ","",10,null,null,"ELEC0220"]
[221,"Antenna Cable Insulators Type B  Porcelain  L = 270mm",794863,"Pce ","",2,null,null,"ELEC0221"]
[222,"Antenna Cable Insulators Type B  Porcelain  L = 350mm",794864,"Pce ","",2,null,null,"ELEC0222"]
[223,"Antenna Cable Insulators Type C  Porcelain  L = 190mm",794865,"Pce ","",2,null,null,"ELEC0223"]
[224,"Antenna Cable Insulators Type Bc Porcelain  L = 250mm",794666,"Pce ","",2,null,null,"ELEC0224"]
[225,"Alligator Clips A Type L =  34mm",794881,"Pce ","",5,null,null,"ELEC0225"]
[226,"Alligator Clips A Type L =  50mm",794882,"Pce ","",5,null,null,"ELEC0226"]
[227,"Alligator Clips A Type L =  73mm",794883,"Pce ","",5,null,null,"ELEC0227"]
[228,"Alligator Clips B Type L = 62mm",794884,"Pce ","",5,null,null,"ELEC0228"]
[229,"Heat Shrink 50mm/30mm Blk",795496,"MTR","",10,null,null,"ELEC0229"]
[230,"Heat Shrink 4.8mm/2.4mm Blk",795496,"MTR","",10,null,null,"ELEC0230"]
[231,"Heat Shrink 9.5mm/4.8mm Blk",795496,"MTR","",10,null,null,"ELEC0231"]
[232,"Heat Shrink 28mm/18mm Blk",795496,"MTR","",10,null,null,"ELEC0232"]
[233,"Heat Resistant Sleaving 10mm",795496,"MTR","",10,null,null,"ELEC0233"]
[234,"Heat Resistant Sleaving 6mm",795496,"MTR","",10,null,null,"ELEC0234"]
[235,"Marine Watertight Cable Glands  15mm",794812,"Pce","",20,null,null,"ELEC0235"]
[236,"Marine Watertight Cable Glands  20mm",794813,"Pce ","",20,null,null,"ELEC0236"]
[237,"Marine Watertight Cable Glands  25mm",794814,"Pce ","",10,null,null,"ELEC0237"]
[238,"Marine Watertight Cable Glands  30mm",794815,"Pce ","",10,null,null,"ELEC0238"]
[239,"Watertight Junction Box Round ",794831,"Pce ","",3,null,null,"ELEC0239"]
[240,"100X100 X30  Square Pvc Junction Boxes",794835,"Pce ","",3,null,null,"ELEC0240"]
[241,"Change Over Switch Door Mount 15A 4P D801B01",793025,"Pce ","",3,null,null,"ELEC0241"]
[242,"100X100 X30  Square Pvc Junction Boxes",794835,"Pce ","",3,null,null,"ELEC0242"]
[243,"Change Over Switch Door Mount 15A 4P D801B01",793025,"Pce ","",3,null,null,"ELEC0243"]
[244,"LED Lamps  220v 8 watt Daylight E-27",790264,"Pce","",50,null,null,"ELEC0244"]
[245,"LED Lamps  220v 12 watt Daylight E-27",790266,"Pce","",50,null,null,"ELEC0245"]
[246,"Clear Mogul Screw (GES) Lamps  (for cargo light fittings) 500 watt  220v",790232,"Pce","",20,null,null,"ELEC0246"]
[247,"Single LED Indicator Lamps  24v Red  BA9S",790762,"Pce","",10,null,null,"ELEC0247"]
[248,"Single LED Indicator Lamps  24v Green  BA9S",790764,"Pce","",10,null,null,"ELEC0248"]
[249,"Single LED Indicator Lamps  24v Yellow  BA9s",790765,"Pce","",10,null,null,"ELEC0249"]
[250,"Single LED Indicator Lamps  24v White  BA9s",790766,"Pce","",10,null,null,"ELEC0250"]
[251,"Single LED Indicator Lamps 24v  Red  E-10",790887,"Pce","",10,null,null,"ELEC0251"]
[252,"Single LED Indicator Lamps  24v Green  E-10",790889,"Pce","",10,null,null,"ELEC0252"]
[253,"Single LED Indicator Lamps  24v  Yellow  E-10",790890,"Pce","",10,null,null,"ELEC0253"]
[254,"Single LED Indicator Lamps  24v White  E-10",790891,"Pce","",10,null,null,"ELEC0254"]
[255,"LED Panel Indicating Lights  24v AC/DC  White",790892,"Pce","",5,null,null,"ELEC0255"]
[256,"LED Panel Indicating Lights  24v AC/DC  Red",790893,"Pce","",5,null,null,"ELEC0256"]
[257,"LED Panel Indicating Lights  24v AC/DC  Green",790894,"Pce","",5,null,null,{"$f":"\"ELEC\" & TEXT(A262,\"0000\")","v":"ELEC0257"}]
[258,"LED Panel Indicating Lights  24v AC/DC  Yellow",790895,"Pce",{"$f":"IF(OR(ISBLANK(F263),ISBLANK(G263)),\"\",F263-G263)","v":""},5,null,null,"ELEC0258"]
[259,"LED Panel Indicating Lights  220v AC  White",790958,"Pce","",5,null,null,"ELEC0259"]
[260,"LED Panel Indicaing Lights 230v AC  Red",790959,"Pce","",5,null,null,"ELEC0260"]
[261,"LED Panel Indicating Lights  230v AC Green",790960,"Pce","",5,null,null,"ELEC0261"]
[262,"LED Panel Indicating Lights  230v AC Yellow",790961,"Pce","",5,null,null,"ELEC0262"]
[263,"LED Flood Lighting Fixtures  Daylight  220v 150 watt",791827,"Pce","",2,null,null,"ELEC0263"]
[264,"LED Flood Lighting Fixtures  Daylight  220v 200 watt",791829,"Pce","",2,null,null,"ELEC0264"]
[265,"LED Watertight Fixtures with Diffuser  11.5W X 2  Daylight ( 2 Ft. Fitting)",791894,"Pce","",3,null,null,"ELEC0265"]
[266,"LED Watertight Fixtures with Diffuser  23W X 2  Daylight ( 4 Ft. Fitting)",791914,"Pce","",3,null,null,"ELEC0266"]
[267,"LED Fluorescent Lamps T8 Daylight  Length: 580mm  220v",791475,"Pce","",30,null,null,"ELEC0267"]
[268,"LED Fluorescent Lamps T8 Daylight  Length: 1,198MMmm  220v",791478,"Pce","",30,null,null,"ELEC0268"]
[269,"LED Fluorescent LampsTt8 Daylight  Length: 588mm  220v",791483,"Pce","",30,null,null,"ELEC0269"]
[270,"LED Fluorescent Lamps T8  Daylight Length: 1,198",791486,"Pce","",30,null,null,"ELEC0270"]
[271,"High Brightness LED Flood Lighting fixtures SLD-150",791836,"Pce","",2,null,null,"ELEC0271"]
[272,"High Brightness LED Flood Lighting fixtures SLD-240",791837,"Pce","",2,null,null,"ELEC0272"]
[273,"HRC Cartridge Link Fuses Size 00  16A",793803,"Pce","",10,null,null,"ELEC0273"]
[274,"HRC Cartridge Link Fuses Size 00  20A",792804,"Pce","",10,null,null,"ELEC0274"]
[275,"HRC Cartridge Link Fuses Size 00  25A",792805,"Pce","",10,null,null,"ELEC0275"]
[276,"HRC Cartridge Link Fuses Size 00  35A",793806,"Pce","",10,null,null,"ELEC0276"]
[277,"HRC Cartridge Link Fuses Size 00  50A",793807,"Pce","",10,null,null,"ELEC0277"]
[278,"HRC Cartridge Link Fuses Size 00  63A",793808,"Pce","",10,null,null,"ELEC0278"]
[279,"HRC Cartridge Link Fuses Size 00  80A",793809,"Pce","",10,null,null,"ELEC0279"]
[280,"HRC Cartridge Link Fuses Size 00  100A",793810,"Pce","",10,null,null,"ELEC0280"]
[281,"HRC Cartridge Link Fuses Size 00  125A",793811,"Pce","",10,null,null,"ELEC0281"]
[282,"HRC Cartridge Link Fuses Size 00  160A",793812,"Pce","",10,null,null,"ELEC0282"]
[283,"HRC Cartridge Link Fuses  Size 0  6A   ",793816,"Pce","",10,null,null,"ELEC0283"]
[284,"HRC Cartridge Link Fuses  Size 0  10A",793817,"Pce","",10,null,null,"ELEC0284"]
[285,"HRC Cartridge Link Fuses  Size 0   16A",793818,"Pce","",10,null,null,"ELEC0285"]
[286,"HRC Cartridge Link Fuses  Size 0   20A",793819,"Pce","",10,null,null,"ELEC0286"]
[287,"HRC Cartridge Link Fuses  Size 0   25A",793820,"Pce","",10,null,null,"ELEC0287"]
[288,"HRC Cartridge Link Fuses  Size 0   35A",793821,"Pce","",10,null,null,"ELEC0288"]
[289,"HRC Cartridge Link Fuses  Size 0   50A",793822,"Pce","",10,null,null,"ELEC0289"]
[290,"HRC Cartridge Link Fuses  Size 0   63A",793823,"Pce","",10,null,null,"ELEC0290"]
[291,"HRC Cartridge Link Fuses  Size 0   80A",793824,"Pce","",10,null,null,"ELEC0291"]
[292,"HRC Cartridge Link Fuses  Size 0   100A",793825,"Pce","",10,null,null,"ELEC0292"]
[293,"HRC Cartridge Link Fuses  Size 0   125A",793826,"Pce","",10,null,null,"ELEC0293"]
[294,"HRC Cartridge Link Fuses  Size 0   160A",793827,"Pce","",10,null,null,"ELEC0294"]
[295,"HRC Cartridge Link Fuses  Size 1   35A",793831,"Pce","",10,null,null,"ELEC0295"]
[296,"HRC Cartridge Link Fuses  Size 1   50A",793832,"Pce","",10,null,null,"ELEC0296"]
[297,"HRC Cartridge Link Fuses  Size 1   63A",793833,"Pce","",10,null,null,"ELEC0297"]
[298,"HRC Cartridge Link Fuses  Size 1    80A",793834,"Pce","",10,null,null,"ELEC0298"]
[299,"HRC Cartridge Link Fuses  Size 1    100A",793835,"Pce","",10,null,null,"ELEC0299"]
[300,"HRC Cartridge Link Fuses  Size 1    125A",793836,"Pce","",10,null,null,"ELEC0300"]
[301,"HRC Cartridge Link Fuses  Size 1    160A",793837,"Pce","",10,null,null,"ELEC0301"]
[302,"HRC Cartridge Link Fuses  Size 1    200A",793837,"Pce","",10,null,null,"ELEC0302"]
[303,"HRC Cartridge Link Fuses  Size 1    250A",793838,"Pce","",10,null,null,"ELEC0303"]
[304,"Fuse Pullers  Scissor Type",793736,"Pce","",2,null,null,"ELEC0304"]
[305,"HRC Fuse Link Universal Handles",793880,"Pce","",2,null,null,"ELEC0305"]
[306,"Single Base Cargo Lights  E-39  500W",792004,"Pce","",6,null,null,"ELEC0306"]
[307,"LED Flashlights",792210,"Pce","",4,null,null,"ELEC0307"]
[308,"LED lighting fixture 110v-240v 50/60Hz 24W single phase ",791952,"Pce","",5,null,null,"ELEC0308"]
[309,"SS Banding 6.4mm X 30m",614103,"MTR","",30,null,null,"ELEC0309"]
[310,"SS Banding buckles 6.4mm x100pcs",614109,"Pce","",100,null,null,"ELEC0310"]
[311,"SS Banding screw 6.4mmx50pcs",614115,"Pce","",50,null,null,"ELEC0311"]

{"sheet":"Hotel Stores","index":8,"n_rows":191,"n_cols":9,"rows_kept":191,"cut":false,"hidden":false,"merged":[[3,0,3,7],[1,0,1,7],[0,1,0,7]]}
[null,{"$f":"'Tools Electrical'!B1:H1","v":"SAFETY, HEALTH, ENVIRONMENT AND QUALITY MANAGEMENT SYSTEM\n\nQUARTERLY STORES\n\nREPORTING FORMS MANUAL"},null,null,null,null,null,null,{"$f":"'Tools Electrical'!J1","v":"Form : 7.2.4\nDate : 14-Aug-25\nRev : 10.0\nApp By : DPA"}]
["BUDGET CODE   410805"]
[]
["Update in ROB and Applicable to Vessel Column only. ROB includes items in use. The Req Column will reflect the amount to order"]
[null,"Description","IMPA","Unit","Req","Stock","ROB","Applicable to Vessel","Comments / Remarks"]
[1,"Foodwarmer, Electric,220V","Free Item","Each",{"$f":"IF(OR(ISBLANK(F6),ISBLANK(G6)),\"\",F6-G6)","v":""},2]
[2,"Bed Sheets Light Blue  Cotton 280X160 cms",150151,"Each","",50]
[3,"Bed Sheets White  Cotton 200X260 cms",150163,"Each","",8]
[4,"Pillows",150281,"Each","",60]
[5,"Pillow Cases White 80 X 80 cms",150287,"Each","",60]
[6,"Blanket, Acrylic, 1500X2000mm",150346,"Each","",50]
[7,"Blanket, Acrylic, 1800X2300mm",150351,"Each","",4]
[8,"Cooks Apron",150462,"Each","",6]
[9,"Plastic Coat Hangers",150527,"Each","",200]
[10,"Bath Towel White 100 X 150 cms With G Logo",150602,"Each","",60]
[11,"Face Towels Blue 50 X 100 cms",150607,"Each","",60]
[12,"Pantry Towel,400 X 690mm",150611,"Each","",6]
[13,"Dish Cloth",150618,"Each","",12]
[14,"Mutton Cloth",150626,"Each","",2]
[15,"Salad Server Fork",170153,"Each","",2]
[16,"Salad Server Spoon",170154,"Each","",2]
[17,"Sauce Ladle",170155,"Each","",1]
[18,"Dinner Knife",170160,"Each","",30]
[19,"Dinner Fork",170161,"Each","",30]
[20,"Table Spoon",170162,"Each","",30]
[21,"Soup Spoon",170163,"Each","",30]
[22,"Tea Spoon",170175,"Each","",30]
[23,"Serving Fork",170201,"Each","",2]
[24,"Serving Spoon",170202,"Each","",2]
[25,"Soup Ladle",170205,"Each","",2]
[26,"Meat Carving Knife Large",170208,"Each","",1]
[27,"Meat Carving Fork",170209,"Each","",1]
[28,"Oval Platter 293 X 210mm",170305,"Each","",2]
[29,"Oval Platter 360 260mm",170307,"Each","",2]
[30,"Dinner Plate 262mm",170311,"Each","",30]
[31,"Rim Soup Plate 233mm",170313,"Each","",30]
[32,"Dessert Plate  168 mm",170316,"Each","",30]
[33,"Cereal Bowl",170327,"Each","",30]
[34,"Mug",170337,"Each","",40]
[35,"Beer Glasses",170603,"Each","",10]
[36,"Table Tumbler",170646,"Each","",30]
[37,"Wine Glasses",170651,"Each","",10]
[38,"Ice Cream Scoop",170713,"Each","",1]
[39,"Salad Bowls",170748,"Each","",4]
[40,"Wooden Spoons L 300mm",170783,"Each","",2]
[41,"Stainless Steel Dishes Oval 410 X 275mm",170806,"Each","",2]
[42,"Cake Or Fruit Stand",170916,"Each","",2]
[43,"Bamboo Bread Basket",170932,"Each","",2]
[44,"Oil And Vinigar Caster Set",171026,"Each","",5]
[45,"Sauce Bottles Plastic 280Cc",171047,"Each","",4]
[46,"Plastic Butter Dish",171061,"Each","",4]
[47,"Tooth Picks Round 150S",171090,"Each","",4]
[48,"Stainless Steel Sugar Pot",171107,"Each","",4]
[49,"Stainless Steel Water Jugs",171216,"Each","",2]
[50,"Ice Cube Trays",171376,"Each","",10]
[51,"Stainless Steel Trays ",171421,"Each","",4]
[52,"Stainless Steel Service Trays Rectangualar 455 X 340mm ",171427,"Each","",2]
[53,"Serviettes 1000S",171453,"Each","",10]
[54,"Steel Frying Pan ( Dia 180mm)",171702,"Each","",2]
[55,"Steel Frying Pan ( Dia 380mm)",171712,"Each","",2]
[56,"Teflon  Frying Pan ( Dia 260mm)",171732,"Each","",2]
[57,"Teflon  Frying Pan ( Dia 320mm)",171734,"Each","",2]
[58,"Cast Aluminium Steak Pan Oval 320 X 240mm",171737,"Each","",2]
[59,"Cast Iron Skillets 260 mm",171739,"Each","",1]
[60,"French Fryier With Basket 360mm",171752,"Each","",1]
[61,"Heavy Duty Aluminium Saute Pans 360  X 120mm ( 12 Litres)",171818,"Each","",1]
[62,"Sauce Pan Alum 4.2L",171823,"Each","",2]
[63,"Sauce Pan Alum 8.6L",171825,"Each","",2]
[64,"Heavy Duty Alumunium Braiser",171848,"Each",{"$f":"IF(OR(ISBLANK(F69),ISBLANK(G69)),\"\",F69-G69)","v":""},1]
[65,"Heavy Duty Aluminium Braisers 420 X 140 Depth",171861,"Each","",1]
[66,"Sauce Pan Alum 10 L",171874,"Each","",2]
[67,"Heavy Duty Alumunium Sauce Pot ( 24L)",171877,"Each","",1]
[68,"Standard Aluminium Stock Pot ( 300 X 280  ) 20 Litres",171915,"Each","",2]
[69,"Standard Aluminium Stock Pot ( 390 X 370  ) 44 Litres",171918,"Each","",1]
[70,"Egg Poacher 6 Cups",172002,"Each","",1]
[71,"Steel Roast Pans 270 X 350 X 45mm",172106,"Each","",1]
[72,"Steel Roast Pans 350 X 500 X 50mm",172108,"Each","",1]
[73,"Stainless  Steel Rectangular Pans 480 X 335 X 80",172124,"Each","",2]
[74,"Stainless Steel Mixing Bowl Dia 270mm",172160,"Each","",2]
[75,"Stainless Steel Mixing Bowl Dia 360mm",172163,"Each","",2]
[76,"Colanders Dia 370mm",172197,"Each","",2]
[77,"Stainless Steel Bowl Strainers ( Dia 254mm)",172213,"Each","",2]
[78,"Oil Strainer Dia 215mm",172218,"Each","",1]
[79,"Funnel Plastic Dia 180mm",172253,"Each","",2]
[80,"Funnel Plastic 210mm ",172254,"Each","",2]
[81,"Flour Sifter",172281,"Each","",1]
[82,"French Knife Blade Length 300mm",172295,"Each","",2]
[83,"Boning Knife For Beef 150mm",172312,"Each","",2]
[84,"Boning Knife For Chicken 150mm",172314,"Each","",2]
[85,"Cleaver 210mm",172317,"Each","",2]
[86,"Butcher Knife Stainless Steel 240mm",172325,"Each","",2]
[87,"Bread Knife",172335,"Each","",2]
[88,"Paring Knives",172360,"Each","",2]
[89,"Potato Peeler",172362,"Each","",2]
[90,"Fish Shears",172370,"Each","",1]
[91,"Fish Scaler",172372,"Each","",1]
[92,"Poultry Secateurs",172376,"Each","",1]
[93,"Butchers Steels",172401,"Each","",1]
[94,"6 Cutting Boards  600 X 300 X 60 mm Red/Yello/Blue/Green/Brown/White",172434,"Set","",2]
[95,"Kitchen Fork",172503,"Each","",2]
[96,"Rubber Bowl Scrapers",172521,"Each","",1]
[97,"Silicone Rubber Bowl Scraper 250mm",172526,"Each","",1]
[98,"Turners For Steak  Solid Blade Size 76 X 200 Length 360mm",172547,"Each","",2]
[99,"Stainless Steel Soup Ladles 260 Cc Dia 115",172556,"Each","",2]
[100,"Stainless Steel Spoons Cooking",172563,"Each","",2]
[101,"Wire Whips Length 360mm",172575,"Each","",2]
[102,"Egg Beater ",172586,"Each","",2]
[103,"Bottle Opner",172601,"Each","",1]
[104,"Cork Screw Gear Lever",172613,"Each","",1]
[105,"Edlund Table Can Opener No 3 Set ( Length 565 Base Size 100X 100)",172624,"Each","",1]
[106,"Loaf Tins",172710,"Each","",2]
[107,"Muffin Pans 12 Cup",172717,"Each","",2]
[108,"Pastry Brushes 60mm",172745,"Each","",2]
[109,"Pastry Bag Nylon",172747,"Each","",2]
[110,"Pastry Tube Set 6 Piece",172754,"Each","",2]
[111,"Rolling Pin L 380 X D85",172774,"Each","",1]
[112,"Potato Masher",172812,"Each","",2]
[113,"Garlic Presses",172830,"Each","",1]
[114,"Cheese Slicer",172844,"Each","",1]
[115,"Cheese Grater Side Cut",172850,"Each","",2]
[116,"Square Hammer Meat Tenderizer",172873,"Each","",1]
[117,"Plastic Food Storage Boxes Rectangular 198 X 134 X 67 ( 1.5 Litre)",172882,"Each","",6]
[118,"Plastic Food Storage Boxes Rectangular 310 X 235 X 105 ( 5.9 Litre)",172936,"Each","",6]
[119,"Plastic Space Saver Food Storage Containers 65 Litres",172948,"Each","",6]
[120,"Plastic Bread Bins",172952,"Each","",2]
[121,"Dish Drainer Racks",172971,"Each","",2]
[122,"Net Scoop Ladle Stainless Steel 210mm Diam                                                                                                                                                                                                                     ",173238,"Each","",2]
[123,"Deep Plastic Square Basket  For Washing Vegetables",173292,"Each","",2]
[124,"Stainless Steel Shallow Ladles (Perforated)",173336,"Each","",2]
[125,"Spring Balance Scale Up To 25 Kg",174011,"Each","",1]
[126,"Measuring Cup Plastic 1.0Ltr                                                                                                                                                                                                                           ",174028,"Each","",1]
[127,"Measuring Cup Plastic 2 Litre",174029,"Each","",1]
[128,"Galley Gloves",174045,"Each",{"$f":"IF(OR(ISBLANK(F133),ISBLANK(G133)),\"\",F133-G133)","v":""},6]
[129,"Oven Mitts",174048,"Each","",2]
[130,"Hand Scourer (Steel)",174053,"Each","",48]
[131,"Steel Wool",174063,"Each","",6]
[132,"Scotch Brite: Sponge Ace Scrubbing Spong",174072,"Each","",48]
[133,"Heavy Duty Nylon Commercial Scouring Pad 3M ",174090,"Each","",48]
[134,"Bottle Washing Brushes",174108,"Each","",2]
[135,"Plastic Buckets 13 Litres",174123,"Each","",4]
[136,"Dustpans Lobby",174143,"Each","",2]
[137,"Plastic Buckets 20 Litres With Lid",174158,"Each","",4]
[138,"Plastic Bags Black ",174176,"Each","",100]
[139,"Marine Refuse Bags",174180,"Each","",800]
[140,"Cooking Foil 450mm X 150M",174203,"Each","",6]
[141,"Wrapping Foil 300mm X 30M",174206,"Each","",6]
[142,"Toilet Paper",174241,"Cases","",5]
[143,"Toilet Brush With Holder",174253,"Each","",30]
[144,"Yacht Mops Complete",174271,"Each","",8]
[145,"Redplaceable Head",174272,"Each","",20]
[146,"Wringer Mop Bucket",174280,"Each","",2]
[147,"Rubber Squeegees 400mm",174292,"Each","",2]
[148,"Rubber Squeegee 480mm",174293,"Each","",2]
[149,"Electric Kettle  Cordless Type 220 V",174508,"Each","",4]
[150,"Electric Thermo Pot 3L 220V",174526,"Each","",3]
[151,"Toaster 4 Slice 220V",174554,"Each","",2]
[152,"Elec. Rice Cooker, 3.6 Liters, 220V",174628,"Each","",2]
[153,"Vacuum Cleaner With Re Usable Filter Bags 220V",174672,"Each","",1]
[154,"Electric Floor Polisher/ Carpet Cleaner 220V",174682,"Each","",1]
[155,"Electric Steam Iron 220V",174724,"Each","",2]
[156,"A-Tork Paper Towel 290mm Wide Refill",232921,"Each","",10]
[157,"A-Tork Paper Towel 290mm Wide (With Stand)",232931,"Each","",1]
[158,"Fire Blanket With Case (Galley)",330950,"Each","",1]
[159,"Hard Brissel Brooms ",510602,"Each","",6]
[160,"Soft Brissel Nylon Broom Heads",510612,"Each","",6]
[161,"Hand Brush",510651,"Each","",3]
[162,"Corn Broom With Handle",510801,"Each","",3]
[163,"Brooms",510856,"Each","",3]
[164,"Checkmats",511015,"Each","",10]
[165,"Coir Door Mats",511022,"Each","",6]
[166,"Vinyl Mats",511036,"Each","",30]
[167,"Laundry Soap Powder ",550111,"Each","",144]
[168,"Bleach ",550121,"Each","",24]
[169,"Fabric Softener",550125,"Each","",48]
[170,"Teepol Soap 20 Litres",550128,"Each","",3]
[171,"Laundry Machine Detergent  20 Kg Industrial",550134,"Each","",4]
[172,"Liquid Soap For Dishwashing 1 Litre",550141,"Each","",36]
[173,"Scouring Cream 400 Gr Jif ",550156,"Each","",12]
[174,"Bathroom Cleaning Liquid 500 Ml",550171,"Each","",24]
[175,"Toilet Soap Lux 75 Gram",550253,"Case","",5]
[176,"Disenfectant & Antiseptic Hand Liquid 5 Kg",550264,"Each","",4]
[177,"Oven Cleaner",550301,"Each","",12]
[178,"Spray Glass Cleaner 480 Ml",550313,"Each","",12]
[179,"Air Freshner 420 Ml",550332,"Each","",48]
[180,"Toilet Odour Balls",550336,"Each","",48]
[181,"Stainless Steel Cleaner Spray",550355,"Each","",6]
[182,"Floor Stripper 18 Litre",550502,"Each","",4]
[183,"Floor Wax  18 Litre",550539,"Each","",4]
[184,"Insect Killer",550625,"Case","",1]
[185,"Upholstry Cleaner Spray Foam","Free Item","Each","",12]
[186,"Carpet Shampoo And Cleaner Liquid 4 Litre",550397,"Each","",12]

{"sheet":"Stationery","index":9,"n_rows":77,"n_cols":9,"rows_kept":77,"cut":false,"hidden":false,"merged":[[3,0,3,7],[1,0,1,7],[0,1,0,7]]}
[null,{"$f":"'Tools Electrical'!B1:H1","v":"SAFETY, HEALTH, ENVIRONMENT AND QUALITY MANAGEMENT SYSTEM\n\nQUARTERLY STORES\n\nREPORTING FORMS MANUAL"},null,null,null,null,null,null,{"$f":"'Tools Electrical'!J1","v":"Form : 7.2.4\nDate : 14-Aug-25\nRev : 10.0\nApp By : DPA"}]
["BUDGET CODE   410805"]
[]
["Update in ROB and Applicable to Vessel Column only. ROB includes items in use. The Req Column will reflect the amount to order"]
[null,"Description","IMPA","Unit","Req","Stock","ROB","Applicable to Vessel","Comments / Remarks"]
[1,"Notebook School Use A-6 148X105mm 96Page                                                                                                                                                                                                                                                                    ",470110,"Vol",{"$f":"IF(OR(ISBLANK(F6),ISBLANK(G6)),\"\",F6-G6)","v":""},10]
[2,"Notebook School Use B-5 252X179mm 60Page                                                                                                                                                                                                                                                                    ",470114,"Vol","",4]
[3,"Notebook School Use A-4 297X210mm 80Page                                                                                                                                                                                                                                                                    ",470118,"Vol","",4]
[4,"Memorandum Pad A-6 150X106mm Hard Cover                                                                                                                                                                                                                                                                     ",470133,"Pad","",6]
[5,"File Hard Cover W/Arch Holder &Fastener A-4 Semi-Small\"                                                                                                                                                                                                                                                   ",470205,"Pcs","",2]
[6,"File Semi-Hard Cover W/Spring Clip B-4S 267X379X30mm                                                                                                                                                                                                                                                        ",470215,"Pcs","",5]
[7,"File Soft Cover Side-Filing A4-S 307X230X15mm                                                                                                                                                                                                                                                               ",470237,"Pcs","",10]
[8,"Box Files, A-4E, 75X260X317",470251,"Pcs","",2]
[9,"Clip Board Hard Board Vertical A-4                                                                                                                                                                                                                                                                          ",470304,"Pcs","",2]
[10,"Clip Board Hard Board Vertical B-4 , ",470305,"Pcs","",2]
[11,"Clip Board Hard Board Horizontal A-4                                                                                                                                                                                                                                                                        ",470311,"Pcs","",2]
[12,"Card Holder Plastic Hard Clear A-4 215X302mm                                                                                                                                                                                                                                                                ",470334,"Pcs","",50]
[13,"Card Holder Plastic Hard Clear A-5 151X213mm                                                                                                                                                                                                                                                                ",470335,"Pcs","",2]
[14,"Card Holder Plastic Hard Clear B-4 262X369mm                                                                                                                                                                                                                                                                ",470344,"Pcs","",6]
[15,"Display Book With 20 Holders A-4S                                                                                                                                                                                                                                                                           ",470392,"Vol","",1]
[16,"Envelope H.D. Kraft Paper #134 25X33X3Cm                                                                                                                                                                                                                                                                    ",470444,"Pcs","",24]
[17,"Pencil For Office Use B Without Rubber Tip                                                                                                                                                                                                                                                                  ",470504,"Doz","",1]
[18,"Pencil For Carpenter Use 4B Without Rubber Tip                                                                                                                                                                                                                                                              ",470507,"Doz","",1]
[19,"Colored Pencil 12-Colors                                                                                                                                                                                                                                                                                    ",470524,"Pkt","",2]
[20,"Pencil Sharpener Desk Fixture                                                                                                                                                                                                                                                                               ",470544,"Pcs","",1]
[21,"Pencil Tray Plastic 235X80mm                                                                                                                                                                                                                                                                                ",470546,"Pcs","",2]
[22,"Ball-Point Pen Red                                                                                                                                                                                                                                                                                          ",470602,"Pcs","",12]
[23,"Ball-Point Pen Black                                                                                                                                                                                                                                                                                        ",470603,"Pcs","",36]
[24,"Felt Marker Pen Broad Line Red                                                                                                                                                                                                                                                                              ",470622,"Pcs","",4]
[25,"Felt Marker Pen Broad Line Black                                                                                                                                                                                                                                                                            ",470623,"Pcs","",4]
[26,"Felt Marker Pen Medium Thick Red                                                                                                                                                                                                                                                                            ",470642,"Pcs","",4]
[27,"Felt Marker Pen Medium Thick Black                                                                                                                                                                                                                                                                          ",470643,"Pcs","",4]
[28,"Sign Pen Pencil-Type Red                                                                                                                                                                                                                                                                                    ",470652,"Pcs","",4]
[29,"Sign Pen Pencil-Type Black                                                                                                                                                                                                                                                                                  ",470653,"Pcs","",4]
[30,"Fluorescent Marking Pen 5-Colors                                                                                                                                                                                                                                                                            ",470678,"Pkt","",3]
[31,"Marker Fiber-Tipped Red                                                                                                                                                                                                                                                                                     ",470691,"Pcs","",6]
[32,"Marker Fiber-Tipped Blue                                                                                                                                                                                                                                                                                    ",470692,"Pcs","",6]
[33,"Marker Fiber-Tipped Yellow                                                                                                                                                                                                                                                                                  ",470690,"Pcs","",5]
[34,"Marker Fiber-Tipped White                                                                                                                                                                                                                                                                                   ",470694,"Pcs","",5]
[35,"Chalk School White 100'S                                                                                                                                                                                                                                                                                    ",470701,"Box","",1]
[36,"Chalk School Red 100'S                                                                                                                                                                                                                                                                                      ",470702,"Box","",1]
[37,"Rotring Pen Ink Black 23ml                                                                                                                                                                                                                                                                                  ",470741,"Btl","",1]
[38,"Rotring Isograph Pen 0.3mm Complete                                                                                                                                                                                                                                                                         ",470756,"Pcs","",1]
[39,"Pencil Eraser Plastic Medium For Office Use                                                                                                                                                                                                                                                                 ",470862,"Pcs","",4]
[40,"Scissors Paper Stainless Steel Overall Length 155mm                                                                                                                                                                                                                                                         ",471002,"Prs","",2]
[41,"Nt Cutter S-200 Light-Duty Blade 9mm                                                                                                                                                                                                                                                                        ",471011,"Pcs","",2]
[42,"Nt Cutter L-500 Medium-Duty Blade 18mm                                                                                                                                                                                                                                                                      ",471013,"Pcs","",2]
[43,"Spare Nt Cutter Blades 9mm For S-200 & A-300                                                                                                                                                                                                                                                                ",471014,"Pkt","",2]
[44,"Spare Nt Cutter Blades 18mm For L-500                                                                                                                                                                                                                                                                       ",471015,"Pkt","",1]
[45,"Punch Paper 2-Hole Fixed                                                                                                                                                                                                                                                                                    ",471021,"Pcs","",1]
[46,"Glue Cemedine C\" 20ml                                                                                                                                                                                                                                                                                     ",471072,"Tub","",5]
[47,"Paper Glue Liquid 60Cc                                                                                                                                                                                                                                                                                      ",471081,"Btl","",10]
[48,"Stapler Hand Type No.10                                                                                                                                                                                                                                                                                     ",471101,"Pcs","",2]
[49,"Stapler Desk Type No.3                                                                                                                                                                                                                                                                                      ",471102,"Pcs","",1]
[50,"Staple For No.10 Hand Type                                                                                                                                                                                                                                                                                  ",471105,"Box","",2]
[51,"Staple For No.3 Desk Type                                                                                                                                                                                                                                                                                   ",471106,"Box","",2]
[52,"Paper Clip No.3(22mm) 100pcs                                                                                                                                                                                                                                                                                ",471116,"Box","",3]
[53,"Paper Clip No.1(28mm) 100pcs                                                                                                                                                                                                                                                                                ",471118,"Box","",3]
[54,"Bulldog Clip With Eye 65mm                                                                                                                                                                                                                                                                                  ",471129,"Pcs","",5]
[55,"Fold Back Clip 19mm                                                                                                                                                                                                                                                                                         ",471141,"Pcs","",10]
[56,"Fold Back Clip 25mm                                                                                                                                                                                                                                                                                         ",471142,"Pcs","",10]
[57,"Fold Back Clip 32mm                                                                                                                                                                                                                                                                                         ",471143,"Pcs","",10]
[58,"Magnetic Clip 56mm                                                                                                                                                                                                                                                                                          ",471155,"Pcs","",10]
[59,"File Fastener Brass 50'S >>Offer: Plastic                                                                                                                                                                                                                                                                   ",471160,"Pkt","",1]
[60,"Rubber Band 38mm 150grm                                                                                                                                                                                                                                                                                     ",471166,"Pkt","",1]
[61,"Drawing Thumb Tack 60'S                                                                                                                                                                                                                                                                                     ",471172,"Pkt","",1]
[62,"Tape Cellophane 18mmx35mrts                                                                                                                                                                                                                                                                                 ",471252,"Rls","",6]
[63,"Tape Dispenser Desk Use                                                                                                                                                                                                                                                                                     ",471256,"Pcs","",1]
[64,"Rule Straight Plastic 360mm                                                                                                                                                                                                                                                                                 ",471568,"Pcs","",4]
[65,"Eraser White Board                                                                                                                                                                                                                                                                                          ",471641,"Pcs",{"$f":"IF(OR(ISBLANK(F70),ISBLANK(G70)),\"\",F70-G70)","v":""},4]
[66,"Magnet Paper Holding 30mm Diam Red                                                                                                                                                                                                                                                                          ",471666,"Pcs","",12]
[67,"Calculator, Type (Desk Top), Digit(10), Power(Dual)                                                                                                                                                                                                                                                      ",471831,"Pcs","",1]
[68,"Copy Paper Plain A-4 500Sht                                                                                                                                                                                                                                                                                 ",472186,"Pkt","",24]
[69,"White Board Marker Felt Tip Black",470633,"Pcs","",6]
[70,"White Board Marker Felt Tip Red",470632,"Pcs","",6]
[71,"White Board Marker Felt Tip Blue",470631,"Pcs","",6]
[72,"White Board Marker Felt Tip Green",470634,"Pcs","",6]

{"sheet":"Martek","index":10,"n_rows":27,"n_cols":9,"rows_kept":27,"cut":false,"hidden":false,"merged":[[3,0,3,7],[1,0,1,7],[0,1,0,7]]}
[null,{"$f":"'Tools Electrical'!B1:H1","v":"SAFETY, HEALTH, ENVIRONMENT AND QUALITY MANAGEMENT SYSTEM\n\nQUARTERLY STORES\n\nREPORTING FORMS MANUAL"},null,null,null,null,null,null,{"$f":"'Tools Electrical'!J1","v":"Form : 7.2.4\nDate : 14-Aug-25\nRev : 10.0\nApp By : DPA"}]
["BUDGET CODE   410805"]
[]
["Update in ROB and Applicable to Vessel Column only. ROB includes items in use. The Req Column will reflect the amount to order"]
[null,"Description","IMPA","Unit","Req","Stock","ROB","Applicable to Vessel","Comments / Remarks"]
[1,"DPD1 Free Chlorine Tests (7 Year Shelf Life) (250/Box)",102472,"Box",{"$f":"IF(OR(ISBLANK(F6),ISBLANK(G6)),\"\",F6-G6)","v":""},1]
[2,"DPD3 Combined Chlorine Tests (7 Year Shelf Life)(250/Box)",102473,"Box",{"$f":"IF(OR(ISBLANK(F7),ISBLANK(G7)),\"\",F7-G7)","v":""},1]
[3,"Comparator Disc Free And Total Chlorine (0-5Mg/L) (7 Year Shelf Life)",102474,"Pce",{"$f":"IF(OR(ISBLANK(F8),ISBLANK(G8)),\"\",F8-G8)","v":""},1]
[4,"Comparator Disc Free And Total Chlorine (0-1Mg/L) (7 Year Shelf Life)",102475,"Pce","",1]
[5,"Ph Tests (Box Of 250) Phenol Red (7 Year Shelf Life)(250/Box)",102476,"Box","",1]
[6,"High Range Chlorine Tablets (Super-Chlorination)(7 Year Shelf Life)(250/Box)",102477,"Box","",1]
[7,"Comparator (Indefinite)",102478,"Pce","",1]
[8,"E-Coli Tests (18 Months)",102479,"Pce","",25]
[9,"Bacterial Plate Tests Pack Of 4",102480,"Pkt","",10]
[10,"Acidifying Gp Tablets(Super-Chlorination)(7 Year Shelf Life)(250/Box)",102488,"Box","",1]
[11,"Sterile Containers ",102500,"Pce","",45]
[12,"Comparator Disc Ph (7 Year Shelf Life)",102502,"Pce","",1]
[13,"1 Pack Of 10 Crushing Rods",102504,"Pkt","",1]
[14,"1 Test Tube Brush",102505,"Pce","",1]
[15,"Syringes",102507,"Pce","",40]
[16,"High Range Chlorine Disc (7 Year Shelf Life)",102510,"Pce","",1]
[17,"Drinksafe Consumable Replenishment Pack(1 Year Supply)",105355,"Set","",1]
[18,"Turbidity Tube (Indefinite)",null,"Pce","",1]
[19,"Incubator",null,"Pce","",1]
[20,"Uv Lamp",null,"Pce","",1]
[21,"Alco Xs Mg/L",null,"Pce","",1]
[22,"Alco Xs Replacement Mouth Piece (100 Pce)",null,"Pce","",1]

{"sheet":"Tribomar","index":11,"n_rows":12,"n_cols":9,"rows_kept":12,"cut":false,"hidden":false,"merged":[[1,0,1,7],[0,1,0,7],[3,0,3,8]]}
[null,{"$f":"'Tools Electrical'!B1:H1","v":"SAFETY, HEALTH, ENVIRONMENT AND QUALITY MANAGEMENT SYSTEM\n\nQUARTERLY STORES\n\nREPORTING FORMS MANUAL"},null,null,null,null,null,null,{"$f":"'Tools Electrical'!J1","v":"Form : 7.2.4\nDate : 14-Aug-25\nRev : 10.0\nApp By : DPA"}]
["BUDGET CODE   410805"]
[]
["Update in ROB and Applicable to Vessel Column only. ROB includes items in use. The Req Column will reflect the amount to order"]
[null,"Description","IMPA","Unit","Req","Stock","ROB","Applicable to Vessel","Comments / Remarks"]
[1,"Reamar Wr Safe Set","1058 /1050","Set",{"$f":"IF(OR(ISBLANK(F6),ISBLANK(G6)),\"\",F6-G6)","v":""}]
[1.1000000000000001,"Reamar Wr Release (Part Of The Set Above)",null,"Bo",""]
[2,"Reamar Bn Release",1059,"Bo",""]
[3,"Saltesmo",1061,"Pad",""]
[4,"Reamar Salt Reagant",1066,"Bo",""]
[5,"Reamar Cleaning Agent",1027,"Bo",""]
[6,"Bacteria Count Test",568568,"Set",""]

{"sheet":"Flags","index":12,"n_rows":56,"n_cols":9,"rows_kept":56,"cut":false,"hidden":false,"merged":[[3,0,3,7],[1,0,1,7],[0,1,0,7]]}
[null,{"$f":"'Tools Electrical'!B1:H1","v":"SAFETY, HEALTH, ENVIRONMENT AND QUALITY MANAGEMENT SYSTEM\n\nQUARTERLY STORES\n\nREPORTING FORMS MANUAL"},null,null,null,null,null,null,{"$f":"'Tools Electrical'!J1","v":"Form : 7.2.4\nDate : 14-Aug-25\nRev : 10.0\nApp By : DPA"}]
["BUDGET CODE   410805"]
[]
["Update in ROB and Applicable to Vessel Column only. ROB includes items in use. The Req Column will reflect the amount to order"]
[null,"Description","IMPA","Unit","Req","Stock","ROB","Applicable to Vessel","Comments / Remarks"]
[1,"IVS House Flags","owners supply","Each",{"$f":"IF(OR(ISBLANK(F6),ISBLANK(G6)),\"\",F6-G6)","v":""},3]
[2,"Singapore Red Ensign","owners supply","Each","",3]
[null,"NATIONAL FLAGS AND CODE FLAGS"]
[3,"Australia",371302,"Each","",1]
[4,"B Flag",371512,"Each","",1]
[5,"Argentina",371301,"Each","",1]
[6,"Canada",371308,"Each","",1]
[7,"China",371310,"Each","",1]
[8,"Egypt",271318,"Each","",1]
[9,"France",371321,"Each","",1]
[10,"H Flag",371527,"Each","",1]
[11,"Italy",371335,"Each","",1]
[12,"India",371329,"Each","",1]
[13,"Indonesia",371330,"Each","",1]
[14,"Japan",371337,"Each","",1]
[15,"Korea",371339,"Each","",1]
[16,"Madagascar",371129,"Each","",1]
[17,"Malaysia",371334,"Each","",1]
[18,"Mauritius",371163,"Each","",1]
[19,"Netherlands",371348,"Each","",1]
[20,"New Zealand",371349,"Each","",1]
[21,"Qatar",371165,"Each","",1]
[22,"Singapore",371363,"Each","",1]
[23,"South Africa",371365,"Each","",1]
[24,"Spain",371366,"Each","",1]
[25,"Taiwan",371370,"Each","",1]
[26,"Turkey",371337,"Each","",1]
[27,"UAE",371375,"Each","",1]
[28,"USA",371378,"Each","",1]
[29,"Flag Signal Full Set 40'S A-Z/0-9/3-Substitute/1-Answer                                                                                                                                                                                                                                                     ",371501,"Each","",1]
[30,null,null,null,{"$f":"IF(OR(ISBLANK(F36),ISBLANK(G36)),\"\",F36-G36)","v":""}]
[31,null,null,null,""]
[32,null,null,null,""]
[33,null,null,null,""]
[34,null,null,null,""]
[35,null,null,null,""]
[36,null,null,null,""]
[37,null,null,null,""]
[38,null,null,null,""]
[39,null,null,null,""]
[40,null,null,null,""]
[41,null,null,null,""]
[42,null,null,null,""]
[43,null,null,null,""]
[44,null,null,null,""]
[45,null,null,null,""]
[46,null,null,null,""]
[47,null,null,null,""]
[48,null,null,null,""]
[49,null,null,null,""]
[50,null,null,null,""]

{"sheet":"Safety and Nav","index":13,"n_rows":193,"n_cols":11,"rows_kept":193,"cut":false,"hidden":false,"merged":[[3,0,3,7],[2,4,2,5],[0,1,0,9],[1,0,1,10]]}
[null,{"$f":"'Tools Electrical'!B1:H1","v":"SAFETY, HEALTH, ENVIRONMENT AND QUALITY MANAGEMENT SYSTEM\n\nQUARTERLY STORES\n\nREPORTING FORMS MANUAL"},null,null,null,null,null,null,null,null,{"$f":"'Tools Electrical'!J1","v":"Form : 7.2.4\nDate : 14-Aug-25\nRev : 10.0\nApp By : DPA"}]
["ROB figures include items in use and serviceable."]
["Vessel :",null,null,"Date :"]
[]
[null,"Description","IMPA","Unit","Req","Stock","ROB","Applicable to Vessel","Quantity Required","Expiry","Comments / Remarks"]
[null,"SAFETY SIGNS"]
[null,"LSA Symbols As Per LSA Plan ( Based On Condition) ",null,"",{"$f":"IF(OR(ISBLANK(F7),ISBLANK(G7)),\"\",F7-G7)","v":""},null,null,null,"LSA Plan"]
[null,"FFA Symbols As Per FFA Plan ( Based On Condition) ",null,"",{"$f":"IF(OR(ISBLANK(F8),ISBLANK(G8)),\"\",F8-G8)","v":""},null,null,null,"LSA Plan"]
[null,"LSA ",null,""]
[null,"Lifejackets - Adult",330148,"Viking",{"$f":"IF(OR(ISBLANK(F10),ISBLANK(G10)),\"\",F10-G10)","v":""},null,null,null,"LSA Plan"]
[null,"Lifejackets - Child",330149,"Viking",{"$f":"IF(OR(ISBLANK(F11),ISBLANK(G11)),\"\",F11-G11)","v":""},null,null,null,"LSA Plan"]
[null,"Lifejackets - Adult / Oversize",330148,"Viking","",3,null,null,3]
[null,"Lifejacket Lights",330143,"Daniamant","",null,null,null,"LSA Plan"]
[null,"Lifejacket Whistle",330252,"","",null,null,null,"LSA Plan"]
[null,"Lifebuoy - Weight Over 2.5Kgs",330159,"","",null,null,null,"LSA Plan"]
[null,"Lifebuoy - Weight Over 4Kgs",330160,"","",null,null,null,"LSA Plan"]
[null,"Non Kinking Lifebuoy Buoyant Lifeline 8 Mm Dia X 30 M Length",330213,"","",null,null,null,"LSA Plan"]
[null,"Lifebuoy Self Igniting Light",331378,"Daniamant L90","",null,null,null,"LSA Plan"]
[null,"Mob Marker ( Light And Smoke Signal)",330321,"Pains Wessex","",2,null,null,2]
[null,"Immersion Suits /Oversize",330195,"Viking","",1,null,null,1]
[null,"Immersion Suits",330195,"Viking","",null,null,null,"LSA Plan"]
[null,"Immersion Suit Test Kit",330197,"Viking","",1,null,null,1]
[null,"Bridge Rocket Parachute Flares",330311,"Pains Wessex","",12,null,null,12]
[null,"Line Throwing Appliance ",330301,"Pains Wessex Speedline","",4,null,null,4]
[null,"Line Throwing Appliance - Propellant Rockets Only",330313,"Pains Wessex Speedline","",null,null,null,4]
[null,"Embarkation Ladder",232052,"","",3,null,null,3]
[null,"SART ( Including Free Fall Lifeboat Sart) ",372501,"Jotron","",2,null,null,2]
[null,"SART Battery","NA","Jotron","",null,null,null,2]
[null,"EPIRB",372511,"Jotron","",2,null,null,1]
[null,"EPIRB Battery","NA","Jotron","",null,null,null,1]
[null,"EPIRB Hru",330126,"Jotron","",1,null,null,1]
[null,"Tape Reflective Solas Grade, Silver W:50Mm X L:45.7Mtr",330189,"","",1,null,null,1]
[null,"Life Raft","NA","Survitec","",null,null,null,3]
[null,"Life Raft HRU",330119,"Hammar","",null,null,null,2]
[null,"LIFEBOAT/ RESCUE BOAT EQUIPMENT\n(REFER LSA CODE 4.4.8 / 5.1.2.2 FOR FURTHER DETAILS)",null,""]
[null,"Food Ration - 10000kj For Each Crew","330225","",{"$f":"IF(OR(ISBLANK(F36),ISBLANK(G36)),\"\",F36-G36)","v":""},25,null,null,25]
[null,"First Aid Kit In Water Proof Case",330246,"",{"$f":"IF(OR(ISBLANK(F37),ISBLANK(G37)),\"\",F37-G37)","v":""},1,null,null,1]
[null,"Anti Seasickness Tablets",330247,"","",50,null,null,50]
[null,"Seasickness Bags",330248,"","",25,null,null,25]
["Order 2.3.22","Lifeboat Fall Wire","NA","As Per Specification","",1,null,null,1]
["Order 2.3.22","Rescue Boat Davit Wire","NA","As Per Specification","",1,null,null,1]
[null,"Lifeboat Batteries","NA","As Per Specification",""]
[null,"Buoyant Oars",330284,"","",null,null,null,"LSA Plan"]
[null,"Boat Hooks","330285","","",2,null,null,2]
[null,"Buoyant Bailer",330201,"","",1,null,null,1]
[null,"Buckets",330209,"","",2,null,null,2]
[null,"Compass",330211,"","",1,null,null,1]
[null,"Sea Anchor With Shock Resistant Hawser Of Atleast 10 M And Tripping Line",330216,"","",1,null,null,1]
[null,"Painter- Atleast 15 M Or Twice Distance From Stowage Position In Light Condition",330293,"","",2,null,null,2]
[null,"Hatchets",330203,"","",2,null,null,2]
[null,"Water Tight Receptacles For Fresh Water - Total 75 L","NA","","",null,null,null,1]
[null,"Rust Proof Dipper With Lanyard",330210,"","",1,null,null,1]
[null,"Rust Proof Graduated Drinking Vessel",330241,"","",1,null,null,1]
[null,"Hand Flares",330314,"Pains Wessex","",6,null,null,6]
[null,"Buoyant Smoke Signals",330331,"Pains Wessex","",2,null,null,2]
[null,"Rocket Parachute Flares",330311,"Pains Wessex","",4,null,null,4]
[null,"Water Proof Electric Torch For Morse Signalling With Spare Batteries And Bulb",330261,"","",1,null,null,1]
[null,"Day Light Signalling Mirror With Instructions",330271,"","",1,null,null,1]
[null,"Life Saving Signals On Water Proof Card Or Container",330218,"","",1,null,null,1]
[null,"Survival Manual","330256","","",1,null,null,1]
[null,"Whistle",331175,"","",1,null,null,1]
[null,"Jack Knife With Lanyard ",330251,"","",1,null,null,1]
[null,"Tin Openers",330249,"","",3,null,null,3]
[null,"Buoyant Rescue Quoits ",330212,"","",2,null,null,2]
[null,"Buoyant Rescue Line 30 M ",330213,"","",2,null,null,2]
[null,"Buoyant Rescue Line 50 M To Tow Liferaft",330213,"","",2,null,null,2]
[null,"Manual Pump",330280,"","",1,null,null,1]
[null,"Fishing Tackle Set",330254,"","",1,null,null,1]
[null,"Fire Extinguisher For Oil Fires","NA","As Per Specification","",1,null,null,1]
[null,"Search Light Intensity 2500 Cd / Duration  3 Hours",330264,"As Per Specification","",1,null,null,1]
[null,"Radar Reflector",330190,"","",1,null,null,1]
[null,"Thermal Protective Aid",330196,"","",3,null,null,3]
[null,"Engine Tool Set",330290,"","",1,null,null,1]
[null,"Life Boat / Rescue Boat Fuel  Full Tank Capacity( Mention Last Fuel Changed Date) ","NA","As Per Specification",{"$f":"IF(OR(ISBLANK(F74),ISBLANK(G74)),\"\",F74-G74)","v":""},null,null,null,"Full Tank"]
[null,"HELICOPTER EQUIPMENT\n(Items in blue may be sourced from other stock aboard,but must be retored to their required stations after operations)",null,""]
[null,"Large Fire Axe With Insulated Handle",330961,"",{"$f":"IF(OR(ISBLANK(F76),ISBLANK(G76)),\"\",F76-G76)","v":""},1,null,null,1]
[null,"Crow Bar    1150Mm",612883,"",{"$f":"IF(OR(ISBLANK(F77),ISBLANK(G77)),\"\",F77-G77)","v":""},1,null,null,1]
[null,"Frame Hacksaw Adjustable Horizontal 250-300Mm",613427,"","",1,null,null,1]
[null,"Blade Hacksaw Hand Carbon Steel 250Mmx24Teeth",613433,"","",6,null,null,6]
[null,"Cutter Bolt Angle Edge 600Mm",611892,"","",1,null,null,1]
[null,"Small Ladder ",232026,"","",1,null,null,1]
[null,"Wrench Hook Spanner Adjustable 95 To 165Mm",611202,"","",1,null,null,1]
[null,"Fire Blanket 1.2X1.8Mtr With Case(Pvc)",330950,"","",1,null,null,1]
[null,"Grab Or Salving Hook  ",330285,"","",1,null,null,1]
[null,"Lift Line 5Mm Dia X 15 M Long",null,"","",1,null,null,1]
[null,"Plier Side Cutting Non-Spark Special Alum Bronze 250Mm",615868,"","",1,null,null,1]
[null,"Screwdriver Set Detachable 5 Bits -3/-5/No.1/No.2/Auger",612442,"","",1,null,null,1]
[null,"Knife Heavy-Duty With Leather Case",611855,"","",1,null,null,1]
[null,"Portable Foam Applicator Unit Complete",331076,"","",2,null,null,2]
[null,"Fire Hoses  With Dual Purpose (Jet/Spray) Nozzle ","NA","Same Model As On Board","",2,null,null,2]
[null,"Foam Concentrate Aqueous Film Forming Foam 6%In Containers - 7 X 20 Ltrs",331085,"","",1,null,null,1]
[null,"Firemans Outfit ( Complete Set)",330941,"","",2,null,null,2]
[null,"Dcp Powder Extinguisher - Atleast 2 Nos Having Total Capacity Of Not Less Than 45Kg",331014,"","",2,null,null,2]
[null,"Co2 Extinguishers - Total Capacity Not Less Than 18 Kg.","331044","","",1,null,null,1]
[null,"Red Emergency Signalling Lamp",null,"","",1,null,null,1]
[null,"First Aid Equipment  ",392060,"","",1,null,null,1]
[null,"Coloured Tabards ( Waist Coat)",331172,"","",2,null,null,2]
[null,"Fire Man Outfit / Scba  Bottles","NA","Same Model As On Board","",null,null,null,"FFA Plan"]
[null,"FFA",null,""]
[null,"Fire Hose Rubber Lined Tetoron 40Mmx15Mtr 9Kgf/Cm2",330701,"",{"$f":"IF(OR(ISBLANK(F100),ISBLANK(G100)),\"\",F100-G100)","v":""},null,null,null,"FFA Plan"]
[null,"Fire Hose Rubber Lined Tetoron 50Mmx15Mtr 9Kgf/Cm2",330702,"",{"$f":"IF(OR(ISBLANK(F101),ISBLANK(G101)),\"\",F101-G101)","v":""},null,null,null,"FFA Plan"]
[null,"Fire Hose Rubber Lined Tetoron 65Mmx15Mtr 9Kgf/Cm2",330703,"","",null,null,null,"FFA Plan"]
[null,"Fire Hose Rubber Lined Tetoron 40Mmx20Mtr 9Kgf/Cm2",330704,"","",null,null,null,"FFA Plan"]
[null,"Fire Hose Rubber Lined Tetoron 50Mmx20Mtr 9Kgf/Cm2",330705,"","",null,null,null,"FFA Plan"]
[null,"Fire Hose Rubber Lined Tetoron 65Mmx20Mtr 9Kgf/Cm2",330706,"","",null,null,null,"FFA Plan"]
[null,"Fire Hose Rubber Lined Tetoron 40Mmx25Mtr 9Kgf/Cm2",330707,"","",null,null,null,"FFA Plan"]
[null,"Fire Hose Rubber Lined Tetoron 50Mmx25Mtr 9Kgf/Cm2",330708,"","",null,null,null,"FFA Plan"]
[null,"Fire Hose Rubber Lined Tetoron 65Mmx25Mtr 9Kgf/Cm2",330709,"","",null,null,null,"FFA Plan"]
[null,"Fire Hose Coupling ","NA","Same Model As On Board","",null,null,null,"FFA Plan"]
[null,"Fire Hose Nozzle ","NA","Same Model As On Board","",null,null,null,"FFA Plan"]
[null,"Fire Hose Box",330751,"","",null,null,null,"FFA Plan"]
[null,"Fire Hydrant Valve","NA","Same Model As On Board","",null,null,null,"FFA Plan"]
[null,"Rubber Washers For Fire Hydrant Valve","NA","Same As Fire Hydrant","",null,null,null,"FFA Plan"]
[null,"International Shore Connection",330841,"Same Model As On Board","",null,null,null,"FFA Plan"]
[null,"Foam Extinguisher","NA","Same Model As On Board","",null,null,null,"FFA Plan"]
[null,"Foam Extinguisher Spare Charge","NA","Same Model As On Board","",null,null,null,"FFA Plan"]
[null,"Dry Powder Extinguisher","NA","Same Model As On Board","",null,null,null,"FFA Plan"]
[null,"Dry Powder Extinguisher Spare Charge","NA","Same Model As On Board","",null,null,null,"FFA Plan"]
[null,"Fixed Dry Powder Extinguisher","NA","Same Model As On Board","",null,null,null,"FFA Plan"]
[null,"Fixed Dry Powder Extinguisher Spare Charge","NA","Same Model As On Board","",null,null,null,"FFA Plan"]
[null,"Co2 Extinguisher","NA","Same Model As On Board","",null,null,null,"FFA Plan"]
[null,"Co2 Extinguisher Spare Charge","NA","Same Model As On Board","",null,null,null,"FFA Plan"]
[null,"Foam Applicator",331076,"","",null,null,null,"FFA Plan"]
[null,"Foam Applicator Spare Charge",331085,"","",null,null,null,"FFA Plan"]
[null,"Wheeled Fire Extinguisher","NA","Same Model As On Board","",null,null,null,"FFA Plan"]
[null,"Wheeled Fire Extinguisher Spare Charge","NA","Same Model As On Board","",null,null,null,"FFA Plan"]
[null,"SCBA Bottles  - Fire Fighting ","NA","Same Model As On Board","",null,null,null,"FFA Plan"]
[null,"SCBA  Bottles - IMSBC Cargo","NA","Same Model As On Board","",null,null,null,"FFA Plan"]
[null,"EEBD","NA","Same Model As On Board","",null,null,null,"FFA Plan"]
[null,"Fireman'S Safety Coat ",330943,"","",null,null,null,"FFA Plan"]
[null,"Fireman'S Safety Gloves 5-Fingers","330946","","",null,null,null,"FFA Plan"]
[null,"Fireman'S Safety Boots ",330945,"","",null,null,null,"FFA Plan"]
[null,"Firemans Outfit Torch",330637,"Pelican Sabre Lite 2010 Led Flashlight","",null,null,null,"FFA Plan"]
[null,"Fireman'S Safety Helmet ",330942,"","",null,null,null,"FFA Plan"]
[null,"Firemans Outfit Fire Axe With Insulated Handle",330962,"","",null,null,null,"FFA Plan"]
[null,"Lifeline Fireproof 8Mmx30Mtr With Hook",330971,"","",null,null,null,"FFA Plan"]
[null,"Firefighters Walkie Talkies","NA","Same Model As On Board","",4,null,null,4]
[null,"SCBA Compressor","NA","Same Model As On Board","",1,null,null,1]
[null,"SCBA Compressor Pressure Guage","NA","Same Model As On Board","",1,null,null,1]
[null,"Protective Clothing For Imsbc Cargo - Complete Set ",330978,"","",4,null,null,4]
[null,"SOPEP LOCKER",null,""]
[null,"Gloves Plastic Oil/Acid Resist Long",190132,"","",6,null,null,6]
[null,"Rubber Boots With Steel Toe - Size 28",190225,"","",3,null,null,3]
[null,"Rubber Boots With Steel Toe - Size 29",190226,"","",3,null,null,3]
[null,"Hand Cleaner Waterless 1 Kg /Tin ",550271,"","",5,null,null,5]
[null,"Torch",330637,"Pelican Sabre Lite 2010 Led Flashlight","",1,null,null,1]
[null,"Diaphragm Pump Air-Operated Wilden M-8 With Suction And Discharge Hose",591603,"","",1,null,null,1]
[null,"Oil Dispersant - Seacare Osd - 20 L Itre Drums","NA","Seacare Osd","",10,null,null,10]
[null,"Sawdust 20 Kg / Bag",232946,"","",7,null,null,7]
[null,"Oil Sorbent Natural Fiber Boom 4\"Diax10'",232528,"","",4,null,null,4]
[null,"Oil Absorbent Sheet 430X480Mm, T-151J Standard 50Sht",232514,"","",200,null,null,200]
[null,"Scupper Plugs Spares","NA","As Per Specification","",1,null,null,1]
[null,"Broom Corn Long Handled",510801,"","",6,null,null,6]
[null,"Shovel Square Non-Spark, Fibreglass 290X445X1040Mm",615961,"","",2,null,null,2]
[null,"Dust Pan Non-Spark 130X175Mm Special Aluminium Bronze",615967,"","",2,null,null,2]
[null,"Rag Cotton Over 60% Sterilized White 10 Kg / Bag ",232906,"","",5,null,null,5]
[null,"Neoprene Buckets - 10 Litres Capacity",590611,"","",2,null,null,2]
[null,"Dust Mask",331128,"","",6,null,null,6]
[null,"Disposable Suits","190568","","",6,null,null,6]
[null,"Safety Goggles",311015,"","",6,null,null,6]
[null,"Floor Wiper (Fuitoru Mop), W/Long Handle 400Mm Width",174287,"","",2,null,null,2]
[null,"Paper Bags For Storing And Disposing  Collected Waste ",174180,"","",50,null,null,50]
[null,"MISCELLANEOUS EQUIPMENT",null,""]
[null,"Safety Harness",331104,"Protekt – P 50","",6,null,null,6]
[null,"Safety Harness Line With Double Hook / Lanyard And Shock Absorber",331102,"Protekt – P 50",{"$f":"IF(OR(ISBLANK(F165),ISBLANK(G165)),\"\",F165-G165)","v":""},6,null,null,6]
[null,"Work Vest ",331171,"Imperial (Survitec)","",4,null,null,4]
[null,"Fall Arrestor",331109,"En360 Standards","",3,null,null,3]
[null,"Gas Meter","NA","Martek","",2,null,null,2]
[null,"Alcohol Meter","NA","Martek","",1,null,null,1]
[null,"Drinking Water Test Kit","NA","Martek","",1,null,null,1]
[null,"Lock Out / Tag Out Kit","NA","Abus Usa, 09805 74 Series","","1",null,null,"1"]
[null,"Lock Out / Tag Out Kit Locks","NA","Abus Usa, 09805 74 Series","","6",null,null,"6"]
[null,"Wet And Dry Hygrometer",370251,"","",2,null,null,2]
[null,"NAVIGATION",null,""]
[null,"Binoculars Nikon Acculon 7X50                                                                                                                                                                                                                                                                               ",370344,"Nikon Acculon 7X50                                                                                                                                                                                                                                                                               ","",3]
[null,"Kent Protractor 45 Degrees 300Mm",371008,"","",2]
[null,"Divider Chart 200Mm                                                                                                                                                                                                                                                                                         ",371013,"","",1]
[null,"Compass Chart 170Mm                                                                                                                                                                                                                                                                                         ",371016,"","",1]
[null,"Rule Straight Plastic 1000Mm                                                                                                                                                                                                                                                                                ",471571,"","",2]
[null,"Black Cylindrical, Shape Net 610Mm",370582,"","",1,null,null,1]
[null,"Gong",null,"","",1,null,null,1]
[null,"Hammer Wood Mallet Handled, 60Mm Face Diam",612762,"","",1,null,null,1]
[null,"Bell Signal Cast Brass 300Mm",370102,"","",1,null,null,1]
[null,"Spare Magnetic Compass","NA","Same Model As On Board","",1,null,null,1]
[null,"Gmdss Survival Craft Radio","NA","Entel Ht649","",3,null,null,3]
[null,"Gmdss Survival Craft Radio Battery","NA","Entel Ht649","",3,null,null,3]
[null,"Suez Canal Light ( 3000 Watt For Vessels Over 30000 Suez Canal G.T.( Halogen Bulb) )","NA","Refer Maker Manual","",1,null,null,1]
[null,"Suez Canal Light Bulbs","NA","Refer Maker Manual","",3,null,null,3]
[null,"Lamp Navigation E-27, 220V  60W",790343,"","",30,null,null,30]
[null,"STATIONERY",null,""]
[null,"Weather Fax Paper",null,"Refer Maker Manual","",6,null,null,6]
[null,"Printer Rolls",null,"Refer Maker Manual","",6,null,null,6]
[null,"Navtex Paper",null,"Refer Maker Manual","",6,null,null,6]

{"sheet":"Tools Electrical Req","index":14,"n_rows":5,"n_cols":10,"rows_kept":5,"cut":false,"hidden":false,"merged":[[1,0,1,8],[3,0,3,8],[0,3,0,4],[0,1,0,2]]}
[null,{"$f":"Instructions!B1","v":"SAFETY, HEALTH, ENVIRONMENT AND QUALITY MANAGEMENT SYSTEM\n\nQUARTERLY STORES\n\nREPORTING FORMS MANUAL"},null,{"$f":"Instructions!C1","v":"Form : 7.2.4\nDate : 14-Aug-25\nRev : 10.0\nApp By : DPA"}]
["BUDGET CODE   410805"]
[]
[]
[null,"Description","IMPA","Unit","Req","Stock","ROB","Applicable to Vessel",null,"Comments / Remarks"]

{"sheet":"Tools Deck Req","index":15,"n_rows":5,"n_cols":9,"rows_kept":5,"cut":false,"hidden":false,"merged":[[1,0,1,7],[3,0,3,7],[0,3,0,4],[0,1,0,2]]}
[null,{"$f":"Instructions!B1","v":"SAFETY, HEALTH, ENVIRONMENT AND QUALITY MANAGEMENT SYSTEM\n\nQUARTERLY STORES\n\nREPORTING FORMS MANUAL"},null,{"$f":"Instructions!C1","v":"Form : 7.2.4\nDate : 14-Aug-25\nRev : 10.0\nApp By : DPA"}]
["BUDGET CODE   410805"]
[]
[]
[null,"Description","IMPA","Unit","Req","Stock","ROB","Applicable to Vessel","Comments / Remarks"]

{"sheet":"Tools Engine Req","index":16,"n_rows":5,"n_cols":9,"rows_kept":5,"cut":false,"hidden":false,"merged":[[1,0,1,7],[3,0,3,7],[0,3,0,4],[0,1,0,2]]}
[null,{"$f":"Instructions!B1","v":"SAFETY, HEALTH, ENVIRONMENT AND QUALITY MANAGEMENT SYSTEM\n\nQUARTERLY STORES\n\nREPORTING FORMS MANUAL"},null,{"$f":"Instructions!C1","v":"Form : 7.2.4\nDate : 14-Aug-25\nRev : 10.0\nApp By : DPA"}]
["BUDGET CODE   410805"]
[]
[]
[null,"Description","IMPA","Unit","Req","Stock","ROB","Applicable to Vessel","Comments / Remarks"]

{"sheet":"Pipes & Valves Req","index":17,"n_rows":5,"n_cols":9,"rows_kept":5,"cut":false,"hidden":false,"merged":[[1,0,1,7],[3,0,3,7],[0,3,0,4],[0,1,0,2]]}
[null,{"$f":"Instructions!B1","v":"SAFETY, HEALTH, ENVIRONMENT AND QUALITY MANAGEMENT SYSTEM\n\nQUARTERLY STORES\n\nREPORTING FORMS MANUAL"},null,{"$f":"Instructions!C1","v":"Form : 7.2.4\nDate : 14-Aug-25\nRev : 10.0\nApp By : DPA"}]
["BUDGET CODE   410805"]
[]
[]
[null,"Description","IMPA","Unit","Req","Stock","ROB","Applicable to Vessel","Comments / Remarks"]

{"sheet":"Deck Stores Req","index":18,"n_rows":5,"n_cols":9,"rows_kept":5,"cut":false,"hidden":false,"merged":[[1,0,1,7],[3,0,3,7],[0,3,0,4],[0,1,0,2]]}
[null,{"$f":"Instructions!B1","v":"SAFETY, HEALTH, ENVIRONMENT AND QUALITY MANAGEMENT SYSTEM\n\nQUARTERLY STORES\n\nREPORTING FORMS MANUAL"},null,{"$f":"Instructions!C1","v":"Form : 7.2.4\nDate : 14-Aug-25\nRev : 10.0\nApp By : DPA"}]
["BUDGET CODE   410805"]
[]
[]
[null,"Description","IMPA","Unit","Req","Stock","ROB","Applicable to Vessel","Comments / Remarks"]

{"sheet":"Engine Stores Req","index":19,"n_rows":5,"n_cols":8,"rows_kept":5,"cut":false,"hidden":false,"merged":[[0,1,0,2],[0,3,0,4]]}
[null,{"$f":"Instructions!B1","v":"SAFETY, HEALTH, ENVIRONMENT AND QUALITY MANAGEMENT SYSTEM\n\nQUARTERLY STORES\n\nREPORTING FORMS MANUAL"},null,{"$f":"Instructions!C1","v":"Form : 7.2.4\nDate : 14-Aug-25\nRev : 10.0\nApp By : DPA"}]
[]
[]
[]
[null,"Description","IMPA","Unit","Req","Stock","ROB","Applicable to Vessel"]

{"sheet":"Elect 220v Req","index":20,"n_rows":5,"n_cols":9,"rows_kept":5,"cut":false,"hidden":false,"merged":[[0,1,0,7]]}
[null,{"$f":"'Tools Electrical'!B1:H1","v":"SAFETY, HEALTH, ENVIRONMENT AND QUALITY MANAGEMENT SYSTEM\n\nQUARTERLY STORES\n\nREPORTING FORMS MANUAL"},null,null,null,null,null,null,{"$f":"'Tools Electrical'!J1","v":"Form : 7.2.4\nDate : 14-Aug-25\nRev : 10.0\nApp By : DPA"}]
[]
[]
[]
[null,"Description","IMPA","Unit","Req","Stock","ROB","Applicable to Vessel"]

{"sheet":"Hotel Stores Req","index":21,"n_rows":5,"n_cols":8,"rows_kept":5,"cut":false,"hidden":false,"merged":[[0,1,0,2],[0,3,0,4]]}
[null,{"$f":"'Tools Electrical'!B1:H1","v":"SAFETY, HEALTH, ENVIRONMENT AND QUALITY MANAGEMENT SYSTEM\n\nQUARTERLY STORES\n\nREPORTING FORMS MANUAL"},null,{"$f":"'Tools Electrical'!J1","v":"Form : 7.2.4\nDate : 14-Aug-25\nRev : 10.0\nApp By : DPA"}]
[]
[]
[]
[null,"Description","IMPA","Unit","Req","Stock","ROB","Applicable to Vessel"]

{"sheet":"Stationery Req","index":22,"n_rows":5,"n_cols":8,"rows_kept":5,"cut":false,"hidden":false,"merged":[[0,1,0,2],[0,3,0,4]]}
[null,{"$f":"'Tools Electrical'!B1:H1","v":"SAFETY, HEALTH, ENVIRONMENT AND QUALITY MANAGEMENT SYSTEM\n\nQUARTERLY STORES\n\nREPORTING FORMS MANUAL"},null,{"$f":"'Tools Electrical'!J1","v":"Form : 7.2.4\nDate : 14-Aug-25\nRev : 10.0\nApp By : DPA"}]
[]
[]
[]
[null,"Description","IMPA","Unit","Req","Stock","ROB","Applicable to Vessel"]

{"sheet":"Martek Req","index":23,"n_rows":5,"n_cols":8,"rows_kept":5,"cut":false,"hidden":false,"merged":[[0,1,0,2],[0,3,0,4]]}
[null,{"$f":"'Tools Electrical'!B1:H1","v":"SAFETY, HEALTH, ENVIRONMENT AND QUALITY MANAGEMENT SYSTEM\n\nQUARTERLY STORES\n\nREPORTING FORMS MANUAL"},null,{"$f":"'Tools Electrical'!J1","v":"Form : 7.2.4\nDate : 14-Aug-25\nRev : 10.0\nApp By : DPA"}]
[]
[]
[]
[null,"Description","IMPA","Unit","Req","Stock","ROB","Applicable to Vessel"]

{"sheet":"Tribomar Req","index":24,"n_rows":5,"n_cols":8,"rows_kept":5,"cut":false,"hidden":false,"merged":[[0,1,0,2],[0,3,0,4]]}
[null,{"$f":"'Tools Electrical'!B1:H1","v":"SAFETY, HEALTH, ENVIRONMENT AND QUALITY MANAGEMENT SYSTEM\n\nQUARTERLY STORES\n\nREPORTING FORMS MANUAL"},null,{"$f":"'Tools Electrical'!J1","v":"Form : 7.2.4\nDate : 14-Aug-25\nRev : 10.0\nApp By : DPA"}]
[]
[]
[]
[null,"Description","IMPA","Unit","Req","Stock","ROB","Applicable to Vessel"]

{"sheet":"Flags Req","index":25,"n_rows":5,"n_cols":8,"rows_kept":5,"cut":false,"hidden":false,"merged":[[0,1,0,2],[0,3,0,4]]}
[null,{"$f":"'Tools Electrical'!B1:H1","v":"SAFETY, HEALTH, ENVIRONMENT AND QUALITY MANAGEMENT SYSTEM\n\nQUARTERLY STORES\n\nREPORTING FORMS MANUAL"},null,{"$f":"'Tools Electrical'!J1","v":"Form : 7.2.4\nDate : 14-Aug-25\nRev : 10.0\nApp By : DPA"}]
[]
[]
[]
[null,"Description","IMPA","Unit","Req","Stock","ROB","Applicable to Vessel"]

{"sheet":"Safety and Nav Req","index":26,"n_rows":5,"n_cols":8,"rows_kept":5,"cut":false,"hidden":false,"merged":[[0,1,0,2],[0,3,0,4]]}
[null,{"$f":"'Tools Electrical'!B1:H1","v":"SAFETY, HEALTH, ENVIRONMENT AND QUALITY MANAGEMENT SYSTEM\n\nQUARTERLY STORES\n\nREPORTING FORMS MANUAL"},null,{"$f":"'Tools Electrical'!J1","v":"Form : 7.2.4\nDate : 14-Aug-25\nRev : 10.0\nApp By : DPA"}]
[]
[]
[]
[null,"Description","IMPA","Unit","Req","Stock","ROB","Applicable to Vessel"]